{"text_format":"1","workbook":"xlsx","n_sheets":6,"sheets":["Dashboard","Baseline Workforce Staffing ","Quantification Data","Clinical Incidents and Waitlist","% FTE","Lists"],"not_rendered":{"charts":0,"images":5,"macros":1,"external_links":0,"defined_names":27,"comments":0,"pivot_tables":5},"unopened":[],"bounds":{"document_bytes":16777216,"sheet_cells":100000,"rows_first":2000,"rows_last":500,"rows_between":2000,"halvings":0,"cell_chars":16384,"cell_head_chars":4096},"cells_cut":0,"cells_raw":0,"read":"whole","date_system":"1900"}

{"sheet":"Dashboard","index":0,"n_rows":61,"n_cols":47,"rows_kept":61,"cut":false,"hidden":false,"merged":[[52,19,52,36],[52,42,52,46],[0,3,0,10]]}
[null,null,null,"DASHBOARD - Victorian Assistant Workforce Model data collection ",null,null,null,null,null,null,null,null,null,null,"Last edited September 2015"]
[]
["1.  Installation Instructions:",null,null,null,"2.  Setup Instructions: ",null,null,null,null,"3.  Navigation"]
[]
[null,"Make sure this Workbook is saved onto a network drive",null,null,null,"Enter your Organisation name",null,null,null,null,"Go to Baseline Workforce Staffing Profile:"]
[null,"Click onto yellow button at top of worksheet to enable macros.",null,null,null,"Setup Sites List",null,null,null,null,"Go to Quantification Data:"]
[null,null,null,null,null,"Complete Baseline Workforce Staffing Profile",null,null,null,null,"Go To Reports Section"]
[null,null,null,null,null,"Complete Quantification Data",null,null,null,null,"Go To Clinical Incidents and Waitlist"]
[null,null,null,null,null,"Enter Relevant Data into FTE% Worksheet",null,null,null,null,"Go To % FTE Calculation Screen"]
[]
["About this VAWM tool",null,null,null,null,null,null,null,null,"Using the Pivot Table Reports"]
[]
[]
[]
[]
[]
[]
[]
["How to use the VAWM tool"]
[]
[]
[]
[]
[]
[]
[]
[]
[]
[]
[]
[]
[]
[]
[]
["Additional Help"]
[]
[]
[]
[]
[]
[]
[]
[]
[]
[]
[]
[]
[]
[]
[]
[]
[]
[null,null,null,null,null,null,null,null,null,null,null,null,null,null,null,null,null,null,null,"Workforce Staffing Profile Data Reports",null,null,null,null,null,null,null,null,null,null,null,null,null,null,null,null,null,null,null,null,null,null,"Quantification Data Report"]
[]
[null,null,null,null,null,null,null,null,null,null,null,null,null,null,null,null,null,null,null,"Total FTE and Physical Number of Staff",null,null,null,null,"AHA/AHP % of Allied Health Workforce by Site",null,null,null,null,null,"Clinical Incidents",null,null,null,null,"Number of Weeks on Waitlist",null,null,null,null,null,null,"AHA Time Identified by Site and Program by Discipline"]
[null,null,null,null,null,null,null,null,null,null,null,null,null,null,null,null,null,null,null,"Row Labels","Total FTE ","Physical Number of Staff ",null,null,"% of Total FTE","Type",null,null,null,null,"Total Incidents","Level of Risk",null,null,null,"Waitlist","Total of Number of weeks"]
[null,null,null,null,null,null,null,null,null,null,null,null,null,null,null,null,null,null,null,"Grand Total",null,null,null,null,"Site","(blank)","Grand Total",null,null,null,"Clinical Incidents","(blank)","Grand Total",null,null,"(blank)",null,null,null,null,null,null,null,"Discipline"]
[null,null,null,null,null,null,null,null,null,null,null,null,null,null,null,null,null,null,null,null,null,null,null,null,"(blank)",{"$error":"#DIV/0!"},{"$error":"#DIV/0!"},null,null,null,"(blank)",null,null,null,null,"Grand Total",null,null,null,null,null,null,null,"(blank)",null,"Total Converted Hours ","Total FTE "]
[null,null,null,null,null,null,null,null,null,null,null,null,null,null,null,null,null,null,null,null,null,null,null,null,"Grand Total",{"$error":"#DIV/0!"},{"$error":"#DIV/0!"},null,null,null,"Grand Total",null,null,null,null,null,null,null,null,null,null,null,"Site Name and Program","Converted Hours ","FTE "]
[null,null,null,null,null,null,null,null,null,null,null,null,null,null,null,null,null,null,null,null,null,null,null,null,null,null,null,null,null,null,null,null,null,null,null,null,null,null,null,null,null,null,"(blank)",0,0,0,0]
[null,null,null,null,null,null,null,null,null,null,null,null,null,null,null,null,null,null,null,null,null,null,null,null,null,null,null,null,null,null,null,null,null,null,null,null,null,null,null,null,null,null,"Grand Total",0,0,0,0]

{"sheet":"Baseline Workforce Staffing ","index":1,"n_rows":2000,"n_cols":20,"rows_kept":2000,"cut":false,"hidden":false,"merged":[[1,0,1,1],[0,0,0,1],[1,5,1,10]]}
["Basesline Workforce Staffing Profile",null,"Use Filter Arrows to filter data."]
[{"$f":"CentreName","v":0},null,"Current Budgeted FTE:",{"$f":"SUM(L4:L2000)","v":0},null,"Current Budgeted FTE for Filtered Data: ",null,null,null,null,null,{"$f":"SUBTOTAL(109,L4:L2000)","v":0},null,null,"Vacancy Data"]
["Site Name","Program Name","Team Name","Discipline Name","Type","Grade\n1","Grade\n2","Grade\n3","Grade\n4","Grade\n5","Manager","Total FTE","Physical Number of Staff","Comments","Vacancy Grade 1","Vacancy Grade 2","Vacancy Grade 3","Vacancy Grade 4","Vacancy Grade 5","Total FTE of Vacancy"]
[null,null,null,null,null,null,null,null,null,null,null,{"$f":"IF(A4=\"\",0,SUM(F4:K4))","v":0},0,null,null,null,null,null,null,{"$f":"SUM(O4:S4)","v":0}]
[null,null,null,null,null,null,null,null,null,null,null,0,0,null,null,null,null,null,null,0]
[null,null,null,null,null,null,null,null,null,null,null,0,0,null,null,null,null,null,null,0]
[null,null,null,null,null,null,null,null,null,null,null,0,0,null,null,null,null,null,null,0]
[null,null,null,null,null,null,null,null,null,null,null,0,0,null,null,null,null,null,null,{"$f":"SUM(O8:S8)","v":0}]
[null,null,null,null,null,null,null,null,null,null,null,0,0,null,null,null,null,null,null,0]
[null,null,null,null,null,null,null,null,null,null,null,0,0,null,null,null,null,null,null,0]
[null,null,null,null,null,null,null,null,null,null,null,0,0,null,null,null,null,null,null,0]
[null,null,null,null,null,null,null,null,null,null,null,0,0,null,null,null,null,null,null,0]
[null,null,null,null,null,null,null,null,null,null,null,0,1,null,null,null,null,null,null,0]
[null,null,null,null,null,null,null,null,null,null,null,0,1,null,null,null,null,null,null,0]
[null,null,null,null,null,null,null,null,null,null,null,0,1,null,null,null,null,null,null,0]
[null,null,null,null,null,null,null,null,null,null,null,0,1,null,null,null,null,null,null,0]
[null,null,null,null,null,null,null,null,null,null,null,0,1,null,null,null,null,null,null,0]
[null,null,null,null,null,null,null,null,null,null,null,0,1,null,null,null,null,null,null,0]
[null,null,null,null,null,null,null,null,null,null,null,0,1,null,null,null,null,null,null,0]
[null,null,null,null,null,null,null,null,null,null,null,0,1,null,null,null,null,null,null,0]
[null,null,null,null,null,null,null,null,null,null,null,0,1,null,null,null,null,null,null,0]
[null,null,null,null,null,null,null,null,null,null,null,0,1,null,null,null,null,null,null,0]
[null,null,null,null,null,null,null,null,null,null,null,0,1,null,null,null,null,null,null,0]
[null,null,null,null,null,null,null,null,null,null,null,0,1,null,null,null,null,null,null,0]
[null,null,null,null,null,null,null,null,null,null,null,0,1,null,null,null,null,null,null,0]
[null,null,null,null,null,null,null,null,null,null,null,0,1,null,null,null,null,null,null,0]
[null,null,null,null,null,null,null,null,null,null,null,0,1,null,null,null,null,null,null,0]
[null,null,null,null,null,null,null,null,null,null,null,0,1,null,null,null,null,null,null,0]
[null,null,null,null,null,null,null,null,null,null,null,0,1,null,null,null,null,null,null,0]
[null,null,null,null,null,null,null,null,null,null,null,0,1,null,null,null,null,null,null,0]
[null,null,null,null,null,null,null,null,null,null,null,0,1,null,null,null,null,null,null,0]
[null,null,null,null,null,null,null,null,null,null,null,0,1,null,null,null,null,null,null,0]
[null,null,null,null,null,null,null,null,null,null,null,0,1,null,null,null,null,null,null,0]
[null,null,null,null,null,null,null,null,null,null,null,0,1,null,null,null,null,null,null,0]
[null,null,null,null,null,null,null,null,null,null,null,0,1,null,null,null,null,null,null,0]
[null,null,null,null,null,null,null,null,null,null,null,0,1,null,null,null,null,null,null,0]
[null,null,null,null,null,null,null,null,null,null,null,0,1,null,null,null,null,null,null,0]
[null,null,null,null,null,null,null,null,null,null,null,0,1,null,null,null,null,null,null,0]
[null,null,null,null,null,null,null,null,null,null,null,0,1,"Aged care stream",null,null,null,null,null,0]
[null,null,null,null,null,null,null,null,null,null,null,0,1,null,null,null,null,null,null,0]
[null,null,null,null,null,null,null,null,null,null,null,0,1,null,null,null,null,null,null,0]
[null,null,null,null,null,null,null,null,null,null,null,0,1,null,null,null,null,null,null,0]
[null,null,null,null,null,null,null,null,null,null,null,0,1,null,null,null,null,null,null,0]
[null,null,null,null,null,null,null,null,null,null,null,0,1,null,null,null,null,null,null,0]
[null,null,null,null,null,null,null,null,null,null,null,0,1,null,null,null,null,null,null,0]
[null,null,null,null,null,null,null,null,null,null,null,0,1,null,null,null,null,null,null,0]
[null,null,null,null,null,null,null,null,null,null,null,0,1,null,null,null,null,null,null,0]
[null,null,null,null,null,null,null,null,null,null,null,0,1,null,null,null,null,null,null,0]
[null,null,null,null,null,null,null,null,null,null,null,0,1,null,null,null,null,null,null,0]
[null,null,null,null,null,null,null,null,null,null,null,0,1,null,null,null,null,null,null,0]
[null,null,null,null,null,null,null,null,null,null,null,0,1,"Rehab A",null,null,null,null,null,0]
[null,null,null,null,null,null,null,null,null,null,null,0,1,"Rehab A",null,null,null,null,null,0]
[null,null,null,null,null,null,null,null,null,null,null,{"$f":"IF(A53=\"\",0,SUM(F53:K53))","v":0},1,"Rehab A",null,null,null,null,null,{"$f":"SUM(O53:S53)","v":0}]
[null,null,null,null,null,null,null,null,null,null,null,0,1,"Rehab A",null,null,null,null,null,0]
[null,null,null,null,null,null,null,null,null,null,null,0,1,"Rehab A",null,null,null,null,null,0]
[null,null,null,null,null,null,null,null,null,null,null,0,1,"Rehab B",null,null,null,null,null,0]
[null,null,null,null,null,null,null,null,null,null,null,0,1,"Rehab B",null,null,null,null,null,0]
[null,null,null,null,null,null,null,null,null,null,null,0,1,"Rehab B",null,null,null,null,null,0]
[null,null,null,null,null,null,null,null,null,null,null,0,1,"Rehab B",null,null,null,null,null,0]
[null,null,null,null,null,null,null,null,null,null,null,0,1,"Rehab C",null,null,null,null,null,0]
[null,null,null,null,null,null,null,null,null,null,null,0,1,"Rehab C",null,null,null,null,null,0]
[null,null,null,null,null,null,null,null,null,null,null,0,1,"Rehab C",null,null,null,null,null,0]
[null,null,null,null,null,null,null,null,null,null,null,0,1,"Rehab C",null,null,null,null,null,0]
[null,null,null,null,null,null,null,null,null,null,null,0,1,null,null,null,null,null,null,0]
[null,null,null,null,null,null,null,null,null,null,null,{"$f":"IF(A65=\"\",0,SUM(F65:K65))","v":0},1,null,null,null,null,null,null,{"$f":"SUM(O65:S65)","v":0}]
[null,null,null,null,null,null,null,null,null,null,null,0,1,null,null,null,null,null,null,0]
[null,null,null,null,null,null,null,null,null,null,null,0,1,null,null,null,null,null,null,0]
[null,null,null,null,null,null,null,null,null,null,null,0,1,null,null,null,null,null,null,0]
[null,null,null,null,null,null,null,null,null,null,null,0,1,null,null,null,null,null,null,0]
[null,null,null,null,null,null,null,null,null,null,null,0,2,null,null,null,null,null,null,0]
[null,null,null,null,null,null,null,null,null,null,null,0,1,"Driving Rehab",null,null,null,null,null,0]
[null,null,null,null,null,null,null,null,null,null,null,0,1,"Driving Rehab",null,null,null,null,null,0]
[null,null,null,null,null,null,null,null,null,null,null,0,1,null,null,null,null,null,null,0]
[null,null,null,null,null,null,null,null,null,null,null,0,1,null,null,null,null,null,null,0]
[null,null,null,null,null,null,null,null,null,null,null,0,1,null,null,null,null,null,null,0]
[null,null,null,null,null,null,null,null,null,null,null,0,1,null,null,null,null,null,null,0]
[null,null,null,null,null,null,null,null,null,null,null,0,1,null,null,null,null,null,null,0]
[null,null,null,null,null,null,null,null,null,null,null,0,1,null,null,null,null,null,null,0]
[null,null,null,null,null,null,null,null,null,null,null,0,1,null,null,null,null,null,null,0]
[null,null,null,null,null,null,null,null,null,null,null,0,1,null,null,null,null,null,null,0]
[null,null,null,null,null,null,null,null,null,null,null,0,1,null,null,null,null,null,null,0]
[null,null,null,null,null,null,null,null,null,null,null,0,1,null,null,null,null,null,null,0]
[null,null,null,null,null,null,null,null,null,null,null,0,1,null,null,null,null,null,null,0]
[null,null,null,null,null,null,null,null,null,null,null,0,1,null,null,null,null,null,null,0]
[null,null,null,null,null,null,null,null,null,null,null,0,1,null,null,null,null,null,null,0]
[null,null,null,null,null,null,null,null,null,null,null,0,1,null,null,null,null,null,null,0]
[null,null,null,null,null,null,null,null,null,null,null,0,1,null,null,null,null,null,null,0]
[null,null,null,null,null,null,null,null,null,null,null,0,1,null,null,null,null,null,null,0]
[null,null,null,null,null,null,null,null,null,null,null,0,1,null,null,null,null,null,null,0]
[null,null,null,null,null,null,null,null,null,null,null,0,1,null,null,null,null,null,null,0]
[null,null,null,null,null,null,null,null,null,null,null,0,1,null,null,null,null,null,null,0]
[null,null,null,null,null,null,null,null,null,null,null,0,1,null,null,null,null,null,null,0]
[null,null,null,null,null,null,null,null,null,null,null,0,1,null,null,null,null,null,null,0]
[null,null,null,null,null,null,null,null,null,null,null,0,1,null,null,null,null,null,null,0]
[null,null,null,null,null,null,null,null,null,null,null,0,1,null,null,null,null,null,null,0]
[null,null,null,null,null,null,null,null,null,null,null,0,1,null,null,null,null,null,null,0]
[null,null,null,null,null,null,null,null,null,null,null,0,1,null,null,null,null,null,null,0]
[null,null,null,null,null,null,null,null,null,null,null,0,1,null,null,null,null,null,null,0]
[null,null,null,null,null,null,null,null,null,null,null,0,1,null,null,null,null,null,null,0]
[null,null,null,null,null,null,null,null,null,null,null,0,1,null,null,null,null,null,null,0]
[null,null,null,null,null,null,null,null,null,null,null,0,1,null,null,null,null,null,null,0]
[null,null,null,null,null,null,null,null,null,null,null,0,1,null,null,null,null,null,null,0]
[null,null,null,null,null,null,null,null,null,null,null,0,1,null,null,null,null,null,null,0]
[null,null,null,null,null,null,null,null,null,null,null,0,1,null,null,null,null,null,null,0]
[null,null,null,null,null,null,null,null,null,null,null,0,1,null,null,null,null,null,null,0]
[null,null,null,null,null,null,null,null,null,null,null,0,1,null,null,null,null,null,null,0]
[null,null,null,null,null,null,null,null,null,null,null,0,1,null,null,null,null,null,null,0]
[null,null,null,null,null,null,null,null,null,null,null,0,1,null,null,null,null,null,null,0]
[null,null,null,null,null,null,null,null,null,null,null,0,1,null,null,null,null,null,null,0]
[null,null,null,null,null,null,null,null,null,null,null,0,1,null,null,null,null,null,null,0]
[null,null,null,null,null,null,null,null,null,null,null,0,1,null,null,null,null,null,null,0]
[null,null,null,null,null,null,null,null,null,null,null,0,1,null,null,null,null,null,null,0]
[null,null,null,null,null,null,null,null,null,null,null,0,1,null,null,null,null,null,null,0]
[null,null,null,null,null,null,null,null,null,null,null,0,1,null,null,null,null,null,null,0]
[null,null,null,null,null,null,null,null,null,null,null,0,1,null,null,null,null,null,null,0]
[null,null,null,null,null,null,null,null,null,null,null,0,1,null,null,null,null,null,null,0]
[null,null,null,null,null,null,null,null,null,null,null,0,1,null,null,null,null,null,null,0]
[null,null,null,null,null,null,null,null,null,null,null,0,1,null,null,null,null,null,null,0]
[null,null,null,null,null,null,null,null,null,null,null,0,1,null,null,null,null,null,null,0]
[null,null,null,null,null,null,null,null,null,null,null,0,1,null,null,null,null,null,null,0]
[null,null,null,null,null,null,null,null,null,null,null,0,1,null,null,null,null,null,null,0]
[null,null,null,null,null,null,null,null,null,null,null,0,1,null,null,null,null,null,null,0]
[null,null,null,null,null,null,null,null,null,null,null,0,9,null,null,null,null,null,null,0]
[null,null,null,null,null,null,null,null,null,null,null,0,null,null,null,null,null,null,null,0]
[null,null,null,null,null,null,null,null,null,null,null,0,2,null,null,null,null,null,null,0]
[null,null,null,null,null,null,null,null,null,null,null,0,null,null,null,null,null,null,null,0]
[null,null,null,null,null,null,null,null,null,null,null,0,null,null,null,null,null,null,null,0]
[null,null,null,null,null,null,null,null,null,null,null,0,null,null,null,null,null,null,null,0]
[null,null,null,null,null,null,null,null,null,null,null,{"$f":"IF(A129=\"\",0,SUM(F129:K129))","v":0},null,null,null,null,null,null,null,{"$f":"SUM(O129:S129)","v":0}]
[null,null,null,null,null,null,null,null,null,null,null,0,null,null,null,null,null,null,null,0]
[null,null,null,null,null,null,null,null,null,null,null,0,null,null,null,null,null,null,null,0]
[null,null,null,null,null,null,null,null,null,null,null,0,13,null,1,null,null,null,null,1]
[null,null,null,null,null,null,null,null,null,null,null,0,1,null,null,null,null,null,null,0]
[null,null,null,null,null,null,null,null,null,null,null,0,1,null,null,null,null,null,null,0]
[null,null,null,null,null,null,null,null,null,null,null,0,7,null,null,null,null,null,null,0]
[null,null,null,null,null,null,null,null,null,null,null,0,1,null,null,null,null,null,null,0]
[null,null,null,null,null,null,null,null,null,null,null,0,1,null,null,null,null,null,null,0]
[null,null,null,null,null,null,null,null,null,null,null,0,1,null,null,null,null,null,null,0]
[null,null,null,null,null,null,null,null,null,null,null,0,1,null,null,null,null,null,null,0]
[null,null,null,null,null,null,null,null,null,null,null,0,1,null,null,null,null,null,null,0]
[null,null,null,null,null,null,null,null,null,null,null,0,1,null,null,null,null,null,null,0]
[null,null,null,null,null,null,null,null,null,null,null,0,1,null,null,null,null,null,null,0]
[null,null,null,null,null,null,null,null,null,null,null,0,1,null,null,null,null,null,null,0]
[null,null,null,null,null,null,null,null,null,null,null,0,1,null,null,null,null,null,null,0]
[null,null,null,null,null,null,null,null,null,null,null,0,1,null,null,null,null,null,null,0]
[null,null,null,null,null,null,null,null,null,null,null,0,1,null,null,null,null,null,null,0]
[null,null,null,null,null,null,null,null,null,null,null,0,1,null,null,null,null,null,null,0]
[null,null,null,null,null,null,null,null,null,null,null,0,1,null,null,null,null,null,null,0]
[null,null,null,null,null,null,null,null,null,null,null,0,1,null,null,null,null,null,null,0]
[null,null,null,null,null,null,null,null,null,null,null,0,1,null,null,null,null,null,null,0]
[null,null,null,null,null,null,null,null,null,null,null,0,1,null,null,null,null,null,null,0]
[null,null,null,null,null,null,null,null,null,null,null,0,1,null,null,null,null,null,null,0]
[null,null,null,null,null,null,null,null,null,null,null,0,1,null,null,null,null,null,null,0]
[null,null,null,null,null,null,null,null,null,null,null,0,2,null,null,null,null,null,null,0]
[null,null,null,null,null,null,null,null,null,null,null,0,1,null,null,null,null,null,null,0]
[null,null,null,null,null,null,null,null,null,null,null,0,1,null,null,null,null,null,null,0]
[null,null,null,null,null,null,null,null,null,null,null,0,1,null,null,null,null,null,null,0]
[null,null,null,null,null,null,null,null,null,null,null,0,1,null,null,null,null,null,null,0]
[null,null,null,null,null,null,null,null,null,null,null,0,1,null,null,null,null,null,null,0]
[null,null,null,null,null,null,null,null,null,null,null,0,1,null,null,null,null,null,null,0]
[null,null,null,null,null,null,null,null,null,null,null,0,1,null,null,null,null,null,null,0]
[null,null,null,null,null,null,null,null,null,null,null,0,1,null,null,null,null,null,null,0]
[null,null,null,null,null,null,null,null,null,null,null,0,1,null,null,null,null,null,null,0]
[null,null,null,null,null,null,null,null,null,null,null,0,1,null,null,null,null,null,null,0]
[null,null,null,null,null,null,null,null,null,null,null,0,1,null,null,null,null,null,null,0]
[null,null,null,null,null,null,null,null,null,null,null,0,1,null,null,null,null,null,null,0]
[null,null,null,null,null,null,null,null,null,null,null,0,1,null,null,null,null,null,null,0]
[null,null,null,null,null,null,null,null,null,null,null,0,1,null,null,null,null,null,null,0]
[null,null,null,null,null,null,null,null,null,null,null,0,1,null,null,null,null,null,null,0]
[null,null,null,null,null,null,null,null,null,null,null,0,1,null,null,null,null,null,null,0]
[null,null,null,null,null,null,null,null,null,null,null,0,1,null,null,null,null,null,null,0]
[null,null,null,null,null,null,null,null,null,null,null,0,1,null,null,null,null,null,null,0]
[null,null,null,null,null,null,null,null,null,null,null,0,1,null,null,null,null,null,null,0]
[null,null,null,null,null,null,null,null,null,null,null,0,1,null,null,null,null,null,null,0]
[null,null,null,null,null,null,null,null,null,null,null,0,1,null,null,null,null,null,null,0]
[null,null,null,null,null,null,null,null,null,null,null,0,1,null,null,null,null,null,null,0]
[null,null,null,null,null,null,null,null,null,null,null,0,1,null,null,null,null,null,null,0]
[null,null,null,null,null,null,null,null,null,null,null,0,1,null,null,null,null,null,null,0]
[null,null,null,null,null,null,null,null,null,null,null,0,1,null,null,null,null,null,null,0]
[null,null,null,null,null,null,null,null,null,null,null,0,1,null,null,null,null,null,null,0]
[null,null,null,null,null,null,null,null,null,null,null,0,1,null,null,null,null,null,null,0]
[null,null,null,null,null,null,null,null,null,null,null,0,1,null,null,null,null,null,null,0]
[null,null,null,null,null,null,null,null,null,null,null,0,1,null,null,null,null,null,null,0]
[null,null,null,null,null,null,null,null,null,null,null,0,1,null,null,null,null,null,null,0]
[null,null,null,null,null,null,null,null,null,null,null,0,1,null,null,null,null,null,null,0]
[null,null,null,null,null,null,null,null,null,null,null,0,1,null,null,null,null,null,null,0]
[null,null,null,null,null,null,null,null,null,null,null,0,1,null,null,null,null,null,null,0]
[null,null,null,null,null,null,null,null,null,null,null,0,1,null,null,null,null,null,null,0]
[null,null,null,null,null,null,null,null,null,null,null,0,1,null,null,null,null,null,null,0]
[null,null,null,null,null,null,null,null,null,null,null,0,1,null,null,null,null,null,null,0]
[null,null,null,null,null,null,null,null,null,null,null,0,1,null,null,null,null,null,null,0]
[null,null,null,null,null,null,null,null,null,null,null,0,1,null,null,null,null,null,null,0]
[null,null,null,null,null,null,null,null,null,null,null,{"$f":"IF(A193=\"\",0,SUM(F193:K193))","v":0},1,null,null,null,null,null,null,{"$f":"SUM(O193:S193)","v":0}]
[null,null,null,null,null,null,null,null,null,null,null,0,1,null,null,null,null,null,null,0]
[null,null,null,null,null,null,null,null,null,null,null,0,1,null,null,null,null,null,null,0]
[null,null,null,null,null,null,null,null,null,null,null,0,null,null,null,null,null,null,null,0]
[null,null,null,null,null,null,null,null,null,null,null,0,null,null,null,null,null,null,null,0]
[null,null,null,null,null,null,null,null,null,null,null,0,null,null,null,null,null,null,null,0]
[null,null,null,null,null,null,null,null,null,null,null,0,null,null,null,null,null,null,null,0]
[null,null,null,null,null,null,null,null,null,null,null,0,null,null,null,null,null,null,null,0]
[null,null,null,null,null,null,null,null,null,null,null,0,null,null,null,null,null,null,null,0]
[null,null,null,null,null,null,null,null,null,null,null,0,null,null,null,null,null,null,null,0]
[null,null,null,null,null,null,null,null,null,null,null,0,null,null,null,null,null,null,null,0]
[null,null,null,null,null,null,null,null,null,null,null,0,null,null,null,null,null,null,null,0]
[null,null,null,null,null,null,null,null,null,null,null,0,null,null,null,null,null,null,null,0]
[null,null,null,null,null,null,null,null,null,null,null,0,1,null,null,null,null,null,null,0]
[null,null,null,null,null,null,null,null,null,null,null,0,1,null,null,null,null,null,null,0]
[null,null,null,null,null,null,null,null,null,null,null,0,1,null,null,null,null,null,null,0]
[null,null,null,null,null,null,null,null,null,null,null,0,1,null,null,null,null,null,null,0]
[null,null,null,null,null,null,null,null,null,null,null,0,1,null,null,null,null,null,null,0]
[null,null,null,null,null,null,null,null,null,null,null,0,1,null,null,null,null,null,null,0]
[null,null,null,null,null,null,null,null,null,null,null,0,1,null,null,null,null,null,null,0]
[null,null,null,null,null,null,null,null,null,null,null,0,1,null,null,null,null,null,null,0]
[null,null,null,null,null,null,null,null,null,null,null,0,1,null,null,null,null,null,null,0]
[null,null,null,null,null,null,null,null,null,null,null,0,1,null,null,null,null,null,null,0]
[null,null,null,null,null,null,null,null,null,null,null,0,1,null,null,null,null,null,null,0]
[null,null,null,null,null,null,null,null,null,null,null,0,1,null,null,null,null,null,null,0]
[null,null,null,null,null,null,null,null,null,null,null,0,1,null,null,null,null,null,null,0]
[null,null,null,null,null,null,null,null,null,null,null,0,1,null,null,null,null,null,null,0]
[null,null,null,null,null,null,null,null,null,null,null,0,1,null,null,null,null,null,null,0]
[null,null,null,null,null,null,null,null,null,null,null,0,1,null,null,null,null,null,null,0]
[null,null,null,null,null,null,null,null,null,null,null,0,1,null,null,null,null,null,null,0]
[null,null,null,null,null,null,null,null,null,null,null,0,1,null,null,null,null,null,null,0]
[null,null,null,null,null,null,null,null,null,null,null,0,1,null,null,null,null,null,null,0]
[null,null,null,null,null,null,null,null,null,null,null,0,1,null,null,null,null,null,null,0]
[null,null,null,null,null,null,null,null,null,null,null,0,1,null,null,null,null,null,null,0]
[null,null,null,null,null,null,null,null,null,null,null,0,2,null,null,null,null,null,null,0]
[null,null,null,null,null,null,null,null,null,null,null,0,2,null,null,null,null,null,null,0]
[null,null,null,null,null,null,null,null,null,null,null,0,1,null,null,null,null,null,null,0]
[null,null,null,null,null,null,null,null,null,null,null,0,1,null,null,null,null,null,null,0]
[null,null,null,null,null,null,null,null,null,null,null,0,2,null,null,null,null,null,null,0]
[null,null,null,null,null,null,null,null,null,null,null,0,null,null,null,null,null,null,null,0]
[null,null,null,null,null,null,null,null,null,null,null,0,null,null,null,null,null,null,null,0]
[null,null,null,null,null,null,null,null,null,null,null,0,null,null,null,null,null,null,null,0]
[null,null,null,null,null,null,null,null,null,null,null,0,null,null,null,null,null,null,null,0]
[null,null,null,null,null,null,null,null,null,null,null,0,null,null,null,null,null,null,null,0]
[null,null,null,null,null,null,null,null,null,null,null,0,null,null,null,null,null,null,null,0]
[null,null,null,null,null,null,null,null,null,null,null,0,null,null,null,null,null,null,null,0]
[null,null,null,null,null,null,null,null,null,null,null,0,null,null,null,null,null,null,null,0]
[null,null,null,null,null,null,null,null,null,null,null,0,null,null,null,null,null,null,null,0]
[null,null,null,null,null,null,null,null,null,null,null,0,null,null,null,null,null,null,null,0]
[null,null,null,null,null,null,null,null,null,null,null,0,null,null,null,null,null,null,null,0]
[null,null,null,null,null,null,null,null,null,null,null,0,null,null,null,null,null,null,null,0]
[null,null,null,null,null,null,null,null,null,null,null,0,null,null,null,null,null,null,null,0]
[null,null,null,null,null,null,null,null,null,null,null,0,null,null,null,null,null,null,null,0]
[null,null,null,null,null,null,null,null,null,null,null,0,null,null,null,null,null,null,null,0]
[null,null,null,null,null,null,null,null,null,null,null,0,null,null,null,null,null,null,null,0]
[null,null,null,null,null,null,null,null,null,null,null,0,null,null,null,null,null,null,null,0]
[null,null,null,null,null,null,null,null,null,null,null,0,null,null,null,null,null,null,null,0]
[null,null,null,null,null,null,null,null,null,null,null,0,null,null,null,null,null,null,null,0]
[null,null,null,null,null,null,null,null,null,null,null,0,null,null,null,null,null,null,null,0]
[null,null,null,null,null,null,null,null,null,null,null,0,null,null,null,null,null,null,null,0]
[null,null,null,null,null,null,null,null,null,null,null,0,null,null,null,null,null,null,null,0]
[null,null,null,null,null,null,null,null,null,null,null,0,null,null,null,null,null,null,null,0]
[null,null,null,null,null,null,null,null,null,null,null,0,null,null,null,null,null,null,null,0]
[null,null,null,null,null,null,null,null,null,null,null,0,null,null,null,null,null,null,null,0]
[null,null,null,null,null,null,null,null,null,null,null,{"$f":"IF(A257=\"\",0,SUM(F257:K257))","v":0},null,null,null,null,null,null,null,{"$f":"SUM(O257:S257)","v":0}]
[null,null,null,null,null,null,null,null,null,null,null,0,null,null,null,null,null,null,null,0]
[null,null,null,null,null,null,null,null,null,null,null,0,null,null,null,null,null,null,null,0]
[null,null,null,null,null,null,null,null,null,null,null,0,null,null,null,null,null,null,null,0]
[null,null,null,null,null,null,null,null,null,null,null,0,null,null,null,null,null,null,null,0]
[null,null,null,null,null,null,null,null,null,null,null,0,null,null,null,null,null,null,null,0]
[null,null,null,null,null,null,null,null,null,null,null,0,null,null,null,null,null,null,null,0]
[null,null,null,null,null,null,null,null,null,null,null,0,null,null,null,null,null,null,null,0]
[null,null,null,null,null,null,null,null,null,null,null,0,null,null,null,null,null,null,null,0]
[null,null,null,null,null,null,null,null,null,null,null,0,null,null,null,null,null,null,null,0]
[null,null,null,null,null,null,null,null,null,null,null,0,null,null,null,null,null,null,null,0]
[null,null,null,null,null,null,null,null,null,null,null,0,null,null,null,null,null,null,null,0]
[null,null,null,null,null,null,null,null,null,null,null,0,null,null,null,null,null,null,null,0]
[null,null,null,null,null,null,null,null,null,null,null,0,null,null,null,null,null,null,null,0]
[null,null,null,null,null,null,null,null,null,null,null,0,null,null,null,null,null,null,null,0]
[null,null,null,null,null,null,null,null,null,null,null,0,null,null,null,null,null,null,null,0]
[null,null,null,null,null,null,null,null,null,null,null,0,null,null,null,null,null,null,null,0]
[null,null,null,null,null,null,null,null,null,null,null,0,null,null,null,null,null,null,null,0]
[null,null,null,null,null,null,null,null,null,null,null,0,null,null,null,null,null,null,null,0]
[null,null,null,null,null,null,null,null,null,null,null,0,null,null,null,null,null,null,null,0]
[null,null,null,null,null,null,null,null,null,null,null,0,null,null,null,null,null,null,null,0]
[null,null,null,null,null,null,null,null,null,null,null,0,null,null,null,null,null,null,null,0]
[null,null,null,null,null,null,null,null,null,null,null,0,null,null,null,null,null,null,null,0]
[null,null,null,null,null,null,null,null,null,null,null,0,null,null,null,null,null,null,null,0]
[null,null,null,null,null,null,null,null,null,null,null,0,null,null,null,null,null,null,null,0]
[null,null,null,null,null,null,null,null,null,null,null,0,null,null,null,null,null,null,null,0]
[null,null,null,null,null,null,null,null,null,null,null,0,null,null,null,null,null,null,null,0]
[null,null,null,null,null,null,null,null,null,null,null,0,null,null,null,null,null,null,null,0]
[null,null,null,null,null,null,null,null,null,null,null,0,null,null,null,null,null,null,null,0]
[null,null,null,null,null,null,null,null,null,null,null,0,null,null,null,null,null,null,null,0]
[null,null,null,null,null,null,null,null,null,null,null,0,null,null,null,null,null,null,null,0]
[null,null,null,null,null,null,null,null,null,null,null,0,null,null,null,null,null,null,null,0]
[null,null,null,null,null,null,null,null,null,null,null,0,null,null,null,null,null,null,null,0]
[null,null,null,null,null,null,null,null,null,null,null,0,null,null,null,null,null,null,null,0]
[null,null,null,null,null,null,null,null,null,null,null,0,null,null,null,null,null,null,null,0]
[null,null,null,null,null,null,null,null,null,null,null,0,null,null,null,null,null,null,null,0]
[null,null,null,null,null,null,null,null,null,null,null,0,null,null,null,null,null,null,null,0]
[null,null,null,null,null,null,null,null,null,null,null,0,null,null,null,null,null,null,null,0]
[null,null,null,null,null,null,null,null,null,null,null,0,null,null,null,null,null,null,null,0]
[null,null,null,null,null,null,null,null,null,null,null,0,null,null,null,null,null,null,null,0]
[null,null,null,null,null,null,null,null,null,null,null,0,null,null,null,null,null,null,null,0]
[null,null,null,null,null,null,null,null,null,null,null,0,null,null,null,null,null,null,null,0]
[null,null,null,null,null,null,null,null,null,null,null,0,null,null,null,null,null,null,null,0]
[null,null,null,null,null,null,null,null,null,null,null,0,null,null,null,null,null,null,null,0]
[null,null,null,null,null,null,null,null,null,null,null,0,null,null,null,null,null,null,null,0]
[null,null,null,null,null,null,null,null,null,null,null,0,null,null,null,null,null,null,null,0]
[null,null,null,null,null,null,null,null,null,null,null,0,null,null,null,null,null,null,null,0]
[null,null,null,null,null,null,null,null,null,null,null,0,null,null,null,null,null,null,null,0]
[null,null,null,null,null,null,null,null,null,null,null,0,null,null,null,null,null,null,null,0]
[null,null,null,null,null,null,null,null,null,null,null,0,null,null,null,null,null,null,null,0]
[null,null,null,null,null,null,null,null,null,null,null,0,null,null,null,null,null,null,null,0]
[null,null,null,null,null,null,null,null,null,null,null,0,null,null,null,null,null,null,null,0]
[null,null,null,null,null,null,null,null,null,null,null,0,null,null,null,null,null,null,null,0]
[null,null,null,null,null,null,null,null,null,null,null,0,null,null,null,null,null,null,null,0]
[null,null,null,null,null,null,null,null,null,null,null,0,null,null,null,null,null,null,null,0]
[null,null,null,null,null,null,null,null,null,null,null,0,null,null,null,null,null,null,null,0]
[null,null,null,null,null,null,null,null,null,null,null,0,null,null,null,null,null,null,null,0]
[null,null,null,null,null,null,null,null,null,null,null,0,null,null,null,null,null,null,null,0]
[null,null,null,null,null,null,null,null,null,null,null,0,null,null,null,null,null,null,null,0]
[null,null,null,null,null,null,null,null,null,null,null,0,null,null,null,null,null,null,null,0]
[null,null,null,null,null,null,null,null,null,null,null,0,null,null,null,null,null,null,null,0]
[null,null,null,null,null,null,null,null,null,null,null,0,null,null,null,null,null,null,null,0]
[null,null,null,null,null,null,null,null,null,null,null,0,null,null,null,null,null,null,null,0]
[null,null,null,null,null,null,null,null,null,null,null,0,null,null,null,null,null,null,null,0]
[null,null,null,null,null,null,null,null,null,null,null,{"$f":"IF(A321=\"\",0,SUM(F321:K321))","v":0},null,null,null,null,null,null,null,{"$f":"SUM(O321:S321)","v":0}]
[null,null,null,null,null,null,null,null,null,null,null,0,null,null,null,null,null,null,null,0]
[null,null,null,null,null,null,null,null,null,null,null,0,null,null,null,null,null,null,null,0]
[null,null,null,null,null,null,null,null,null,null,null,0,null,null,null,null,null,null,null,0]
[null,null,null,null,null,null,null,null,null,null,null,0,null,null,null,null,null,null,null,0]
[null,null,null,null,null,null,null,null,null,null,null,0,null,null,null,null,null,null,null,0]
[null,null,null,null,null,null,null,null,null,null,null,0,null,null,null,null,null,null,null,0]
[null,null,null,null,null,null,null,null,null,null,null,0,null,null,null,null,null,null,null,0]
[null,null,null,null,null,null,null,null,null,null,null,0,null,null,null,null,null,null,null,0]
[null,null,null,null,null,null,null,null,null,null,null,0,null,null,null,null,null,null,null,0]
[null,null,null,null,null,null,null,null,null,null,null,0,null,null,null,null,null,null,null,0]
[null,null,null,null,null,null,null,null,null,null,null,0,null,null,null,null,null,null,null,0]
[null,null,null,null,null,null,null,null,null,null,null,0,null,null,null,null,null,null,null,0]
[null,null,null,null,null,null,null,null,null,null,null,0,null,null,null,null,null,null,null,0]
[null,null,null,null,null,null,null,null,null,null,null,0,null,null,null,null,null,null,null,0]
[null,null,null,null,null,null,null,null,null,null,null,0,null,null,null,null,null,null,null,0]
[null,null,null,null,null,null,null,null,null,null,null,0,null,null,null,null,null,null,null,0]
[null,null,null,null,null,null,null,null,null,null,null,0,null,null,null,null,null,null,null,0]
[null,null,null,null,null,null,null,null,null,null,null,0,null,null,null,null,null,null,null,0]
[null,null,null,null,null,null,null,null,null,null,null,0,null,null,null,null,null,null,null,0]
[null,null,null,null,null,null,null,null,null,null,null,0,null,null,null,null,null,null,null,0]
[null,null,null,null,null,null,null,null,null,null,null,0,null,null,null,null,null,null,null,0]
[null,null,null,null,null,null,null,null,null,null,null,0,null,null,null,null,null,null,null,0]
[null,null,null,null,null,null,null,null,null,null,null,0,null,null,null,null,null,null,null,0]
[null,null,null,null,null,null,null,null,null,null,null,0,null,null,null,null,null,null,null,0]
[null,null,null,null,null,null,null,null,null,null,null,0,null,null,null,null,null,null,null,0]
[null,null,null,null,null,null,null,null,null,null,null,0,null,null,null,null,null,null,null,0]
[null,null,null,null,null,null,null,null,null,null,null,0,null,null,null,null,null,null,null,0]
[null,null,null,null,null,null,null,null,null,null,null,0,null,null,null,null,null,null,null,0]
[null,null,null,null,null,null,null,null,null,null,null,0,null,null,null,null,null,null,null,0]
[null,null,null,null,null,null,null,null,null,null,null,0,null,null,null,null,null,null,null,0]
[null,null,null,null,null,null,null,null,null,null,null,0,null,null,null,null,null,null,null,0]
[null,null,null,null,null,null,null,null,null,null,null,0,null,null,null,null,null,null,null,0]
[null,null,null,null,null,null,null,null,null,null,null,0,null,null,null,null,null,null,null,0]
[null,null,null,null,null,null,null,null,null,null,null,0,null,null,null,null,null,null,null,0]
[null,null,null,null,null,null,null,null,null,null,null,0,null,null,null,null,null,null,null,0]
[null,null,null,null,null,null,null,null,null,null,null,0,null,null,null,null,null,null,null,0]
[null,null,null,null,null,null,null,null,null,null,null,0,null,null,null,null,null,null,null,0]
[null,null,null,null,null,null,null,null,null,null,null,0,null,null,null,null,null,null,null,0]
[null,null,null,null,null,null,null,null,null,null,null,0,null,null,null,null,null,null,null,0]
[null,null,null,null,null,null,null,null,null,null,null,0,null,null,null,null,null,null,null,0]
[null,null,null,null,null,null,null,null,null,null,null,0,null,null,null,null,null,null,null,0]
[null,null,null,null,null,null,null,null,null,null,null,0,null,null,null,null,null,null,null,0]
[null,null,null,null,null,null,null,null,null,null,null,0,null,null,null,null,null,null,null,0]
[null,null,null,null,null,null,null,null,null,null,null,0,null,null,null,null,null,null,null,0]
[null,null,null,null,null,null,null,null,null,null,null,0,null,null,null,null,null,null,null,0]
[null,null,null,null,null,null,null,null,null,null,null,0,null,null,null,null,null,null,null,0]
[null,null,null,null,null,null,null,null,null,null,null,0,null,null,null,null,null,null,null,0]
[null,null,null,null,null,null,null,null,null,null,null,0,null,null,null,null,null,null,null,0]
[null,null,null,null,null,null,null,null,null,null,null,0,null,null,null,null,null,null,null,0]
[null,null,null,null,null,null,null,null,null,null,null,0,null,null,null,null,null,null,null,0]
[null,null,null,null,null,null,null,null,null,null,null,0,null,null,null,null,null,null,null,0]
[null,null,null,null,null,null,null,null,null,null,null,0,null,null,null,null,null,null,null,0]
[null,null,null,null,null,null,null,null,null,null,null,0,null,null,null,null,null,null,null,0]
[null,null,null,null,null,null,null,null,null,null,null,0,null,null,null,null,null,null,null,0]
[null,null,null,null,null,null,null,null,null,null,null,0,null,null,null,null,null,null,null,0]
[null,null,null,null,null,null,null,null,null,null,null,0,null,null,null,null,null,null,null,0]
[null,null,null,null,null,null,null,null,null,null,null,0,null,null,null,null,null,null,null,0]
[null,null,null,null,null,null,null,null,null,null,null,0,null,null,null,null,null,null,null,0]
[null,null,null,null,null,null,null,null,null,null,null,0,null,null,null,null,null,null,null,0]
[null,null,null,null,null,null,null,null,null,null,null,0,null,null,null,null,null,null,null,0]
[null,null,null,null,null,null,null,null,null,null,null,0,null,null,null,null,null,null,null,0]
[null,null,null,null,null,null,null,null,null,null,null,0,null,null,null,null,null,null,null,0]
[null,null,null,null,null,null,null,null,null,null,null,0,null,null,null,null,null,null,null,0]
[null,null,null,null,null,null,null,null,null,null,null,{"$f":"IF(A385=\"\",0,SUM(F385:K385))","v":0},null,null,null,null,null,null,null,{"$f":"SUM(O385:S385)","v":0}]
[null,null,null,null,null,null,null,null,null,null,null,0,null,null,null,null,null,null,null,0]
[null,null,null,null,null,null,null,null,null,null,null,0,null,null,null,null,null,null,null,0]
[null,null,null,null,null,null,null,null,null,null,null,0,null,null,null,null,null,null,null,0]
[null,null,null,null,null,null,null,null,null,null,null,0,null,null,null,null,null,null,null,0]
[null,null,null,null,null,null,null,null,null,null,null,0,null,null,null,null,null,null,null,0]
[null,null,null,null,null,null,null,null,null,null,null,0,null,null,null,null,null,null,null,0]
[null,null,null,null,null,null,null,null,null,null,null,0,null,null,null,null,null,null,null,0]
[null,null,null,null,null,null,null,null,null,null,null,0,null,null,null,null,null,null,null,0]
[null,null,null,null,null,null,null,null,null,null,null,0,null,null,null,null,null,null,null,0]
[null,null,null,null,null,null,null,null,null,null,null,0,null,null,null,null,null,null,null,0]
[null,null,null,null,null,null,null,null,null,null,null,0,null,null,null,null,null,null,null,0]
[null,null,null,null,null,null,null,null,null,null,null,0,null,null,null,null,null,null,null,0]
[null,null,null,null,null,null,null,null,null,null,null,0,null,null,null,null,null,null,null,0]
[null,null,null,null,null,null,null,null,null,null,null,0,null,null,null,null,null,null,null,0]
[null,null,null,null,null,null,null,null,null,null,null,0,null,null,null,null,null,null,null,0]
[null,null,null,null,null,null,null,null,null,null,null,0,null,null,null,null,null,null,null,0]
[null,null,null,null,null,null,null,null,null,null,null,0,null,null,null,null,null,null,null,0]
[null,null,null,null,null,null,null,null,null,null,null,0,null,null,null,null,null,null,null,0]
[null,null,null,null,null,null,null,null,null,null,null,0,null,null,null,null,null,null,null,0]
[null,null,null,null,null,null,null,null,null,null,null,0,null,null,null,null,null,null,null,0]
[null,null,null,null,null,null,null,null,null,null,null,0,null,null,null,null,null,null,null,0]
[null,null,null,null,null,null,null,null,null,null,null,0,null,null,null,null,null,null,null,0]
[null,null,null,null,null,null,null,null,null,null,null,0,null,null,null,null,null,null,null,0]
[null,null,null,null,null,null,null,null,null,null,null,0,null,null,null,null,null,null,null,0]
[null,null,null,null,null,null,null,null,null,null,null,0,null,null,null,null,null,null,null,0]
[null,null,null,null,null,null,null,null,null,null,null,0,null,null,null,null,null,null,null,0]
[null,null,null,null,null,null,null,null,null,null,null,0,null,null,null,null,null,null,null,0]
[null,null,null,null,null,null,null,null,null,null,null,0,null,null,null,null,null,null,null,0]
[null,null,null,null,null,null,null,null,null,null,null,0,null,null,null,null,null,null,null,0]
[null,null,null,null,null,null,null,null,null,null,null,0,null,null,null,null,null,null,null,0]
[null,null,null,null,null,null,null,null,null,null,null,0,null,null,null,null,null,null,null,0]
[null,null,null,null,null,null,null,null,null,null,null,0,null,null,null,null,null,null,null,0]
[null,null,null,null,null,null,null,null,null,null,null,0,null,null,null,null,null,null,null,0]
[null,null,null,null,null,null,null,null,null,null,null,0,null,null,null,null,null,null,null,0]
[null,null,null,null,null,null,null,null,null,null,null,0,null,null,null,null,null,null,null,0]
[null,null,null,null,null,null,null,null,null,null,null,0,null,null,null,null,null,null,null,0]
[null,null,null,null,null,null,null,null,null,null,null,0,null,null,null,null,null,null,null,0]
[null,null,null,null,null,null,null,null,null,null,null,0,null,null,null,null,null,null,null,0]
[null,null,null,null,null,null,null,null,null,null,null,0,null,null,null,null,null,null,null,0]
[null,null,null,null,null,null,null,null,null,null,null,0,null,null,null,null,null,null,null,0]
[null,null,null,null,null,null,null,null,null,null,null,0,null,null,null,null,null,null,null,0]
[null,null,null,null,null,null,null,null,null,null,null,0,null,null,null,null,null,null,null,0]
[null,null,null,null,null,null,null,null,null,null,null,0,null,null,null,null,null,null,null,0]
[null,null,null,null,null,null,null,null,null,null,null,0,null,null,null,null,null,null,null,0]
[null,null,null,null,null,null,null,null,null,null,null,0,null,null,null,null,null,null,null,0]
[null,null,null,null,null,null,null,null,null,null,null,0,null,null,null,null,null,null,null,0]
[null,null,null,null,null,null,null,null,null,null,null,0,null,null,null,null,null,null,null,0]
[null,null,null,null,null,null,null,null,null,null,null,0,null,null,null,null,null,null,null,0]
[null,null,null,null,null,null,null,null,null,null,null,0,null,null,null,null,null,null,null,0]
[null,null,null,null,null,null,null,null,null,null,null,0,null,null,null,null,null,null,null,0]
[null,null,null,null,null,null,null,null,null,null,null,0,null,null,null,null,null,null,null,0]
[null,null,null,null,null,null,null,null,null,null,null,0,null,null,null,null,null,null,null,0]
[null,null,null,null,null,null,null,null,null,null,null,0,null,null,null,null,null,null,null,0]
[null,null,null,null,null,null,null,null,null,null,null,0,null,null,null,null,null,null,null,0]
[null,null,null,null,null,null,null,null,null,null,null,0,null,null,null,null,null,null,null,0]
[null,null,null,null,null,null,null,null,null,null,null,0,null,null,null,null,null,null,null,0]
[null,null,null,null,null,null,null,null,null,null,null,0,null,null,null,null,null,null,null,0]
[null,null,null,null,null,null,null,null,null,null,null,0,null,null,null,null,null,null,null,0]
[null,null,null,null,null,null,null,null,null,null,null,0,null,null,null,null,null,null,null,0]
[null,null,null,null,null,null,null,null,null,null,null,0,null,null,null,null,null,null,null,0]
[null,null,null,null,null,null,null,null,null,null,null,0,null,null,null,null,null,null,null,0]
[null,null,null,null,null,null,null,null,null,null,null,0,null,null,null,null,null,null,null,0]
[null,null,null,null,null,null,null,null,null,null,null,0,null,null,null,null,null,null,null,0]
[null,null,null,null,null,null,null,null,null,null,null,{"$f":"IF(A449=\"\",0,SUM(F449:K449))","v":0},null,null,null,null,null,null,null,{"$f":"SUM(O449:S449)","v":0}]
[null,null,null,null,null,null,null,null,null,null,null,0,null,null,null,null,null,null,null,0]
[null,null,null,null,null,null,null,null,null,null,null,0,null,null,null,null,null,null,null,0]
[null,null,null,null,null,null,null,null,null,null,null,0,null,null,null,null,null,null,null,0]
[null,null,null,null,null,null,null,null,null,null,null,0,null,null,null,null,null,null,null,0]
[null,null,null,null,null,null,null,null,null,null,null,0,null,null,null,null,null,null,null,0]
[null,null,null,null,null,null,null,null,null,null,null,0,null,null,null,null,null,null,null,0]
[null,null,null,null,null,null,null,null,null,null,null,0,null,null,null,null,null,null,null,0]
[null,null,null,null,null,null,null,null,null,null,null,0,null,null,null,null,null,null,null,0]
[null,null,null,null,null,null,null,null,null,null,null,0,null,null,null,null,null,null,null,0]
[null,null,null,null,null,null,null,null,null,null,null,0,null,null,null,null,null,null,null,0]
[null,null,null,null,null,null,null,null,null,null,null,0,null,null,null,null,null,null,null,0]
[null,null,null,null,null,null,null,null,null,null,null,0,null,null,null,null,null,null,null,0]
[null,null,null,null,null,null,null,null,null,null,null,0,null,null,null,null,null,null,null,0]
[null,null,null,null,null,null,null,null,null,null,null,0,null,null,null,null,null,null,null,0]
[null,null,null,null,null,null,null,null,null,null,null,0,null,null,null,null,null,null,null,0]
[null,null,null,null,null,null,null,null,null,null,null,0,null,null,null,null,null,null,null,0]
[null,null,null,null,null,null,null,null,null,null,null,0,null,null,null,null,null,null,null,0]
[null,null,null,null,null,null,null,null,null,null,null,0,null,null,null,null,null,null,null,0]
[null,null,null,null,null,null,null,null,null,null,null,0,null,null,null,null,null,null,null,0]
[null,null,null,null,null,null,null,null,null,null,null,0,null,null,null,null,null,null,null,0]
[null,null,null,null,null,null,null,null,null,null,null,0,null,null,null,null,null,null,null,0]
[null,null,null,null,null,null,null,null,null,null,null,0,null,null,null,null,null,null,null,0]
[null,null,null,null,null,null,null,null,null,null,null,0,null,null,null,null,null,null,null,0]
[null,null,null,null,null,null,null,null,null,null,null,0,null,null,null,null,null,null,null,0]
[null,null,null,null,null,null,null,null,null,null,null,0,null,null,null,null,null,null,null,0]
[null,null,null,null,null,null,null,null,null,null,null,0,null,null,null,null,null,null,null,0]
[null,null,null,null,null,null,null,null,null,null,null,0,null,null,null,null,null,null,null,0]
[null,null,null,null,null,null,null,null,null,null,null,0,null,null,null,null,null,null,null,0]
[null,null,null,null,null,null,null,null,null,null,null,0,null,null,null,null,null,null,null,0]
[null,null,null,null,null,null,null,null,null,null,null,0,null,null,null,null,null,null,null,0]
[null,null,null,null,null,null,null,null,null,null,null,0,null,null,null,null,null,null,null,0]
[null,null,null,null,null,null,null,null,null,null,null,0,null,null,null,null,null,null,null,0]
[null,null,null,null,null,null,null,null,null,null,null,0,null,null,null,null,null,null,null,0]
[null,null,null,null,null,null,null,null,null,null,null,0,null,null,null,null,null,null,null,0]
[null,null,null,null,null,null,null,null,null,null,null,0,null,null,null,null,null,null,null,0]
[null,null,null,null,null,null,null,null,null,null,null,0,null,null,null,null,null,null,null,0]
[null,null,null,null,null,null,null,null,null,null,null,0,null,null,null,null,null,null,null,0]
[null,null,null,null,null,null,null,null,null,null,null,0,null,null,null,null,null,null,null,0]
[null,null,null,null,null,null,null,null,null,null,null,0,null,null,null,null,null,null,null,0]
[null,null,null,null,null,null,null,null,null,null,null,0,null,null,null,null,null,null,null,0]
[null,null,null,null,null,null,null,null,null,null,null,0,null,null,null,null,null,null,null,0]
[null,null,null,null,null,null,null,null,null,null,null,0,null,null,null,null,null,null,null,0]
[null,null,null,null,null,null,null,null,null,null,null,0,null,null,null,null,null,null,null,0]
[null,null,null,null,null,null,null,null,null,null,null,0,null,null,null,null,null,null,null,0]
[null,null,null,null,null,null,null,null,null,null,null,0,null,null,null,null,null,null,null,0]
[null,null,null,null,null,null,null,null,null,null,null,0,null,null,null,null,null,null,null,0]
[null,null,null,null,null,null,null,null,null,null,null,0,null,null,null,null,null,null,null,0]
[null,null,null,null,null,null,null,null,null,null,null,0,null,null,null,null,null,null,null,0]
[null,null,null,null,null,null,null,null,null,null,null,0,null,null,null,null,null,null,null,0]
[null,null,null,null,null,null,null,null,null,null,null,0,null,null,null,null,null,null,null,0]
[null,null,null,null,null,null,null,null,null,null,null,0,null,null,null,null,null,null,null,0]
[null,null,null,null,null,null,null,null,null,null,null,0,null,null,null,null,null,null,null,0]
[null,null,null,null,null,null,null,null,null,null,null,0,null,null,null,null,null,null,null,0]
[null,null,null,null,null,null,null,null,null,null,null,0,null,null,null,null,null,null,null,0]
[null,null,null,null,null,null,null,null,null,null,null,0,null,null,null,null,null,null,null,0]
[null,null,null,null,null,null,null,null,null,null,null,0,null,null,null,null,null,null,null,0]
[null,null,null,null,null,null,null,null,null,null,null,0,null,null,null,null,null,null,null,0]
[null,null,null,null,null,null,null,null,null,null,null,0,null,null,null,null,null,null,null,0]
[null,null,null,null,null,null,null,null,null,null,null,0,null,null,null,null,null,null,null,0]
[null,null,null,null,null,null,null,null,null,null,null,0,null,null,null,null,null,null,null,0]
[null,null,null,null,null,null,null,null,null,null,null,0,null,null,null,null,null,null,null,0]
[null,null,null,null,null,null,null,null,null,null,null,0,null,null,null,null,null,null,null,0]
[null,null,null,null,null,null,null,null,null,null,null,0,null,null,null,null,null,null,null,0]
[null,null,null,null,null,null,null,null,null,null,null,{"$f":"IF(A513=\"\",0,SUM(F513:K513))","v":0},null,null,null,null,null,null,null,{"$f":"SUM(O513:S513)","v":0}]
[null,null,null,null,null,null,null,null,null,null,null,0,null,null,null,null,null,null,null,0]
[null,null,null,null,null,null,null,null,null,null,null,0,null,null,null,null,null,null,null,0]
[null,null,null,null,null,null,null,null,null,null,null,0,null,null,null,null,null,null,null,0]
[null,null,null,null,null,null,null,null,null,null,null,0,null,null,null,null,null,null,null,0]
[null,null,null,null,null,null,null,null,null,null,null,0,null,null,null,null,null,null,null,0]
[null,null,null,null,null,null,null,null,null,null,null,0,null,null,null,null,null,null,null,0]
[null,null,null,null,null,null,null,null,null,null,null,0,null,null,null,null,null,null,null,0]
[null,null,null,null,null,null,null,null,null,null,null,0,null,null,null,null,null,null,null,0]
[null,null,null,null,null,null,null,null,null,null,null,0,null,null,null,null,null,null,null,0]
[null,null,null,null,null,null,null,null,null,null,null,0,null,null,null,null,null,null,null,0]
[null,null,null,null,null,null,null,null,null,null,null,0,null,null,null,null,null,null,null,0]
[null,null,null,null,null,null,null,null,null,null,null,0,null,null,null,null,null,null,null,0]
[null,null,null,null,null,null,null,null,null,null,null,0,null,null,null,null,null,null,null,0]
[null,null,null,null,null,null,null,null,null,null,null,0,null,null,null,null,null,null,null,0]
[null,null,null,null,null,null,null,null,null,null,null,0,null,null,null,null,null,null,null,0]
[null,null,null,null,null,null,null,null,null,null,null,0,null,null,null,null,null,null,null,0]
[null,null,null,null,null,null,null,null,null,null,null,0,null,null,null,null,null,null,null,0]
[null,null,null,null,null,null,null,null,null,null,null,0,null,null,null,null,null,null,null,0]
[null,null,null,null,null,null,null,null,null,null,null,0,null,null,null,null,null,null,null,0]
[null,null,null,null,null,null,null,null,null,null,null,0,null,null,null,null,null,null,null,0]
[null,null,null,null,null,null,null,null,null,null,null,0,null,null,null,null,null,null,null,0]
[null,null,null,null,null,null,null,null,null,null,null,0,null,null,null,null,null,null,null,0]
[null,null,null,null,null,null,null,null,null,null,null,0,null,null,null,null,null,null,null,0]
[null,null,null,null,null,null,null,null,null,null,null,0,null,null,null,null,null,null,null,0]
[null,null,null,null,null,null,null,null,null,null,null,0,null,null,null,null,null,null,null,0]
[null,null,null,null,null,null,null,null,null,null,null,0,null,null,null,null,null,null,null,0]
[null,null,null,null,null,null,null,null,null,null,null,0,null,null,null,null,null,null,null,0]
[null,null,null,null,null,null,null,null,null,null,null,0,null,null,null,null,null,null,null,0]
[null,null,null,null,null,null,null,null,null,null,null,0,null,null,null,null,null,null,null,0]
[null,null,null,null,null,null,null,null,null,null,null,0,null,null,null,null,null,null,null,0]
[null,null,null,null,null,null,null,null,null,null,null,0,null,null,null,null,null,null,null,0]
[null,null,null,null,null,null,null,null,null,null,null,0,null,null,null,null,null,null,null,0]
[null,null,null,null,null,null,null,null,null,null,null,0,null,null,null,null,null,null,null,0]
[null,null,null,null,null,null,null,null,null,null,null,0,null,null,null,null,null,null,null,0]
[null,null,null,null,null,null,null,null,null,null,null,0,null,null,null,null,null,null,null,0]
[null,null,null,null,null,null,null,null,null,null,null,0,null,null,null,null,null,null,null,0]
[null,null,null,null,null,null,null,null,null,null,null,0,null,null,null,null,null,null,null,0]
[null,null,null,null,null,null,null,null,null,null,null,0,null,null,null,null,null,null,null,0]
[null,null,null,null,null,null,null,null,null,null,null,0,null,null,null,null,null,null,null,0]
[null,null,null,null,null,null,null,null,null,null,null,0,null,null,null,null,null,null,null,0]
[null,null,null,null,null,null,null,null,null,null,null,0,null,null,null,null,null,null,null,0]
[null,null,null,null,null,null,null,null,null,null,null,0,null,null,null,null,null,null,null,0]
[null,null,null,null,null,null,null,null,null,null,null,0,null,null,null,null,null,null,null,0]
[null,null,null,null,null,null,null,null,null,null,null,0,null,null,null,null,null,null,null,0]
[null,null,null,null,null,null,null,null,null,null,null,0,null,null,null,null,null,null,null,0]
[null,null,null,null,null,null,null,null,null,null,null,0,null,null,null,null,null,null,null,0]
[null,null,null,null,null,null,null,null,null,null,null,0,null,null,null,null,null,null,null,0]
[null,null,null,null,null,null,null,null,null,null,null,0,null,null,null,null,null,null,null,0]
[null,null,null,null,null,null,null,null,null,null,null,0,null,null,null,null,null,null,null,0]
[null,null,null,null,null,null,null,null,null,null,null,0,null,null,null,null,null,null,null,0]
[null,null,null,null,null,null,null,null,null,null,null,0,null,null,null,null,null,null,null,0]
[null,null,null,null,null,null,null,null,null,null,null,0,null,null,null,null,null,null,null,0]
[null,null,null,null,null,null,null,null,null,null,null,0,null,null,null,null,null,null,null,0]
[null,null,null,null,null,null,null,null,null,null,null,0,null,null,null,null,null,null,null,0]
[null,null,null,null,null,null,null,null,null,null,null,0,null,null,null,null,null,null,null,0]
[null,null,null,null,null,null,null,null,null,null,null,0,null,null,null,null,null,null,null,0]
[null,null,null,null,null,null,null,null,null,null,null,0,null,null,null,null,null,null,null,0]
[null,null,null,null,null,null,null,null,null,null,null,0,null,null,null,null,null,null,null,0]
[null,null,null,null,null,null,null,null,null,null,null,0,null,null,null,null,null,null,null,0]
[null,null,null,null,null,null,null,null,null,null,null,0,null,null,null,null,null,null,null,0]
[null,null,null,null,null,null,null,null,null,null,null,0,null,null,null,null,null,null,null,0]
[null,null,null,null,null,null,null,null,null,null,null,0,null,null,null,null,null,null,null,0]
[null,null,null,null,null,null,null,null,null,null,null,0,null,null,null,null,null,null,null,0]
[null,null,null,null,null,null,null,null,null,null,null,{"$f":"IF(A577=\"\",0,SUM(F577:K577))","v":0},null,null,null,null,null,null,null,{"$f":"SUM(O577:S577)","v":0}]
[null,null,null,null,null,null,null,null,null,null,null,0,null,null,null,null,null,null,null,0]
[null,null,null,null,null,null,null,null,null,null,null,0,null,null,null,null,null,null,null,0]
[null,null,null,null,null,null,null,null,null,null,null,0,null,null,null,null,null,null,null,0]
[null,null,null,null,null,null,null,null,null,null,null,0,null,null,null,null,null,null,null,0]
[null,null,null,null,null,null,null,null,null,null,null,0,null,null,null,null,null,null,null,0]
[null,null,null,null,null,null,null,null,null,null,null,0,null,null,null,null,null,null,null,0]
[null,null,null,null,null,null,null,null,null,null,null,0,null,null,null,null,null,null,null,0]
[null,null,null,null,null,null,null,null,null,null,null,0,null,null,null,null,null,null,null,0]
[null,null,null,null,null,null,null,null,null,null,null,0,null,null,null,null,null,null,null,0]
[null,null,null,null,null,null,null,null,null,null,null,0,null,null,null,null,null,null,null,0]
[null,null,null,null,null,null,null,null,null,null,null,0,null,null,null,null,null,null,null,0]
[null,null,null,null,null,null,null,null,null,null,null,0,null,null,null,null,null,null,null,0]
[null,null,null,null,null,null,null,null,null,null,null,0,null,null,null,null,null,null,null,0]
[null,null,null,null,null,null,null,null,null,null,null,0,null,null,null,null,null,null,null,0]
[null,null,null,null,null,null,null,null,null,null,null,0,null,null,null,null,null,null,null,0]
[null,null,null,null,null,null,null,null,null,null,null,0,null,null,null,null,null,null,null,0]
[null,null,null,null,null,null,null,null,null,null,null,0,null,null,null,null,null,null,null,0]
[null,null,null,null,null,null,null,null,null,null,null,0,null,null,null,null,null,null,null,0]
[null,null,null,null,null,null,null,null,null,null,null,0,null,null,null,null,null,null,null,0]
[null,null,null,null,null,null,null,null,null,null,null,0,null,null,null,null,null,null,null,0]
[null,null,null,null,null,null,null,null,null,null,null,0,null,null,null,null,null,null,null,0]
[null,null,null,null,null,null,null,null,null,null,null,0,null,null,null,null,null,null,null,0]
[null,null,null,null,null,null,null,null,null,null,null,0,null,null,null,null,null,null,null,0]
[null,null,null,null,null,null,null,null,null,null,null,0,null,null,null,null,null,null,null,0]
[null,null,null,null,null,null,null,null,null,null,null,0,null,null,null,null,null,null,null,0]
[null,null,null,null,null,null,null,null,null,null,null,0,null,null,null,null,null,null,null,0]
[null,null,null,null,null,null,null,null,null,null,null,0,null,null,null,null,null,null,null,0]
[null,null,null,null,null,null,null,null,null,null,null,0,null,null,null,null,null,null,null,0]
[null,null,null,null,null,null,null,null,null,null,null,0,null,null,null,null,null,null,null,0]
[null,null,null,null,null,null,null,null,null,null,null,0,null,null,null,null,null,null,null,0]
[null,null,null,null,null,null,null,null,null,null,null,0,null,null,null,null,null,null,null,0]
[null,null,null,null,null,null,null,null,null,null,null,0,null,null,null,null,null,null,null,0]
[null,null,null,null,null,null,null,null,null,null,null,0,null,null,null,null,null,null,null,0]
[null,null,null,null,null,null,null,null,null,null,null,0,null,null,null,null,null,null,null,0]
[null,null,null,null,null,null,null,null,null,null,null,0,null,null,null,null,null,null,null,0]
[null,null,null,null,null,null,null,null,null,null,null,0,null,null,null,null,null,null,null,0]
[null,null,null,null,null,null,null,null,null,null,null,0,null,null,null,null,null,null,null,0]
[null,null,null,null,null,null,null,null,null,null,null,0,null,null,null,null,null,null,null,0]
[null,null,null,null,null,null,null,null,null,null,null,0,null,null,null,null,null,null,null,0]
[null,null,null,null,null,null,null,null,null,null,null,0,null,null,null,null,null,null,null,0]
[null,null,null,null,null,null,null,null,null,null,null,0,null,null,null,null,null,null,null,0]
[null,null,null,null,null,null,null,null,null,null,null,0,null,null,null,null,null,null,null,0]
[null,null,null,null,null,null,null,null,null,null,null,0,null,null,null,null,null,null,null,0]
[null,null,null,null,null,null,null,null,null,null,null,0,null,null,null,null,null,null,null,0]
[null,null,null,null,null,null,null,null,null,null,null,0,null,null,null,null,null,null,null,0]
[null,null,null,null,null,null,null,null,null,null,null,0,null,null,null,null,null,null,null,0]
[null,null,null,null,null,null,null,null,null,null,null,0,null,null,null,null,null,null,null,0]
[null,null,null,null,null,null,null,null,null,null,null,0,null,null,null,null,null,null,null,0]
[null,null,null,null,null,null,null,null,null,null,null,0,null,null,null,null,null,null,null,0]
[null,null,null,null,null,null,null,null,null,null,null,0,null,null,null,null,null,null,null,0]
[null,null,null,null,null,null,null,null,null,null,null,0,null,null,null,null,null,null,null,0]
[null,null,null,null,null,null,null,null,null,null,null,0,null,null,null,null,null,null,null,0]
[null,null,null,null,null,null,null,null,null,null,null,0,null,null,null,null,null,null,null,0]
[null,null,null,null,null,null,null,null,null,null,null,0,null,null,null,null,null,null,null,0]
[null,null,null,null,null,null,null,null,null,null,null,0,null,null,null,null,null,null,null,0]
[null,null,null,null,null,null,null,null,null,null,null,0,null,null,null,null,null,null,null,0]
[null,null,null,null,null,null,null,null,null,null,null,0,null,null,null,null,null,null,null,0]
[null,null,null,null,null,null,null,null,null,null,null,0,null,null,null,null,null,null,null,0]
[null,null,null,null,null,null,null,null,null,null,null,0,null,null,null,null,null,null,null,0]
[null,null,null,null,null,null,null,null,null,null,null,0,null,null,null,null,null,null,null,0]
[null,null,null,null,null,null,null,null,null,null,null,0,null,null,null,null,null,null,null,0]
[null,null,null,null,null,null,null,null,null,null,null,0,null,null,null,null,null,null,null,0]
[null,null,null,null,null,null,null,null,null,null,null,0,null,null,null,null,null,null,null,0]
[null,null,null,null,null,null,null,null,null,null,null,{"$f":"IF(A641=\"\",0,SUM(F641:K641))","v":0},null,null,null,null,null,null,null,{"$f":"SUM(O641:S641)","v":0}]
[null,null,null,null,null,null,null,null,null,null,null,0,null,null,null,null,null,null,null,0]
[null,null,null,null,null,null,null,null,null,null,null,0,null,null,null,null,null,null,null,0]
[null,null,null,null,null,null,null,null,null,null,null,0,null,null,null,null,null,null,null,0]
[null,null,null,null,null,null,null,null,null,null,null,0,null,null,null,null,null,null,null,0]
[null,null,null,null,null,null,null,null,null,null,null,0,null,null,null,null,null,null,null,0]
[null,null,null,null,null,null,null,null,null,null,null,0,null,null,null,null,null,null,null,0]
[null,null,null,null,null,null,null,null,null,null,null,0,null,null,null,null,null,null,null,0]
[null,null,null,null,null,null,null,null,null,null,null,0,null,null,null,null,null,null,null,0]
[null,null,null,null,null,null,null,null,null,null,null,0,null,null,null,null,null,null,null,0]
[null,null,null,null,null,null,null,null,null,null,null,0,null,null,null,null,null,null,null,0]
[null,null,null,null,null,null,null,null,null,null,null,0,null,null,null,null,null,null,null,0]
[null,null,null,null,null,null,null,null,null,null,null,0,null,null,null,null,null,null,null,0]
[null,null,null,null,null,null,null,null,null,null,null,0,null,null,null,null,null,null,null,0]
[null,null,null,null,null,null,null,null,null,null,null,0,null,null,null,null,null,null,null,0]
[null,null,null,null,null,null,null,null,null,null,null,0,null,null,null,null,null,null,null,0]
[null,null,null,null,null,null,null,null,null,null,null,0,null,null,null,null,null,null,null,0]
[null,null,null,null,null,null,null,null,null,null,null,0,null,null,null,null,null,null,null,0]
[null,null,null,null,null,null,null,null,null,null,null,0,null,null,null,null,null,null,null,0]
[null,null,null,null,null,null,null,null,null,null,null,0,null,null,null,null,null,null,null,0]
[null,null,null,null,null,null,null,null,null,null,null,0,null,null,null,null,null,null,null,0]
[null,null,null,null,null,null,null,null,null,null,null,0,null,null,null,null,null,null,null,0]
[null,null,null,null,null,null,null,null,null,null,null,0,null,null,null,null,null,null,null,0]
[null,null,null,null,null,null,null,null,null,null,null,0,null,null,null,null,null,null,null,0]
[null,null,null,null,null,null,null,null,null,null,null,0,null,null,null,null,null,null,null,0]
[null,null,null,null,null,null,null,null,null,null,null,0,null,null,null,null,null,null,null,0]
[null,null,null,null,null,null,null,null,null,null,null,0,null,null,null,null,null,null,null,0]
[null,null,null,null,null,null,null,null,null,null,null,0,null,null,null,null,null,null,null,0]
[null,null,null,null,null,null,null,null,null,null,null,0,null,null,null,null,null,null,null,0]
[null,null,null,null,null,null,null,null,null,null,null,0,null,null,null,null,null,null,null,0]
[null,null,null,null,null,null,null,null,null,null,null,0,null,null,null,null,null,null,null,0]
[null,null,null,null,null,null,null,null,null,null,null,0,null,null,null,null,null,null,null,0]
[null,null,null,null,null,null,null,null,null,null,null,0,null,null,null,null,null,null,null,0]
[null,null,null,null,null,null,null,null,null,null,null,0,null,null,null,null,null,null,null,0]
[null,null,null,null,null,null,null,null,null,null,null,0,null,null,null,null,null,null,null,0]
[null,null,null,null,null,null,null,null,null,null,null,0,null,null,null,null,null,null,null,0]
[null,null,null,null,null,null,null,null,null,null,null,0,null,null,null,null,null,null,null,0]
[null,null,null,null,null,null,null,null,null,null,null,0,null,null,null,null,null,null,null,0]
[null,null,null,null,null,null,null,null,null,null,null,0,null,null,null,null,null,null,null,0]
[null,null,null,null,null,null,null,null,null,null,null,0,null,null,null,null,null,null,null,0]
[null,null,null,null,null,null,null,null,null,null,null,0,null,null,null,null,null,null,null,0]
[null,null,null,null,null,null,null,null,null,null,null,0,null,null,null,null,null,null,null,0]
[null,null,null,null,null,null,null,null,null,null,null,0,null,null,null,null,null,null,null,0]
[null,null,null,null,null,null,null,null,null,null,null,0,null,null,null,null,null,null,null,0]
[null,null,null,null,null,null,null,null,null,null,null,0,null,null,null,null,null,null,null,0]
[null,null,null,null,null,null,null,null,null,null,null,0,null,null,null,null,null,null,null,0]
[null,null,null,null,null,null,null,null,null,null,null,0,null,null,null,null,null,null,null,0]
[null,null,null,null,null,null,null,null,null,null,null,0,null,null,null,null,null,null,null,0]
[null,null,null,null,null,null,null,null,null,null,null,0,null,null,null,null,null,null,null,0]
[null,null,null,null,null,null,null,null,null,null,null,0,null,null,null,null,null,null,null,0]
[null,null,null,null,null,null,null,null,null,null,null,0,null,null,null,null,null,null,null,0]
[null,null,null,null,null,null,null,null,null,null,null,0,null,null,null,null,null,null,null,0]
[null,null,null,null,null,null,null,null,null,null,null,0,null,null,null,null,null,null,null,0]
[null,null,null,null,null,null,null,null,null,null,null,0,null,null,null,null,null,null,null,0]
[null,null,null,null,null,null,null,null,null,null,null,0,null,null,null,null,null,null,null,0]
[null,null,null,null,null,null,null,null,null,null,null,0,null,null,null,null,null,null,null,0]
[null,null,null,null,null,null,null,null,null,null,null,0,null,null,null,null,null,null,null,0]
[null,null,null,null,null,null,null,null,null,null,null,0,null,null,null,null,null,null,null,0]
[null,null,null,null,null,null,null,null,null,null,null,0,null,null,null,null,null,null,null,0]
[null,null,null,null,null,null,null,null,null,null,null,0,null,null,null,null,null,null,null,0]
[null,null,null,null,null,null,null,null,null,null,null,0,null,null,null,null,null,null,null,0]
[null,null,null,null,null,null,null,null,null,null,null,0,null,null,null,null,null,null,null,0]
[null,null,null,null,null,null,null,null,null,null,null,0,null,null,null,null,null,null,null,0]
[null,null,null,null,null,null,null,null,null,null,null,0,null,null,null,null,null,null,null,0]
[null,null,null,null,null,null,null,null,null,null,null,{"$f":"IF(A705=\"\",0,SUM(F705:K705))","v":0},null,null,null,null,null,null,null,{"$f":"SUM(O705:S705)","v":0}]
[null,null,null,null,null,null,null,null,null,null,null,0,null,null,null,null,null,null,null,0]
[null,null,null,null,null,null,null,null,null,null,null,0,null,null,null,null,null,null,null,0]
[null,null,null,null,null,null,null,null,null,null,null,0,null,null,null,null,null,null,null,0]
[null,null,null,null,null,null,null,null,null,null,null,0,null,null,null,null,null,null,null,0]
[null,null,null,null,null,null,null,null,null,null,null,0,null,null,null,null,null,null,null,0]
[null,null,null,null,null,null,null,null,null,null,null,0,null,null,null,null,null,null,null,0]
[null,null,null,null,null,null,null,null,null,null,null,0,null,null,null,null,null,null,null,0]
[null,null,null,null,null,null,null,null,null,null,null,0,null,null,null,null,null,null,null,0]
[null,null,null,null,null,null,null,null,null,null,null,0,null,null,null,null,null,null,null,0]
[null,null,null,null,null,null,null,null,null,null,null,0,null,null,null,null,null,null,null,0]
[null,null,null,null,null,null,null,null,null,null,null,0,null,null,null,null,null,null,null,0]
[null,null,null,null,null,null,null,null,null,null,null,0,null,null,null,null,null,null,null,0]
[null,null,null,null,null,null,null,null,null,null,null,0,null,null,null,null,null,null,null,0]
[null,null,null,null,null,null,null,null,null,null,null,0,null,null,null,null,null,null,null,0]
[null,null,null,null,null,null,null,null,null,null,null,0,null,null,null,null,null,null,null,0]
[null,null,null,null,null,null,null,null,null,null,null,0,null,null,null,null,null,null,null,0]
[null,null,null,null,null,null,null,null,null,null,null,0,null,null,null,null,null,null,null,0]
[null,null,null,null,null,null,null,null,null,null,null,0,null,null,null,null,null,null,null,0]
[null,null,null,null,null,null,null,null,null,null,null,0,null,null,null,null,null,null,null,0]
[null,null,null,null,null,null,null,null,null,null,null,0,null,null,null,null,null,null,null,0]
[null,null,null,null,null,null,null,null,null,null,null,0,null,null,null,null,null,null,null,0]
[null,null,null,null,null,null,null,null,null,null,null,0,null,null,null,null,null,null,null,0]
[null,null,null,null,null,null,null,null,null,null,null,0,null,null,null,null,null,null,null,0]
[null,null,null,null,null,null,null,null,null,null,null,0,null,null,null,null,null,null,null,0]
[null,null,null,null,null,null,null,null,null,null,null,0,null,null,null,null,null,null,null,0]
[null,null,null,null,null,null,null,null,null,null,null,0,null,null,null,null,null,null,null,0]
[null,null,null,null,null,null,null,null,null,null,null,0,null,null,null,null,null,null,null,0]
[null,null,null,null,null,null,null,null,null,null,null,0,null,null,null,null,null,null,null,0]
[null,null,null,null,null,null,null,null,null,null,null,0,null,null,null,null,null,null,null,0]
[null,null,null,null,null,null,null,null,null,null,null,0,null,null,null,null,null,null,null,0]
[null,null,null,null,null,null,null,null,null,null,null,0,null,null,null,null,null,null,null,0]
[null,null,null,null,null,null,null,null,null,null,null,0,null,null,null,null,null,null,null,0]
[null,null,null,null,null,null,null,null,null,null,null,0,null,null,null,null,null,null,null,0]
[null,null,null,null,null,null,null,null,null,null,null,0,null,null,null,null,null,null,null,0]
[null,null,null,null,null,null,null,null,null,null,null,0,null,null,null,null,null,null,null,0]
[null,null,null,null,null,null,null,null,null,null,null,0,null,null,null,null,null,null,null,0]
[null,null,null,null,null,null,null,null,null,null,null,0,null,null,null,null,null,null,null,0]
[null,null,null,null,null,null,null,null,null,null,null,0,null,null,null,null,null,null,null,0]
[null,null,null,null,null,null,null,null,null,null,null,0,null,null,null,null,null,null,null,0]
[null,null,null,null,null,null,null,null,null,null,null,0,null,null,null,null,null,null,null,0]
[null,null,null,null,null,null,null,null,null,null,null,0,null,null,null,null,null,null,null,0]
[null,null,null,null,null,null,null,null,null,null,null,0,null,null,null,null,null,null,null,0]
[null,null,null,null,null,null,null,null,null,null,null,0,null,null,null,null,null,null,null,0]
[null,null,null,null,null,null,null,null,null,null,null,0,null,null,null,null,null,null,null,0]
[null,null,null,null,null,null,null,null,null,null,null,0,null,null,null,null,null,null,null,0]
[null,null,null,null,null,null,null,null,null,null,null,0,null,null,null,null,null,null,null,0]
[null,null,null,null,null,null,null,null,null,null,null,0,null,null,null,null,null,null,null,0]
[null,null,null,null,null,null,null,null,null,null,null,0,null,null,null,null,null,null,null,0]
[null,null,null,null,null,null,null,null,null,null,null,0,null,null,null,null,null,null,null,0]
[null,null,null,null,null,null,null,null,null,null,null,0,null,null,null,null,null,null,null,0]
[null,null,null,null,null,null,null,null,null,null,null,0,null,null,null,null,null,null,null,0]
[null,null,null,null,null,null,null,null,null,null,null,0,null,null,null,null,null,null,null,0]
[null,null,null,null,null,null,null,null,null,null,null,0,null,null,null,null,null,null,null,0]
[null,null,null,null,null,null,null,null,null,null,null,0,null,null,null,null,null,null,null,0]
[null,null,null,null,null,null,null,null,null,null,null,0,null,null,null,null,null,null,null,0]
[null,null,null,null,null,null,null,null,null,null,null,0,null,null,null,null,null,null,null,0]
[null,null,null,null,null,null,null,null,null,null,null,0,null,null,null,null,null,null,null,0]
[null,null,null,null,null,null,null,null,null,null,null,0,null,null,null,null,null,null,null,0]
[null,null,null,null,null,null,null,null,null,null,null,0,null,null,null,null,null,null,null,0]
[null,null,null,null,null,null,null,null,null,null,null,0,null,null,null,null,null,null,null,0]
[null,null,null,null,null,null,null,null,null,null,null,0,null,null,null,null,null,null,null,0]
[null,null,null,null,null,null,null,null,null,null,null,0,null,null,null,null,null,null,null,0]
[null,null,null,null,null,null,null,null,null,null,null,0,null,null,null,null,null,null,null,0]
[null,null,null,null,null,null,null,null,null,null,null,{"$f":"IF(A769=\"\",0,SUM(F769:K769))","v":0},null,null,null,null,null,null,null,{"$f":"SUM(O769:S769)","v":0}]
[null,null,null,null,null,null,null,null,null,null,null,0,null,null,null,null,null,null,null,0]
[null,null,null,null,null,null,null,null,null,null,null,0,null,null,null,null,null,null,null,0]
[null,null,null,null,null,null,null,null,null,null,null,0,null,null,null,null,null,null,null,0]
[null,null,null,null,null,null,null,null,null,null,null,0,null,null,null,null,null,null,null,0]
[null,null,null,null,null,null,null,null,null,null,null,0,null,null,null,null,null,null,null,0]
[null,null,null,null,null,null,null,null,null,null,null,0,null,null,null,null,null,null,null,0]
[null,null,null,null,null,null,null,null,null,null,null,0,null,null,null,null,null,null,null,0]
[null,null,null,null,null,null,null,null,null,null,null,0,null,null,null,null,null,null,null,0]
[null,null,null,null,null,null,null,null,null,null,null,0,null,null,null,null,null,null,null,0]
[null,null,null,null,null,null,null,null,null,null,null,0,null,null,null,null,null,null,null,0]
[null,null,null,null,null,null,null,null,null,null,null,0,null,null,null,null,null,null,null,0]
[null,null,null,null,null,null,null,null,null,null,null,0,null,null,null,null,null,null,null,0]
[null,null,null,null,null,null,null,null,null,null,null,0,null,null,null,null,null,null,null,0]
[null,null,null,null,null,null,null,null,null,null,null,0,null,null,null,null,null,null,null,0]
[null,null,null,null,null,null,null,null,null,null,null,0,null,null,null,null,null,null,null,0]
[null,null,null,null,null,null,null,null,null,null,null,0,null,null,null,null,null,null,null,0]
[null,null,null,null,null,null,null,null,null,null,null,0,null,null,null,null,null,null,null,0]
[null,null,null,null,null,null,null,null,null,null,null,0,null,null,null,null,null,null,null,0]
[null,null,null,null,null,null,null,null,null,null,null,0,null,null,null,null,null,null,null,0]
[null,null,null,null,null,null,null,null,null,null,null,0,null,null,null,null,null,null,null,0]
[null,null,null,null,null,null,null,null,null,null,null,0,null,null,null,null,null,null,null,0]
[null,null,null,null,null,null,null,null,null,null,null,0,null,null,null,null,null,null,null,0]
[null,null,null,null,null,null,null,null,null,null,null,0,null,null,null,null,null,null,null,0]
[null,null,null,null,null,null,null,null,null,null,null,0,null,null,null,null,null,null,null,0]
[null,null,null,null,null,null,null,null,null,null,null,0,null,null,null,null,null,null,null,0]
[null,null,null,null,null,null,null,null,null,null,null,0,null,null,null,null,null,null,null,0]
[null,null,null,null,null,null,null,null,null,null,null,0,null,null,null,null,null,null,null,0]
[null,null,null,null,null,null,null,null,null,null,null,0,null,null,null,null,null,null,null,0]
[null,null,null,null,null,null,null,null,null,null,null,0,null,null,null,null,null,null,null,0]
[null,null,null,null,null,null,null,null,null,null,null,0,null,null,null,null,null,null,null,0]
[null,null,null,null,null,null,null,null,null,null,null,0,null,null,null,null,null,null,null,0]
[null,null,null,null,null,null,null,null,null,null,null,0,null,null,null,null,null,null,null,0]
[null,null,null,null,null,null,null,null,null,null,null,0,null,null,null,null,null,null,null,0]
[null,null,null,null,null,null,null,null,null,null,null,0,null,null,null,null,null,null,null,0]
[null,null,null,null,null,null,null,null,null,null,null,0,null,null,null,null,null,null,null,0]
[null,null,null,null,null,null,null,null,null,null,null,0,null,null,null,null,null,null,null,0]
[null,null,null,null,null,null,null,null,null,null,null,0,null,null,null,null,null,null,null,0]
[null,null,null,null,null,null,null,null,null,null,null,0,null,null,null,null,null,null,null,0]
[null,null,null,null,null,null,null,null,null,null,null,0,null,null,null,null,null,null,null,0]
[null,null,null,null,null,null,null,null,null,null,null,0,null,null,null,null,null,null,null,0]
[null,null,null,null,null,null,null,null,null,null,null,0,null,null,null,null,null,null,null,0]
[null,null,null,null,null,null,null,null,null,null,null,0,null,null,null,null,null,null,null,0]
[null,null,null,null,null,null,null,null,null,null,null,0,null,null,null,null,null,null,null,0]
[null,null,null,null,null,null,null,null,null,null,null,0,null,null,null,null,null,null,null,0]
[null,null,null,null,null,null,null,null,null,null,null,0,null,null,null,null,null,null,null,0]
[null,null,null,null,null,null,null,null,null,null,null,0,null,null,null,null,null,null,null,0]
[null,null,null,null,null,null,null,null,null,null,null,0,null,null,null,null,null,null,null,0]
[null,null,null,null,null,null,null,null,null,null,null,0,null,null,null,null,null,null,null,0]
[null,null,null,null,null,null,null,null,null,null,null,0,null,null,null,null,null,null,null,0]
[null,null,null,null,null,null,null,null,null,null,null,0,null,null,null,null,null,null,null,0]
[null,null,null,null,null,null,null,null,null,null,null,0,null,null,null,null,null,null,null,0]
[null,null,null,null,null,null,null,null,null,null,null,0,null,null,null,null,null,null,null,0]
[null,null,null,null,null,null,null,null,null,null,null,0,null,null,null,null,null,null,null,0]
[null,null,null,null,null,null,null,null,null,null,null,0,null,null,null,null,null,null,null,0]
[null,null,null,null,null,null,null,null,null,null,null,0,null,null,null,null,null,null,null,0]
[null,null,null,null,null,null,null,null,null,null,null,0,null,null,null,null,null,null,null,0]
[null,null,null,null,null,null,null,null,null,null,null,0,null,null,null,null,null,null,null,0]
[null,null,null,null,null,null,null,null,null,null,null,0,null,null,null,null,null,null,null,0]
[null,null,null,null,null,null,null,null,null,null,null,0,null,null,null,null,null,null,null,0]
[null,null,null,null,null,null,null,null,null,null,null,0,null,null,null,null,null,null,null,0]
[null,null,null,null,null,null,null,null,null,null,null,0,null,null,null,null,null,null,null,0]
[null,null,null,null,null,null,null,null,null,null,null,0,null,null,null,null,null,null,null,0]
[null,null,null,null,null,null,null,null,null,null,null,0,null,null,null,null,null,null,null,0]
[null,null,null,null,null,null,null,null,null,null,null,{"$f":"IF(A833=\"\",0,SUM(F833:K833))","v":0},null,null,null,null,null,null,null,{"$f":"SUM(O833:S833)","v":0}]
[null,null,null,null,null,null,null,null,null,null,null,0,null,null,null,null,null,null,null,0]
[null,null,null,null,null,null,null,null,null,null,null,0,null,null,null,null,null,null,null,0]
[null,null,null,null,null,null,null,null,null,null,null,0,null,null,null,null,null,null,null,0]
[null,null,null,null,null,null,null,null,null,null,null,0,null,null,null,null,null,null,null,0]
[null,null,null,null,null,null,null,null,null,null,null,0,null,null,null,null,null,null,null,0]
[null,null,null,null,null,null,null,null,null,null,null,0,null,null,null,null,null,null,null,0]
[null,null,null,null,null,null,null,null,null,null,null,0,null,null,null,null,null,null,null,0]
[null,null,null,null,null,null,null,null,null,null,null,0,null,null,null,null,null,null,null,0]
[null,null,null,null,null,null,null,null,null,null,null,0,null,null,null,null,null,null,null,0]
[null,null,null,null,null,null,null,null,null,null,null,0,null,null,null,null,null,null,null,0]
[null,null,null,null,null,null,null,null,null,null,null,0,null,null,null,null,null,null,null,0]
[null,null,null,null,null,null,null,null,null,null,null,0,null,null,null,null,null,null,null,0]
[null,null,null,null,null,null,null,null,null,null,null,0,null,null,null,null,null,null,null,0]
[null,null,null,null,null,null,null,null,null,null,null,0,null,null,null,null,null,null,null,0]
[null,null,null,null,null,null,null,null,null,null,null,0,null,null,null,null,null,null,null,0]
[null,null,null,null,null,null,null,null,null,null,null,0,null,null,null,null,null,null,null,0]
[null,null,null,null,null,null,null,null,null,null,null,0,null,null,null,null,null,null,null,0]
[null,null,null,null,null,null,null,null,null,null,null,0,null,null,null,null,null,null,null,0]
[null,null,null,null,null,null,null,null,null,null,null,0,null,null,null,null,null,null,null,0]
[null,null,null,null,null,null,null,null,null,null,null,0,null,null,null,null,null,null,null,0]
[null,null,null,null,null,null,null,null,null,null,null,0,null,null,null,null,null,null,null,0]
[null,null,null,null,null,null,null,null,null,null,null,0,null,null,null,null,null,null,null,0]
[null,null,null,null,null,null,null,null,null,null,null,0,null,null,null,null,null,null,null,0]
[null,null,null,null,null,null,null,null,null,null,null,0,null,null,null,null,null,null,null,0]
[null,null,null,null,null,null,null,null,null,null,null,0,null,null,null,null,null,null,null,0]
[null,null,null,null,null,null,null,null,null,null,null,0,null,null,null,null,null,null,null,0]
[null,null,null,null,null,null,null,null,null,null,null,0,null,null,null,null,null,null,null,0]
[null,null,null,null,null,null,null,null,null,null,null,0,null,null,null,null,null,null,null,0]
[null,null,null,null,null,null,null,null,null,null,null,0,null,null,null,null,null,null,null,0]
[null,null,null,null,null,null,null,null,null,null,null,0,null,null,null,null,null,null,null,0]
[null,null,null,null,null,null,null,null,null,null,null,0,null,null,null,null,null,null,null,0]
[null,null,null,null,null,null,null,null,null,null,null,0,null,null,null,null,null,null,null,0]
[null,null,null,null,null,null,null,null,null,null,null,0,null,null,null,null,null,null,null,0]
[null,null,null,null,null,null,null,null,null,null,null,0,null,null,null,null,null,null,null,0]
[null,null,null,null,null,null,null,null,null,null,null,0,null,null,null,null,null,null,null,0]
[null,null,null,null,null,null,null,null,null,null,null,0,null,null,null,null,null,null,null,0]
[null,null,null,null,null,null,null,null,null,null,null,0,null,null,null,null,null,null,null,0]
[null,null,null,null,null,null,null,null,null,null,null,0,null,null,null,null,null,null,null,0]
[null,null,null,null,null,null,null,null,null,null,null,0,null,null,null,null,null,null,null,0]
[null,null,null,null,null,null,null,null,null,null,null,0,null,null,null,null,null,null,null,0]
[null,null,null,null,null,null,null,null,null,null,null,0,null,null,null,null,null,null,null,0]
[null,null,null,null,null,null,null,null,null,null,null,0,null,null,null,null,null,null,null,0]
[null,null,null,null,null,null,null,null,null,null,null,0,null,null,null,null,null,null,null,0]
[null,null,null,null,null,null,null,null,null,null,null,0,null,null,null,null,null,null,null,0]
[null,null,null,null,null,null,null,null,null,null,null,0,null,null,null,null,null,null,null,0]
[null,null,null,null,null,null,null,null,null,null,null,0,null,null,null,null,null,null,null,0]
[null,null,null,null,null,null,null,null,null,null,null,0,null,null,null,null,null,null,null,0]
[null,null,null,null,null,null,null,null,null,null,null,0,null,null,null,null,null,null,null,0]
[null,null,null,null,null,null,null,null,null,null,null,0,null,null,null,null,null,null,null,0]
[null,null,null,null,null,null,null,null,null,null,null,0,null,null,null,null,null,null,null,0]
[null,null,null,null,null,null,null,null,null,null,null,0,null,null,null,null,null,null,null,0]
[null,null,null,null,null,null,null,null,null,null,null,0,null,null,null,null,null,null,null,0]
[null,null,null,null,null,null,null,null,null,null,null,0,null,null,null,null,null,null,null,0]
[null,null,null,null,null,null,null,null,null,null,null,0,null,null,null,null,null,null,null,0]
[null,null,null,null,null,null,null,null,null,null,null,0,null,null,null,null,null,null,null,0]
[null,null,null,null,null,null,null,null,null,null,null,0,null,null,null,null,null,null,null,0]
[null,null,null,null,null,null,null,null,null,null,null,0,null,null,null,null,null,null,null,0]
[null,null,null,null,null,null,null,null,null,null,null,0,null,null,null,null,null,null,null,0]
[null,null,null,null,null,null,null,null,null,null,null,0,null,null,null,null,null,null,null,0]
[null,null,null,null,null,null,null,null,null,null,null,0,null,null,null,null,null,null,null,0]
[null,null,null,null,null,null,null,null,null,null,null,0,null,null,null,null,null,null,null,0]
[null,null,null,null,null,null,null,null,null,null,null,0,null,null,null,null,null,null,null,0]
[null,null,null,null,null,null,null,null,null,null,null,0,null,null,null,null,null,null,null,0]
[null,null,null,null,null,null,null,null,null,null,null,{"$f":"IF(A897=\"\",0,SUM(F897:K897))","v":0},null,null,null,null,null,null,null,{"$f":"SUM(O897:S897)","v":0}]
[null,null,null,null,null,null,null,null,null,null,null,0,null,null,null,null,null,null,null,0]
[null,null,null,null,null,null,null,null,null,null,null,0,null,null,null,null,null,null,null,0]
[null,null,null,null,null,null,null,null,null,null,null,0,null,null,null,null,null,null,null,0]
[null,null,null,null,null,null,null,null,null,null,null,0,null,null,null,null,null,null,null,0]
[null,null,null,null,null,null,null,null,null,null,null,0,null,null,null,null,null,null,null,0]
[null,null,null,null,null,null,null,null,null,null,null,0,null,null,null,null,null,null,null,0]
[null,null,null,null,null,null,null,null,null,null,null,0,null,null,null,null,null,null,null,0]
[null,null,null,null,null,null,null,null,null,null,null,0,null,null,null,null,null,null,null,0]
[null,null,null,null,null,null,null,null,null,null,null,0,null,null,null,null,null,null,null,0]
[null,null,null,null,null,null,null,null,null,null,null,0,null,null,null,null,null,null,null,0]
[null,null,null,null,null,null,null,null,null,null,null,0,null,null,null,null,null,null,null,0]
[null,null,null,null,null,null,null,null,null,null,null,0,null,null,null,null,null,null,null,0]
[null,null,null,null,null,null,null,null,null,null,null,0,null,null,null,null,null,null,null,0]
[null,null,null,null,null,null,null,null,null,null,null,0,null,null,null,null,null,null,null,0]
[null,null,null,null,null,null,null,null,null,null,null,0,null,null,null,null,null,null,null,0]
[null,null,null,null,null,null,null,null,null,null,null,0,null,null,null,null,null,null,null,0]
[null,null,null,null,null,null,null,null,null,null,null,0,null,null,null,null,null,null,null,0]
[null,null,null,null,null,null,null,null,null,null,null,0,null,null,null,null,null,null,null,0]
[null,null,null,null,null,null,null,null,null,null,null,0,null,null,null,null,null,null,null,0]
[null,null,null,null,null,null,null,null,null,null,null,0,null,null,null,null,null,null,null,0]
[null,null,null,null,null,null,null,null,null,null,null,0,null,null,null,null,null,null,null,0]
[null,null,null,null,null,null,null,null,null,null,null,0,null,null,null,null,null,null,null,0]
[null,null,null,null,null,null,null,null,null,null,null,0,null,null,null,null,null,null,null,0]
[null,null,null,null,null,null,null,null,null,null,null,0,null,null,null,null,null,null,null,0]
[null,null,null,null,null,null,null,null,null,null,null,0,null,null,null,null,null,null,null,0]
[null,null,null,null,null,null,null,null,null,null,null,0,null,null,null,null,null,null,null,0]
[null,null,null,null,null,null,null,null,null,null,null,0,null,null,null,null,null,null,null,0]
[null,null,null,null,null,null,null,null,null,null,null,0,null,null,null,null,null,null,null,0]
[null,null,null,null,null,null,null,null,null,null,null,0,null,null,null,null,null,null,null,0]
[null,null,null,null,null,null,null,null,null,null,null,0,null,null,null,null,null,null,null,0]
[null,null,null,null,null,null,null,null,null,null,null,0,null,null,null,null,null,null,null,0]
[null,null,null,null,null,null,null,null,null,null,null,0,null,null,null,null,null,null,null,0]
[null,null,null,null,null,null,null,null,null,null,null,0,null,null,null,null,null,null,null,0]
[null,null,null,null,null,null,null,null,null,null,null,0,null,null,null,null,null,null,null,0]
[null,null,null,null,null,null,null,null,null,null,null,0,null,null,null,null,null,null,null,0]
[null,null,null,null,null,null,null,null,null,null,null,0,null,null,null,null,null,null,null,0]
[null,null,null,null,null,null,null,null,null,null,null,0,null,null,null,null,null,null,null,0]
[null,null,null,null,null,null,null,null,null,null,null,0,null,null,null,null,null,null,null,0]
[null,null,null,null,null,null,null,null,null,null,null,0,null,null,null,null,null,null,null,0]
[null,null,null,null,null,null,null,null,null,null,null,0,null,null,null,null,null,null,null,0]
[null,null,null,null,null,null,null,null,null,null,null,0,null,null,null,null,null,null,null,0]
[null,null,null,null,null,null,null,null,null,null,null,0,null,null,null,null,null,null,null,0]
[null,null,null,null,null,null,null,null,null,null,null,0,null,null,null,null,null,null,null,0]
[null,null,null,null,null,null,null,null,null,null,null,0,null,null,null,null,null,null,null,0]
[null,null,null,null,null,null,null,null,null,null,null,0,null,null,null,null,null,null,null,0]
[null,null,null,null,null,null,null,null,null,null,null,0,null,null,null,null,null,null,null,0]
[null,null,null,null,null,null,null,null,null,null,null,0,null,null,null,null,null,null,null,0]
[null,null,null,null,null,null,null,null,null,null,null,0,null,null,null,null,null,null,null,0]
[null,null,null,null,null,null,null,null,null,null,null,0,null,null,null,null,null,null,null,0]
[null,null,null,null,null,null,null,null,null,null,null,0,null,null,null,null,null,null,null,0]
[null,null,null,null,null,null,null,null,null,null,null,0,null,null,null,null,null,null,null,0]
[null,null,null,null,null,null,null,null,null,null,null,0,null,null,null,null,null,null,null,0]
[null,null,null,null,null,null,null,null,null,null,null,0,null,null,null,null,null,null,null,0]
[null,null,null,null,null,null,null,null,null,null,null,0,null,null,null,null,null,null,null,0]
[null,null,null,null,null,null,null,null,null,null,null,0,null,null,null,null,null,null,null,0]
[null,null,null,null,null,null,null,null,null,null,null,0,null,null,null,null,null,null,null,0]
[null,null,null,null,null,null,null,null,null,null,null,0,null,null,null,null,null,null,null,0]
[null,null,null,null,null,null,null,null,null,null,null,0,null,null,null,null,null,null,null,0]
[null,null,null,null,null,null,null,null,null,null,null,0,null,null,null,null,null,null,null,0]
[null,null,null,null,null,null,null,null,null,null,null,0,null,null,null,null,null,null,null,0]
[null,null,null,null,null,null,null,null,null,null,null,0,null,null,null,null,null,null,null,0]
[null,null,null,null,null,null,null,null,null,null,null,0,null,null,null,null,null,null,null,0]
[null,null,null,null,null,null,null,null,null,null,null,0,null,null,null,null,null,null,null,0]
[null,null,null,null,null,null,null,null,null,null,null,{"$f":"IF(A961=\"\",0,SUM(F961:K961))","v":0},null,null,null,null,null,null,null,{"$f":"SUM(O961:S961)","v":0}]
[null,null,null,null,null,null,null,null,null,null,null,0,null,null,null,null,null,null,null,0]
[null,null,null,null,null,null,null,null,null,null,null,0,null,null,null,null,null,null,null,0]
[null,null,null,null,null,null,null,null,null,null,null,0,null,null,null,null,null,null,null,0]
[null,null,null,null,null,null,null,null,null,null,null,0,null,null,null,null,null,null,null,0]
[null,null,null,null,null,null,null,null,null,null,null,0,null,null,null,null,null,null,null,0]
[null,null,null,null,null,null,null,null,null,null,null,0,null,null,null,null,null,null,null,0]
[null,null,null,null,null,null,null,null,null,null,null,0,null,null,null,null,null,null,null,0]
[null,null,null,null,null,null,null,null,null,null,null,0,null,null,null,null,null,null,null,0]
[null,null,null,null,null,null,null,null,null,null,null,0,null,null,null,null,null,null,null,0]
[null,null,null,null,null,null,null,null,null,null,null,0,null,null,null,null,null,null,null,0]
[null,null,null,null,null,null,null,null,null,null,null,0,null,null,null,null,null,null,null,0]
[null,null,null,null,null,null,null,null,null,null,null,0,null,null,null,null,null,null,null,0]
[null,null,null,null,null,null,null,null,null,null,null,0,null,null,null,null,null,null,null,0]
[null,null,null,null,null,null,null,null,null,null,null,0,null,null,null,null,null,null,null,0]
[null,null,null,null,null,null,null,null,null,null,null,0,null,null,null,null,null,null,null,0]
[null,null,null,null,null,null,null,null,null,null,null,0,null,null,null,null,null,null,null,0]
[null,null,null,null,null,null,null,null,null,null,null,0,null,null,null,null,null,null,null,0]
[null,null,null,null,null,null,null,null,null,null,null,0,null,null,null,null,null,null,null,0]
[null,null,null,null,null,null,null,null,null,null,null,0,null,null,null,null,null,null,null,0]
[null,null,null,null,null,null,null,null,null,null,null,0,null,null,null,null,null,null,null,0]
[null,null,null,null,null,null,null,null,null,null,null,0,null,null,null,null,null,null,null,0]
[null,null,null,null,null,null,null,null,null,null,null,0,null,null,null,null,null,null,null,0]
[null,null,null,null,null,null,null,null,null,null,null,0,null,null,null,null,null,null,null,0]
[null,null,null,null,null,null,null,null,null,null,null,0,null,null,null,null,null,null,null,0]
[null,null,null,null,null,null,null,null,null,null,null,0,null,null,null,null,null,null,null,0]
[null,null,null,null,null,null,null,null,null,null,null,0,null,null,null,null,null,null,null,0]
[null,null,null,null,null,null,null,null,null,null,null,0,null,null,null,null,null,null,null,0]
[null,null,null,null,null,null,null,null,null,null,null,0,null,null,null,null,null,null,null,0]
[null,null,null,null,null,null,null,null,null,null,null,0,null,null,null,null,null,null,null,0]
[null,null,null,null,null,null,null,null,null,null,null,0,null,null,null,null,null,null,null,0]
[null,null,null,null,null,null,null,null,null,null,null,0,null,null,null,null,null,null,null,0]
[null,null,null,null,null,null,null,null,null,null,null,0,null,null,null,null,null,null,null,0]
[null,null,null,null,null,null,null,null,null,null,null,0,null,null,null,null,null,null,null,0]
[null,null,null,null,null,null,null,null,null,null,null,0,null,null,null,null,null,null,null,0]
[null,null,null,null,null,null,null,null,null,null,null,0,null,null,null,null,null,null,null,0]
[null,null,null,null,null,null,null,null,null,null,null,0,null,null,null,null,null,null,null,0]
[null,null,null,null,null,null,null,null,null,null,null,0,null,null,null,null,null,null,null,0]
[null,null,null,null,null,null,null,null,null,null,null,0,null,null,null,null,null,null,null,0]
[null,null,null,null,null,null,null,null,null,null,null,0,null,null,null,null,null,null,null,0]
[null,null,null,null,null,null,null,null,null,null,null,{"$f":"IF(A1001=\"\",0,SUM(F1001:K1001))","v":0},null,null,null,null,null,null,null,{"$f":"SUM(O1001:S1001)","v":0}]
[null,null,null,null,null,null,null,null,null,null,null,0,null,null,null,null,null,null,null,0]
[null,null,null,null,null,null,null,null,null,null,null,0,null,null,null,null,null,null,null,0]
[null,null,null,null,null,null,null,null,null,null,null,0,null,null,null,null,null,null,null,0]
[null,null,null,null,null,null,null,null,null,null,null,0,null,null,null,null,null,null,null,0]
[null,null,null,null,null,null,null,null,null,null,null,0,null,null,null,null,null,null,null,0]
[null,null,null,null,null,null,null,null,null,null,null,0,null,null,null,null,null,null,null,0]
[null,null,null,null,null,null,null,null,null,null,null,0,null,null,null,null,null,null,null,0]
[null,null,null,null,null,null,null,null,null,null,null,0,null,null,null,null,null,null,null,0]
[null,null,null,null,null,null,null,null,null,null,null,0,null,null,null,null,null,null,null,0]
[null,null,null,null,null,null,null,null,null,null,null,0,null,null,null,null,null,null,null,0]
[null,null,null,null,null,null,null,null,null,null,null,0,null,null,null,null,null,null,null,0]
[null,null,null,null,null,null,null,null,null,null,null,0,null,null,null,null,null,null,null,0]
[null,null,null,null,null,null,null,null,null,null,null,0,null,null,null,null,null,null,null,0]
[null,null,null,null,null,null,null,null,null,null,null,0,null,null,null,null,null,null,null,0]
[null,null,null,null,null,null,null,null,null,null,null,0,null,null,null,null,null,null,null,0]
[null,null,null,null,null,null,null,null,null,null,null,0,null,null,null,null,null,null,null,0]
[null,null,null,null,null,null,null,null,null,null,null,0,null,null,null,null,null,null,null,0]
[null,null,null,null,null,null,null,null,null,null,null,0,null,null,null,null,null,null,null,0]
[null,null,null,null,null,null,null,null,null,null,null,0,null,null,null,null,null,null,null,0]
[null,null,null,null,null,null,null,null,null,null,null,0,null,null,null,null,null,null,null,0]
[null,null,null,null,null,null,null,null,null,null,null,0,null,null,null,null,null,null,null,0]
[null,null,null,null,null,null,null,null,null,null,null,0,null,null,null,null,null,null,null,0]
[null,null,null,null,null,null,null,null,null,null,null,0,null,null,null,null,null,null,null,0]
[null,null,null,null,null,null,null,null,null,null,null,0,null,null,null,null,null,null,null,0]
[null,null,null,null,null,null,null,null,null,null,null,0,null,null,null,null,null,null,null,0]
[null,null,null,null,null,null,null,null,null,null,null,0,null,null,null,null,null,null,null,0]
[null,null,null,null,null,null,null,null,null,null,null,0,null,null,null,null,null,null,null,0]
[null,null,null,null,null,null,null,null,null,null,null,0,null,null,null,null,null,null,null,0]
[null,null,null,null,null,null,null,null,null,null,null,0,null,null,null,null,null,null,null,0]
[null,null,null,null,null,null,null,null,null,null,null,0,null,null,null,null,null,null,null,0]
[null,null,null,null,null,null,null,null,null,null,null,0,null,null,null,null,null,null,null,0]
[null,null,null,null,null,null,null,null,null,null,null,0,null,null,null,null,null,null,null,0]
[null,null,null,null,null,null,null,null,null,null,null,0,null,null,null,null,null,null,null,0]
[null,null,null,null,null,null,null,null,null,null,null,0,null,null,null,null,null,null,null,0]
[null,null,null,null,null,null,null,null,null,null,null,0,null,null,null,null,null,null,null,0]
[null,null,null,null,null,null,null,null,null,null,null,0,null,null,null,null,null,null,null,0]
[null,null,null,null,null,null,null,null,null,null,null,0,null,null,null,null,null,null,null,0]
[null,null,null,null,null,null,null,null,null,null,null,0,null,null,null,null,null,null,null,0]
[null,null,null,null,null,null,null,null,null,null,null,0,null,null,null,null,null,null,null,0]
[null,null,null,null,null,null,null,null,null,null,null,0,null,null,null,null,null,null,null,0]
[null,null,null,null,null,null,null,null,null,null,null,0,null,null,null,null,null,null,null,0]
[null,null,null,null,null,null,null,null,null,null,null,0,null,null,null,null,null,null,null,0]
[null,null,null,null,null,null,null,null,null,null,null,0,null,null,null,null,null,null,null,0]
[null,null,null,null,null,null,null,null,null,null,null,0,null,null,null,null,null,null,null,0]
[null,null,null,null,null,null,null,null,null,null,null,0,null,null,null,null,null,null,null,0]
[null,null,null,null,null,null,null,null,null,null,null,0,null,null,null,null,null,null,null,0]
[null,null,null,null,null,null,null,null,null,null,null,0,null,null,null,null,null,null,null,0]
[null,null,null,null,null,null,null,null,null,null,null,0,null,null,null,null,null,null,null,0]
[null,null,null,null,null,null,null,null,null,null,null,0,null,null,null,null,null,null,null,0]
[null,null,null,null,null,null,null,null,null,null,null,0,null,null,null,null,null,null,null,0]
[null,null,null,null,null,null,null,null,null,null,null,0,null,null,null,null,null,null,null,0]
[null,null,null,null,null,null,null,null,null,null,null,0,null,null,null,null,null,null,null,0]
[null,null,null,null,null,null,null,null,null,null,null,0,null,null,null,null,null,null,null,0]
[null,null,null,null,null,null,null,null,null,null,null,0,null,null,null,null,null,null,null,0]
[null,null,null,null,null,null,null,null,null,null,null,0,null,null,null,null,null,null,null,0]
[null,null,null,null,null,null,null,null,null,null,null,0,null,null,null,null,null,null,null,0]
[null,null,null,null,null,null,null,null,null,null,null,0,null,null,null,null,null,null,null,0]
[null,null,null,null,null,null,null,null,null,null,null,0,null,null,null,null,null,null,null,0]
[null,null,null,null,null,null,null,null,null,null,null,0,null,null,null,null,null,null,null,0]
[null,null,null,null,null,null,null,null,null,null,null,0,null,null,null,null,null,null,null,0]
[null,null,null,null,null,null,null,null,null,null,null,0,null,null,null,null,null,null,null,0]
[null,null,null,null,null,null,null,null,null,null,null,0,null,null,null,null,null,null,null,0]
[null,null,null,null,null,null,null,null,null,null,null,0,null,null,null,null,null,null,null,0]
[null,null,null,null,null,null,null,null,null,null,null,{"$f":"IF(A1065=\"\",0,SUM(F1065:K1065))","v":0},null,null,null,null,null,null,null,{"$f":"SUM(O1065:S1065)","v":0}]
[null,null,null,null,null,null,null,null,null,null,null,0,null,null,null,null,null,null,null,0]
[null,null,null,null,null,null,null,null,null,null,null,0,null,null,null,null,null,null,null,0]
[null,null,null,null,null,null,null,null,null,null,null,0,null,null,null,null,null,null,null,0]
[null,null,null,null,null,null,null,null,null,null,null,0,null,null,null,null,null,null,null,0]
[null,null,null,null,null,null,null,null,null,null,null,0,null,null,null,null,null,null,null,0]
[null,null,null,null,null,null,null,null,null,null,null,0,null,null,null,null,null,null,null,0]
[null,null,null,null,null,null,null,null,null,null,null,0,null,null,null,null,null,null,null,0]
[null,null,null,null,null,null,null,null,null,null,null,0,null,null,null,null,null,null,null,0]
[null,null,null,null,null,null,null,null,null,null,null,0,null,null,null,null,null,null,null,0]
[null,null,null,null,null,null,null,null,null,null,null,0,null,null,null,null,null,null,null,0]
[null,null,null,null,null,null,null,null,null,null,null,0,null,null,null,null,null,null,null,0]
[null,null,null,null,null,null,null,null,null,null,null,0,null,null,null,null,null,null,null,0]
[null,null,null,null,null,null,null,null,null,null,null,0,null,null,null,null,null,null,null,0]
[null,null,null,null,null,null,null,null,null,null,null,0,null,null,null,null,null,null,null,0]
[null,null,null,null,null,null,null,null,null,null,null,0,null,null,null,null,null,null,null,0]
[null,null,null,null,null,null,null,null,null,null,null,0,null,null,null,null,null,null,null,0]
[null,null,null,null,null,null,null,null,null,null,null,0,null,null,null,null,null,null,null,0]
[null,null,null,null,null,null,null,null,null,null,null,0,null,null,null,null,null,null,null,0]
[null,null,null,null,null,null,null,null,null,null,null,0,null,null,null,null,null,null,null,0]
[null,null,null,null,null,null,null,null,null,null,null,0,null,null,null,null,null,null,null,0]
[null,null,null,null,null,null,null,null,null,null,null,0,null,null,null,null,null,null,null,0]
[null,null,null,null,null,null,null,null,null,null,null,0,null,null,null,null,null,null,null,0]
[null,null,null,null,null,null,null,null,null,null,null,0,null,null,null,null,null,null,null,0]
[null,null,null,null,null,null,null,null,null,null,null,0,null,null,null,null,null,null,null,0]
[null,null,null,null,null,null,null,null,null,null,null,0,null,null,null,null,null,null,null,0]
[null,null,null,null,null,null,null,null,null,null,null,0,null,null,null,null,null,null,null,0]
[null,null,null,null,null,null,null,null,null,null,null,0,null,null,null,null,null,null,null,0]
[null,null,null,null,null,null,null,null,null,null,null,0,null,null,null,null,null,null,null,0]
[null,null,null,null,null,null,null,null,null,null,null,0,null,null,null,null,null,null,null,0]
[null,null,null,null,null,null,null,null,null,null,null,0,null,null,null,null,null,null,null,0]
[null,null,null,null,null,null,null,null,null,null,null,0,null,null,null,null,null,null,null,0]
[null,null,null,null,null,null,null,null,null,null,null,0,null,null,null,null,null,null,null,0]
[null,null,null,null,null,null,null,null,null,null,null,0,null,null,null,null,null,null,null,0]
[null,null,null,null,null,null,null,null,null,null,null,0,null,null,null,null,null,null,null,0]
[null,null,null,null,null,null,null,null,null,null,null,0,null,null,null,null,null,null,null,0]
[null,null,null,null,null,null,null,null,null,null,null,0,null,null,null,null,null,null,null,0]
[null,null,null,null,null,null,null,null,null,null,null,0,null,null,null,null,null,null,null,0]
[null,null,null,null,null,null,null,null,null,null,null,0,null,null,null,null,null,null,null,0]
[null,null,null,null,null,null,null,null,null,null,null,0,null,null,null,null,null,null,null,0]
[null,null,null,null,null,null,null,null,null,null,null,0,null,null,null,null,null,null,null,0]
[null,null,null,null,null,null,null,null,null,null,null,0,null,null,null,null,null,null,null,0]
[null,null,null,null,null,null,null,null,null,null,null,0,null,null,null,null,null,null,null,0]
[null,null,null,null,null,null,null,null,null,null,null,0,null,null,null,null,null,null,null,0]
[null,null,null,null,null,null,null,null,null,null,null,0,null,null,null,null,null,null,null,0]
[null,null,null,null,null,null,null,null,null,null,null,0,null,null,null,null,null,null,null,0]
[null,null,null,null,null,null,null,null,null,null,null,0,null,null,null,null,null,null,null,0]
[null,null,null,null,null,null,null,null,null,null,null,0,null,null,null,null,null,null,null,0]
[null,null,null,null,null,null,null,null,null,null,null,0,null,null,null,null,null,null,null,0]
[null,null,null,null,null,null,null,null,null,null,null,0,null,null,null,null,null,null,null,0]
[null,null,null,null,null,null,null,null,null,null,null,0,null,null,null,null,null,null,null,0]
[null,null,null,null,null,null,null,null,null,null,null,0,null,null,null,null,null,null,null,0]
[null,null,null,null,null,null,null,null,null,null,null,0,null,null,null,null,null,null,null,0]
[null,null,null,null,null,null,null,null,null,null,null,0,null,null,null,null,null,null,null,0]
[null,null,null,null,null,null,null,null,null,null,null,0,null,null,null,null,null,null,null,0]
[null,null,null,null,null,null,null,null,null,null,null,0,null,null,null,null,null,null,null,0]
[null,null,null,null,null,null,null,null,null,null,null,0,null,null,null,null,null,null,null,0]
[null,null,null,null,null,null,null,null,null,null,null,0,null,null,null,null,null,null,null,0]
[null,null,null,null,null,null,null,null,null,null,null,0,null,null,null,null,null,null,null,0]
[null,null,null,null,null,null,null,null,null,null,null,0,null,null,null,null,null,null,null,0]
[null,null,null,null,null,null,null,null,null,null,null,0,null,null,null,null,null,null,null,0]
[null,null,null,null,null,null,null,null,null,null,null,0,null,null,null,null,null,null,null,0]
[null,null,null,null,null,null,null,null,null,null,null,0,null,null,null,null,null,null,null,0]
[null,null,null,null,null,null,null,null,null,null,null,0,null,null,null,null,null,null,null,0]
[null,null,null,null,null,null,null,null,null,null,null,{"$f":"IF(A1129=\"\",0,SUM(F1129:K1129))","v":0},null,null,null,null,null,null,null,{"$f":"SUM(O1129:S1129)","v":0}]
[null,null,null,null,null,null,null,null,null,null,null,0,null,null,null,null,null,null,null,0]
[null,null,null,null,null,null,null,null,null,null,null,0,null,null,null,null,null,null,null,0]
[null,null,null,null,null,null,null,null,null,null,null,0,null,null,null,null,null,null,null,0]
[null,null,null,null,null,null,null,null,null,null,null,0,null,null,null,null,null,null,null,0]
[null,null,null,null,null,null,null,null,null,null,null,0,null,null,null,null,null,null,null,0]
[null,null,null,null,null,null,null,null,null,null,null,0,null,null,null,null,null,null,null,0]
[null,null,null,null,null,null,null,null,null,null,null,0,null,null,null,null,null,null,null,0]
[null,null,null,null,null,null,null,null,null,null,null,0,null,null,null,null,null,null,null,0]
[null,null,null,null,null,null,null,null,null,null,null,0,null,null,null,null,null,null,null,0]
[null,null,null,null,null,null,null,null,null,null,null,0,null,null,null,null,null,null,null,0]
[null,null,null,null,null,null,null,null,null,null,null,0,null,null,null,null,null,null,null,0]
[null,null,null,null,null,null,null,null,null,null,null,0,null,null,null,null,null,null,null,0]
[null,null,null,null,null,null,null,null,null,null,null,0,null,null,null,null,null,null,null,0]
[null,null,null,null,null,null,null,null,null,null,null,0,null,null,null,null,null,null,null,0]
[null,null,null,null,null,null,null,null,null,null,null,0,null,null,null,null,null,null,null,0]
[null,null,null,null,null,null,null,null,null,null,null,0,null,null,null,null,null,null,null,0]
[null,null,null,null,null,null,null,null,null,null,null,0,null,null,null,null,null,null,null,0]
[null,null,null,null,null,null,null,null,null,null,null,0,null,null,null,null,null,null,null,0]
[null,null,null,null,null,null,null,null,null,null,null,0,null,null,null,null,null,null,null,0]
[null,null,null,null,null,null,null,null,null,null,null,0,null,null,null,null,null,null,null,0]
[null,null,null,null,null,null,null,null,null,null,null,0,null,null,null,null,null,null,null,0]
[null,null,null,null,null,null,null,null,null,null,null,0,null,null,null,null,null,null,null,0]
[null,null,null,null,null,null,null,null,null,null,null,0,null,null,null,null,null,null,null,0]
[null,null,null,null,null,null,null,null,null,null,null,0,null,null,null,null,null,null,null,0]
[null,null,null,null,null,null,null,null,null,null,null,0,null,null,null,null,null,null,null,0]
[null,null,null,null,null,null,null,null,null,null,null,0,null,null,null,null,null,null,null,0]
[null,null,null,null,null,null,null,null,null,null,null,0,null,null,null,null,null,null,null,0]
[null,null,null,null,null,null,null,null,null,null,null,0,null,null,null,null,null,null,null,0]
[null,null,null,null,null,null,null,null,null,null,null,0,null,null,null,null,null,null,null,0]
[null,null,null,null,null,null,null,null,null,null,null,0,null,null,null,null,null,null,null,0]
[null,null,null,null,null,null,null,null,null,null,null,0,null,null,null,null,null,null,null,0]
[null,null,null,null,null,null,null,null,null,null,null,0,null,null,null,null,null,null,null,0]
[null,null,null,null,null,null,null,null,null,null,null,0,null,null,null,null,null,null,null,0]
[null,null,null,null,null,null,null,null,null,null,null,0,null,null,null,null,null,null,null,0]
[null,null,null,null,null,null,null,null,null,null,null,0,null,null,null,null,null,null,null,0]
[null,null,null,null,null,null,null,null,null,null,null,0,null,null,null,null,null,null,null,0]
[null,null,null,null,null,null,null,null,null,null,null,0,null,null,null,null,null,null,null,0]
[null,null,null,null,null,null,null,null,null,null,null,0,null,null,null,null,null,null,null,0]
[null,null,null,null,null,null,null,null,null,null,null,0,null,null,null,null,null,null,null,0]
[null,null,null,null,null,null,null,null,null,null,null,0,null,null,null,null,null,null,null,0]
[null,null,null,null,null,null,null,null,null,null,null,0,null,null,null,null,null,null,null,0]
[null,null,null,null,null,null,null,null,null,null,null,0,null,null,null,null,null,null,null,0]
[null,null,null,null,null,null,null,null,null,null,null,0,null,null,null,null,null,null,null,0]
[null,null,null,null,null,null,null,null,null,null,null,0,null,null,null,null,null,null,null,0]
[null,null,null,null,null,null,null,null,null,null,null,0,null,null,null,null,null,null,null,0]
[null,null,null,null,null,null,null,null,null,null,null,0,null,null,null,null,null,null,null,0]
[null,null,null,null,null,null,null,null,null,null,null,0,null,null,null,null,null,null,null,0]
[null,null,null,null,null,null,null,null,null,null,null,0,null,null,null,null,null,null,null,0]
[null,null,null,null,null,null,null,null,null,null,null,0,null,null,null,null,null,null,null,0]
[null,null,null,null,null,null,null,null,null,null,null,0,null,null,null,null,null,null,null,0]
[null,null,null,null,null,null,null,null,null,null,null,0,null,null,null,null,null,null,null,0]
[null,null,null,null,null,null,null,null,null,null,null,0,null,null,null,null,null,null,null,0]
[null,null,null,null,null,null,null,null,null,null,null,0,null,null,null,null,null,null,null,0]
[null,null,null,null,null,null,null,null,null,null,null,0,null,null,null,null,null,null,null,0]
[null,null,null,null,null,null,null,null,null,null,null,0,null,null,null,null,null,null,null,0]
[null,null,null,null,null,null,null,null,null,null,null,0,null,null,null,null,null,null,null,0]
[null,null,null,null,null,null,null,null,null,null,null,0,null,null,null,null,null,null,null,0]
[null,null,null,null,null,null,null,null,null,null,null,0,null,null,null,null,null,null,null,0]
[null,null,null,null,null,null,null,null,null,null,null,0,null,null,null,null,null,null,null,0]
[null,null,null,null,null,null,null,null,null,null,null,0,null,null,null,null,null,null,null,0]
[null,null,null,null,null,null,null,null,null,null,null,0,null,null,null,null,null,null,null,0]
[null,null,null,null,null,null,null,null,null,null,null,0,null,null,null,null,null,null,null,0]
[null,null,null,null,null,null,null,null,null,null,null,0,null,null,null,null,null,null,null,0]
[null,null,null,null,null,null,null,null,null,null,null,{"$f":"IF(A1193=\"\",0,SUM(F1193:K1193))","v":0},null,null,null,null,null,null,null,{"$f":"SUM(O1193:S1193)","v":0}]
[null,null,null,null,null,null,null,null,null,null,null,0,null,null,null,null,null,null,null,0]
[null,null,null,null,null,null,null,null,null,null,null,0,null,null,null,null,null,null,null,0]
[null,null,null,null,null,null,null,null,null,null,null,0,null,null,null,null,null,null,null,0]
[null,null,null,null,null,null,null,null,null,null,null,0,null,null,null,null,null,null,null,0]
[null,null,null,null,null,null,null,null,null,null,null,0,null,null,null,null,null,null,null,0]
[null,null,null,null,null,null,null,null,null,null,null,0,null,null,null,null,null,null,null,0]
[null,null,null,null,null,null,null,null,null,null,null,0,null,null,null,null,null,null,null,0]
[null,null,null,null,null,null,null,null,null,null,null,0,null,null,null,null,null,null,null,0]
[null,null,null,null,null,null,null,null,null,null,null,0,null,null,null,null,null,null,null,0]
[null,null,null,null,null,null,null,null,null,null,null,0,null,null,null,null,null,null,null,0]
[null,null,null,null,null,null,null,null,null,null,null,0,null,null,null,null,null,null,null,0]
[null,null,null,null,null,null,null,null,null,null,null,0,null,null,null,null,null,null,null,0]
[null,null,null,null,null,null,null,null,null,null,null,0,null,null,null,null,null,null,null,0]
[null,null,null,null,null,null,null,null,null,null,null,0,null,null,null,null,null,null,null,0]
[null,null,null,null,null,null,null,null,null,null,null,0,null,null,null,null,null,null,null,0]
[null,null,null,null,null,null,null,null,null,null,null,0,null,null,null,null,null,null,null,0]
[null,null,null,null,null,null,null,null,null,null,null,0,null,null,null,null,null,null,null,0]
[null,null,null,null,null,null,null,null,null,null,null,0,null,null,null,null,null,null,null,0]
[null,null,null,null,null,null,null,null,null,null,null,0,null,null,null,null,null,null,null,0]
[null,null,null,null,null,null,null,null,null,null,null,0,null,null,null,null,null,null,null,0]
[null,null,null,null,null,null,null,null,null,null,null,0,null,null,null,null,null,null,null,0]
[null,null,null,null,null,null,null,null,null,null,null,0,null,null,null,null,null,null,null,0]
[null,null,null,null,null,null,null,null,null,null,null,0,null,null,null,null,null,null,null,0]
[null,null,null,null,null,null,null,null,null,null,null,0,null,null,null,null,null,null,null,0]
[null,null,null,null,null,null,null,null,null,null,null,0,null,null,null,null,null,null,null,0]
[null,null,null,null,null,null,null,null,null,null,null,0,null,null,null,null,null,null,null,0]
[null,null,null,null,null,null,null,null,null,null,null,0,null,null,null,null,null,null,null,0]
[null,null,null,null,null,null,null,null,null,null,null,0,null,null,null,null,null,null,null,0]
[null,null,null,null,null,null,null,null,null,null,null,0,null,null,null,null,null,null,null,0]
[null,null,null,null,null,null,null,null,null,null,null,0,null,null,null,null,null,null,null,0]
[null,null,null,null,null,null,null,null,null,null,null,0,null,null,null,null,null,null,null,0]
[null,null,null,null,null,null,null,null,null,null,null,0,null,null,null,null,null,null,null,0]
[null,null,null,null,null,null,null,null,null,null,null,0,null,null,null,null,null,null,null,0]
[null,null,null,null,null,null,null,null,null,null,null,0,null,null,null,null,null,null,null,0]
[null,null,null,null,null,null,null,null,null,null,null,0,null,null,null,null,null,null,null,0]
[null,null,null,null,null,null,null,null,null,null,null,0,null,null,null,null,null,null,null,0]
[null,null,null,null,null,null,null,null,null,null,null,0,null,null,null,null,null,null,null,0]
[null,null,null,null,null,null,null,null,null,null,null,0,null,null,null,null,null,null,null,0]
[null,null,null,null,null,null,null,null,null,null,null,0,null,null,null,null,null,null,null,0]
[null,null,null,null,null,null,null,null,null,null,null,0,null,null,null,null,null,null,null,0]
[null,null,null,null,null,null,null,null,null,null,null,0,null,null,null,null,null,null,null,0]
[null,null,null,null,null,null,null,null,null,null,null,0,null,null,null,null,null,null,null,0]
[null,null,null,null,null,null,null,null,null,null,null,0,null,null,null,null,null,null,null,0]
[null,null,null,null,null,null,null,null,null,null,null,0,null,null,null,null,null,null,null,0]
[null,null,null,null,null,null,null,null,null,null,null,0,null,null,null,null,null,null,null,0]
[null,null,null,null,null,null,null,null,null,null,null,0,null,null,null,null,null,null,null,0]
[null,null,null,null,null,null,null,null,null,null,null,0,null,null,null,null,null,null,null,0]
[null,null,null,null,null,null,null,null,null,null,null,0,null,null,null,null,null,null,null,0]
[null,null,null,null,null,null,null,null,null,null,null,0,null,null,null,null,null,null,null,0]
[null,null,null,null,null,null,null,null,null,null,null,0,null,null,null,null,null,null,null,0]
[null,null,null,null,null,null,null,null,null,null,null,0,null,null,null,null,null,null,null,0]
[null,null,null,null,null,null,null,null,null,null,null,0,null,null,null,null,null,null,null,0]
[null,null,null,null,null,null,null,null,null,null,null,0,null,null,null,null,null,null,null,0]
[null,null,null,null,null,null,null,null,null,null,null,0,null,null,null,null,null,null,null,0]
[null,null,null,null,null,null,null,null,null,null,null,0,null,null,null,null,null,null,null,0]
[null,null,null,null,null,null,null,null,null,null,null,0,null,null,null,null,null,null,null,0]
[null,null,null,null,null,null,null,null,null,null,null,0,null,null,null,null,null,null,null,0]
[null,null,null,null,null,null,null,null,null,null,null,0,null,null,null,null,null,null,null,0]
[null,null,null,null,null,null,null,null,null,null,null,0,null,null,null,null,null,null,null,0]
[null,null,null,null,null,null,null,null,null,null,null,0,null,null,null,null,null,null,null,0]
[null,null,null,null,null,null,null,null,null,null,null,0,null,null,null,null,null,null,null,0]
[null,null,null,null,null,null,null,null,null,null,null,0,null,null,null,null,null,null,null,0]
[null,null,null,null,null,null,null,null,null,null,null,0,null,null,null,null,null,null,null,0]
[null,null,null,null,null,null,null,null,null,null,null,{"$f":"IF(A1257=\"\",0,SUM(F1257:K1257))","v":0},null,null,null,null,null,null,null,{"$f":"SUM(O1257:S1257)","v":0}]
[null,null,null,null,null,null,null,null,null,null,null,0,null,null,null,null,null,null,null,0]
[null,null,null,null,null,null,null,null,null,null,null,0,null,null,null,null,null,null,null,0]
[null,null,null,null,null,null,null,null,null,null,null,0,null,null,null,null,null,null,null,0]
[null,null,null,null,null,null,null,null,null,null,null,0,null,null,null,null,null,null,null,0]
[null,null,null,null,null,null,null,null,null,null,null,0,null,null,null,null,null,null,null,0]
[null,null,null,null,null,null,null,null,null,null,null,0,null,null,null,null,null,null,null,0]
[null,null,null,null,null,null,null,null,null,null,null,0,null,null,null,null,null,null,null,0]
[null,null,null,null,null,null,null,null,null,null,null,0,null,null,null,null,null,null,null,0]
[null,null,null,null,null,null,null,null,null,null,null,0,null,null,null,null,null,null,null,0]
[null,null,null,null,null,null,null,null,null,null,null,0,null,null,null,null,null,null,null,0]
[null,null,null,null,null,null,null,null,null,null,null,0,null,null,null,null,null,null,null,0]
[null,null,null,null,null,null,null,null,null,null,null,0,null,null,null,null,null,null,null,0]
[null,null,null,null,null,null,null,null,null,null,null,0,null,null,null,null,null,null,null,0]
[null,null,null,null,null,null,null,null,null,null,null,0,null,null,null,null,null,null,null,0]
[null,null,null,null,null,null,null,null,null,null,null,0,null,null,null,null,null,null,null,0]
[null,null,null,null,null,null,null,null,null,null,null,0,null,null,null,null,null,null,null,0]
[null,null,null,null,null,null,null,null,null,null,null,0,null,null,null,null,null,null,null,0]
[null,null,null,null,null,null,null,null,null,null,null,0,null,null,null,null,null,null,null,0]
[null,null,null,null,null,null,null,null,null,null,null,0,null,null,null,null,null,null,null,0]
[null,null,null,null,null,null,null,null,null,null,null,0,null,null,null,null,null,null,null,0]
[null,null,null,null,null,null,null,null,null,null,null,0,null,null,null,null,null,null,null,0]
[null,null,null,null,null,null,null,null,null,null,null,0,null,null,null,null,null,null,null,0]
[null,null,null,null,null,null,null,null,null,null,null,0,null,null,null,null,null,null,null,0]
[null,null,null,null,null,null,null,null,null,null,null,0,null,null,null,null,null,null,null,0]
[null,null,null,null,null,null,null,null,null,null,null,0,null,null,null,null,null,null,null,0]
[null,null,null,null,null,null,null,null,null,null,null,0,null,null,null,null,null,null,null,0]
[null,null,null,null,null,null,null,null,null,null,null,0,null,null,null,null,null,null,null,0]
[null,null,null,null,null,null,null,null,null,null,null,0,null,null,null,null,null,null,null,0]
[null,null,null,null,null,null,null,null,null,null,null,0,null,null,null,null,null,null,null,0]
[null,null,null,null,null,null,null,null,null,null,null,0,null,null,null,null,null,null,null,0]
[null,null,null,null,null,null,null,null,null,null,null,0,null,null,null,null,null,null,null,0]
[null,null,null,null,null,null,null,null,null,null,null,0,null,null,null,null,null,null,null,0]
[null,null,null,null,null,null,null,null,null,null,null,0,null,null,null,null,null,null,null,0]
[null,null,null,null,null,null,null,null,null,null,null,0,null,null,null,null,null,null,null,0]
[null,null,null,null,null,null,null,null,null,null,null,0,null,null,null,null,null,null,null,0]
[null,null,null,null,null,null,null,null,null,null,null,0,null,null,null,null,null,null,null,0]
[null,null,null,null,null,null,null,null,null,null,null,0,null,null,null,null,null,null,null,0]
[null,null,null,null,null,null,null,null,null,null,null,0,null,null,null,null,null,null,null,0]
[null,null,null,null,null,null,null,null,null,null,null,0,null,null,null,null,null,null,null,0]
[null,null,null,null,null,null,null,null,null,null,null,0,null,null,null,null,null,null,null,0]
[null,null,null,null,null,null,null,null,null,null,null,0,null,null,null,null,null,null,null,0]
[null,null,null,null,null,null,null,null,null,null,null,0,null,null,null,null,null,null,null,0]
[null,null,null,null,null,null,null,null,null,null,null,0,null,null,null,null,null,null,null,0]
[null,null,null,null,null,null,null,null,null,null,null,0,null,null,null,null,null,null,null,0]
[null,null,null,null,null,null,null,null,null,null,null,0,null,null,null,null,null,null,null,0]
[null,null,null,null,null,null,null,null,null,null,null,0,null,null,null,null,null,null,null,0]
[null,null,null,null,null,null,null,null,null,null,null,0,null,null,null,null,null,null,null,0]
[null,null,null,null,null,null,null,null,null,null,null,0,null,null,null,null,null,null,null,0]
[null,null,null,null,null,null,null,null,null,null,null,0,null,null,null,null,null,null,null,0]
[null,null,null,null,null,null,null,null,null,null,null,0,null,null,null,null,null,null,null,0]
[null,null,null,null,null,null,null,null,null,null,null,0,null,null,null,null,null,null,null,0]
[null,null,null,null,null,null,null,null,null,null,null,0,null,null,null,null,null,null,null,0]
[null,null,null,null,null,null,null,null,null,null,null,0,null,null,null,null,null,null,null,0]
[null,null,null,null,null,null,null,null,null,null,null,0,null,null,null,null,null,null,null,0]
[null,null,null,null,null,null,null,null,null,null,null,0,null,null,null,null,null,null,null,0]
[null,null,null,null,null,null,null,null,null,null,null,0,null,null,null,null,null,null,null,0]
[null,null,null,null,null,null,null,null,null,null,null,0,null,null,null,null,null,null,null,0]
[null,null,null,null,null,null,null,null,null,null,null,0,null,null,null,null,null,null,null,0]
[null,null,null,null,null,null,null,null,null,null,null,0,null,null,null,null,null,null,null,0]
[null,null,null,null,null,null,null,null,null,null,null,0,null,null,null,null,null,null,null,0]
[null,null,null,null,null,null,null,null,null,null,null,0,null,null,null,null,null,null,null,0]
[null,null,null,null,null,null,null,null,null,null,null,0,null,null,null,null,null,null,null,0]
[null,null,null,null,null,null,null,null,null,null,null,0,null,null,null,null,null,null,null,0]
[null,null,null,null,null,null,null,null,null,null,null,{"$f":"IF(A1321=\"\",0,SUM(F1321:K1321))","v":0},null,null,null,null,null,null,null,{"$f":"SUM(O1321:S1321)","v":0}]
[null,null,null,null,null,null,null,null,null,null,null,0,null,null,null,null,null,null,null,0]
[null,null,null,null,null,null,null,null,null,null,null,0,null,null,null,null,null,null,null,0]
[null,null,null,null,null,null,null,null,null,null,null,0,null,null,null,null,null,null,null,0]
[null,null,null,null,null,null,null,null,null,null,null,0,null,null,null,null,null,null,null,0]
[null,null,null,null,null,null,null,null,null,null,null,0,null,null,null,null,null,null,null,0]
[null,null,null,null,null,null,null,null,null,null,null,0,null,null,null,null,null,null,null,0]
[null,null,null,null,null,null,null,null,null,null,null,0,null,null,null,null,null,null,null,0]
[null,null,null,null,null,null,null,null,null,null,null,0,null,null,null,null,null,null,null,0]
[null,null,null,null,null,null,null,null,null,null,null,0,null,null,null,null,null,null,null,0]
[null,null,null,null,null,null,null,null,null,null,null,0,null,null,null,null,null,null,null,0]
[null,null,null,null,null,null,null,null,null,null,null,0,null,null,null,null,null,null,null,0]
[null,null,null,null,null,null,null,null,null,null,null,0,null,null,null,null,null,null,null,0]
[null,null,null,null,null,null,null,null,null,null,null,0,null,null,null,null,null,null,null,0]
[null,null,null,null,null,null,null,null,null,null,null,0,null,null,null,null,null,null,null,0]
[null,null,null,null,null,null,null,null,null,null,null,0,null,null,null,null,null,null,null,0]
[null,null,null,null,null,null,null,null,null,null,null,0,null,null,null,null,null,null,null,0]
[null,null,null,null,null,null,null,null,null,null,null,0,null,null,null,null,null,null,null,0]
[null,null,null,null,null,null,null,null,null,null,null,0,null,null,null,null,null,null,null,0]
[null,null,null,null,null,null,null,null,null,null,null,0,null,null,null,null,null,null,null,0]
[null,null,null,null,null,null,null,null,null,null,null,0,null,null,null,null,null,null,null,0]
[null,null,null,null,null,null,null,null,null,null,null,0,null,null,null,null,null,null,null,0]
[null,null,null,null,null,null,null,null,null,null,null,0,null,null,null,null,null,null,null,0]
[null,null,null,null,null,null,null,null,null,null,null,0,null,null,null,null,null,null,null,0]
[null,null,null,null,null,null,null,null,null,null,null,0,null,null,null,null,null,null,null,0]
[null,null,null,null,null,null,null,null,null,null,null,0,null,null,null,null,null,null,null,0]
[null,null,null,null,null,null,null,null,null,null,null,0,null,null,null,null,null,null,null,0]
[null,null,null,null,null,null,null,null,null,null,null,0,null,null,null,null,null,null,null,0]
[null,null,null,null,null,null,null,null,null,null,null,0,null,null,null,null,null,null,null,0]
[null,null,null,null,null,null,null,null,null,null,null,0,null,null,null,null,null,null,null,0]
[null,null,null,null,null,null,null,null,null,null,null,0,null,null,null,null,null,null,null,0]
[null,null,null,null,null,null,null,null,null,null,null,0,null,null,null,null,null,null,null,0]
[null,null,null,null,null,null,null,null,null,null,null,0,null,null,null,null,null,null,null,0]
[null,null,null,null,null,null,null,null,null,null,null,0,null,null,null,null,null,null,null,0]
[null,null,null,null,null,null,null,null,null,null,null,0,null,null,null,null,null,null,null,0]
[null,null,null,null,null,null,null,null,null,null,null,0,null,null,null,null,null,null,null,0]
[null,null,null,null,null,null,null,null,null,null,null,0,null,null,null,null,null,null,null,0]
[null,null,null,null,null,null,null,null,null,null,null,0,null,null,null,null,null,null,null,0]
[null,null,null,null,null,null,null,null,null,null,null,0,null,null,null,null,null,null,null,0]
[null,null,null,null,null,null,null,null,null,null,null,0,null,null,null,null,null,null,null,0]
[null,null,null,null,null,null,null,null,null,null,null,0,null,null,null,null,null,null,null,0]
[null,null,null,null,null,null,null,null,null,null,null,0,null,null,null,null,null,null,null,0]
[null,null,null,null,null,null,null,null,null,null,null,0,null,null,null,null,null,null,null,0]
[null,null,null,null,null,null,null,null,null,null,null,0,null,null,null,null,null,null,null,0]
[null,null,null,null,null,null,null,null,null,null,null,0,null,null,null,null,null,null,null,0]
[null,null,null,null,null,null,null,null,null,null,null,0,null,null,null,null,null,null,null,0]
[null,null,null,null,null,null,null,null,null,null,null,0,null,null,null,null,null,null,null,0]
[null,null,null,null,null,null,null,null,null,null,null,0,null,null,null,null,null,null,null,0]
[null,null,null,null,null,null,null,null,null,null,null,0,null,null,null,null,null,null,null,0]
[null,null,null,null,null,null,null,null,null,null,null,0,null,null,null,null,null,null,null,0]
[null,null,null,null,null,null,null,null,null,null,null,0,null,null,null,null,null,null,null,0]
[null,null,null,null,null,null,null,null,null,null,null,0,null,null,null,null,null,null,null,0]
[null,null,null,null,null,null,null,null,null,null,null,0,null,null,null,null,null,null,null,0]
[null,null,null,null,null,null,null,null,null,null,null,0,null,null,null,null,null,null,null,0]
[null,null,null,null,null,null,null,null,null,null,null,0,null,null,null,null,null,null,null,0]
[null,null,null,null,null,null,null,null,null,null,null,0,null,null,null,null,null,null,null,0]
[null,null,null,null,null,null,null,null,null,null,null,0,null,null,null,null,null,null,null,0]
[null,null,null,null,null,null,null,null,null,null,null,0,null,null,null,null,null,null,null,0]
[null,null,null,null,null,null,null,null,null,null,null,0,null,null,null,null,null,null,null,0]
[null,null,null,null,null,null,null,null,null,null,null,0,null,null,null,null,null,null,null,0]
[null,null,null,null,null,null,null,null,null,null,null,0,null,null,null,null,null,null,null,0]
[null,null,null,null,null,null,null,null,null,null,null,0,null,null,null,null,null,null,null,0]
[null,null,null,null,null,null,null,null,null,null,null,0,null,null,null,null,null,null,null,0]
[null,null,null,null,null,null,null,null,null,null,null,0,null,null,null,null,null,null,null,0]
[null,null,null,null,null,null,null,null,null,null,null,{"$f":"IF(A1385=\"\",0,SUM(F1385:K1385))","v":0},null,null,null,null,null,null,null,{"$f":"SUM(O1385:S1385)","v":0}]
[null,null,null,null,null,null,null,null,null,null,null,0,null,null,null,null,null,null,null,0]
[null,null,null,null,null,null,null,null,null,null,null,0,null,null,null,null,null,null,null,0]
[null,null,null,null,null,null,null,null,null,null,null,0,null,null,null,null,null,null,null,0]
[null,null,null,null,null,null,null,null,null,null,null,0,null,null,null,null,null,null,null,0]
[null,null,null,null,null,null,null,null,null,null,null,0,null,null,null,null,null,null,null,0]
[null,null,null,null,null,null,null,null,null,null,null,0,null,null,null,null,null,null,null,0]
[null,null,null,null,null,null,null,null,null,null,null,0,null,null,null,null,null,null,null,0]
[null,null,null,null,null,null,null,null,null,null,null,0,null,null,null,null,null,null,null,0]
[null,null,null,null,null,null,null,null,null,null,null,0,null,null,null,null,null,null,null,0]
[null,null,null,null,null,null,null,null,null,null,null,0,null,null,null,null,null,null,null,0]
[null,null,null,null,null,null,null,null,null,null,null,0,null,null,null,null,null,null,null,0]
[null,null,null,null,null,null,null,null,null,null,null,0,null,null,null,null,null,null,null,0]
[null,null,null,null,null,null,null,null,null,null,null,0,null,null,null,null,null,null,null,0]
[null,null,null,null,null,null,null,null,null,null,null,0,null,null,null,null,null,null,null,0]
[null,null,null,null,null,null,null,null,null,null,null,0,null,null,null,null,null,null,null,0]
[null,null,null,null,null,null,null,null,null,null,null,0,null,null,null,null,null,null,null,0]
[null,null,null,null,null,null,null,null,null,null,null,0,null,null,null,null,null,null,null,0]
[null,null,null,null,null,null,null,null,null,null,null,0,null,null,null,null,null,null,null,0]
[null,null,null,null,null,null,null,null,null,null,null,0,null,null,null,null,null,null,null,0]
[null,null,null,null,null,null,null,null,null,null,null,0,null,null,null,null,null,null,null,0]
[null,null,null,null,null,null,null,null,null,null,null,0,null,null,null,null,null,null,null,0]
[null,null,null,null,null,null,null,null,null,null,null,0,null,null,null,null,null,null,null,0]
[null,null,null,null,null,null,null,null,null,null,null,0,null,null,null,null,null,null,null,0]
[null,null,null,null,null,null,null,null,null,null,null,0,null,null,null,null,null,null,null,0]
[null,null,null,null,null,null,null,null,null,null,null,0,null,null,null,null,null,null,null,0]
[null,null,null,null,null,null,null,null,null,null,null,0,null,null,null,null,null,null,null,0]
[null,null,null,null,null,null,null,null,null,null,null,0,null,null,null,null,null,null,null,0]
[null,null,null,null,null,null,null,null,null,null,null,0,null,null,null,null,null,null,null,0]
[null,null,null,null,null,null,null,null,null,null,null,0,null,null,null,null,null,null,null,0]
[null,null,null,null,null,null,null,null,null,null,null,0,null,null,null,null,null,null,null,0]
[null,null,null,null,null,null,null,null,null,null,null,0,null,null,null,null,null,null,null,0]
[null,null,null,null,null,null,null,null,null,null,null,0,null,null,null,null,null,null,null,0]
[null,null,null,null,null,null,null,null,null,null,null,0,null,null,null,null,null,null,null,0]
[null,null,null,null,null,null,null,null,null,null,null,0,null,null,null,null,null,null,null,0]
[null,null,null,null,null,null,null,null,null,null,null,0,null,null,null,null,null,null,null,0]
[null,null,null,null,null,null,null,null,null,null,null,0,null,null,null,null,null,null,null,0]
[null,null,null,null,null,null,null,null,null,null,null,0,null,null,null,null,null,null,null,0]
[null,null,null,null,null,null,null,null,null,null,null,0,null,null,null,null,null,null,null,0]
[null,null,null,null,null,null,null,null,null,null,null,0,null,null,null,null,null,null,null,0]
[null,null,null,null,null,null,null,null,null,null,null,0,null,null,null,null,null,null,null,0]
[null,null,null,null,null,null,null,null,null,null,null,0,null,null,null,null,null,null,null,0]
[null,null,null,null,null,null,null,null,null,null,null,0,null,null,null,null,null,null,null,0]
[null,null,null,null,null,null,null,null,null,null,null,0,null,null,null,null,null,null,null,0]
[null,null,null,null,null,null,null,null,null,null,null,0,null,null,null,null,null,null,null,0]
[null,null,null,null,null,null,null,null,null,null,null,0,null,null,null,null,null,null,null,0]
[null,null,null,null,null,null,null,null,null,null,null,0,null,null,null,null,null,null,null,0]
[null,null,null,null,null,null,null,null,null,null,null,0,null,null,null,null,null,null,null,0]
[null,null,null,null,null,null,null,null,null,null,null,0,null,null,null,null,null,null,null,0]
[null,null,null,null,null,null,null,null,null,null,null,0,null,null,null,null,null,null,null,0]
[null,null,null,null,null,null,null,null,null,null,null,0,null,null,null,null,null,null,null,0]
[null,null,null,null,null,null,null,null,null,null,null,0,null,null,null,null,null,null,null,0]
[null,null,null,null,null,null,null,null,null,null,null,0,null,null,null,null,null,null,null,0]
[null,null,null,null,null,null,null,null,null,null,null,0,null,null,null,null,null,null,null,0]
[null,null,null,null,null,null,null,null,null,null,null,0,null,null,null,null,null,null,null,0]
[null,null,null,null,null,null,null,null,null,null,null,0,null,null,null,null,null,null,null,0]
[null,null,null,null,null,null,null,null,null,null,null,0,null,null,null,null,null,null,null,0]
[null,null,null,null,null,null,null,null,null,null,null,0,null,null,null,null,null,null,null,0]
[null,null,null,null,null,null,null,null,null,null,null,0,null,null,null,null,null,null,null,0]
[null,null,null,null,null,null,null,null,null,null,null,0,null,null,null,null,null,null,null,0]
[null,null,null,null,null,null,null,null,null,null,null,0,null,null,null,null,null,null,null,0]
[null,null,null,null,null,null,null,null,null,null,null,0,null,null,null,null,null,null,null,0]
[null,null,null,null,null,null,null,null,null,null,null,0,null,null,null,null,null,null,null,0]
[null,null,null,null,null,null,null,null,null,null,null,0,null,null,null,null,null,null,null,0]
[null,null,null,null,null,null,null,null,null,null,null,{"$f":"IF(A1449=\"\",0,SUM(F1449:K1449))","v":0},null,null,null,null,null,null,null,{"$f":"SUM(O1449:S1449)","v":0}]
[null,null,null,null,null,null,null,null,null,null,null,0,null,null,null,null,null,null,null,0]
[null,null,null,null,null,null,null,null,null,null,null,0,null,null,null,null,null,null,null,0]
[null,null,null,null,null,null,null,null,null,null,null,0,null,null,null,null,null,null,null,0]
[null,null,null,null,null,null,null,null,null,null,null,0,null,null,null,null,null,null,null,0]
[null,null,null,null,null,null,null,null,null,null,null,0,null,null,null,null,null,null,null,0]
[null,null,null,null,null,null,null,null,null,null,null,0,null,null,null,null,null,null,null,0]
[null,null,null,null,null,null,null,null,null,null,null,0,null,null,null,null,null,null,null,0]
[null,null,null,null,null,null,null,null,null,null,null,0,null,null,null,null,null,null,null,0]
[null,null,null,null,null,null,null,null,null,null,null,0,null,null,null,null,null,null,null,0]
[null,null,null,null,null,null,null,null,null,null,null,0,null,null,null,null,null,null,null,0]
[null,null,null,null,null,null,null,null,null,null,null,0,null,null,null,null,null,null,null,0]
[null,null,null,null,null,null,null,null,null,null,null,0,null,null,null,null,null,null,null,0]
[null,null,null,null,null,null,null,null,null,null,null,0,null,null,null,null,null,null,null,0]
[null,null,null,null,null,null,null,null,null,null,null,0,null,null,null,null,null,null,null,0]
[null,null,null,null,null,null,null,null,null,null,null,0,null,null,null,null,null,null,null,0]
[null,null,null,null,null,null,null,null,null,null,null,0,null,null,null,null,null,null,null,0]
[null,null,null,null,null,null,null,null,null,null,null,0,null,null,null,null,null,null,null,0]
[null,null,null,null,null,null,null,null,null,null,null,0,null,null,null,null,null,null,null,0]
[null,null,null,null,null,null,null,null,null,null,null,0,null,null,null,null,null,null,null,0]
[null,null,null,null,null,null,null,null,null,null,null,0,null,null,null,null,null,null,null,0]
[null,null,null,null,null,null,null,null,null,null,null,0,null,null,null,null,null,null,null,0]
[null,null,null,null,null,null,null,null,null,null,null,0,null,null,null,null,null,null,null,0]
[null,null,null,null,null,null,null,null,null,null,null,0,null,null,null,null,null,null,null,0]
[null,null,null,null,null,null,null,null,null,null,null,0,null,null,null,null,null,null,null,0]
[null,null,null,null,null,null,null,null,null,null,null,0,null,null,null,null,null,null,null,0]
[null,null,null,null,null,null,null,null,null,null,null,0,null,null,null,null,null,null,null,0]
[null,null,null,null,null,null,null,null,null,null,null,0,null,null,null,null,null,null,null,0]
[null,null,null,null,null,null,null,null,null,null,null,0,null,null,null,null,null,null,null,0]
[null,null,null,null,null,null,null,null,null,null,null,0,null,null,null,null,null,null,null,0]
[null,null,null,null,null,null,null,null,null,null,null,0,null,null,null,null,null,null,null,0]
[null,null,null,null,null,null,null,null,null,null,null,0,null,null,null,null,null,null,null,0]
[null,null,null,null,null,null,null,null,null,null,null,0,null,null,null,null,null,null,null,0]
[null,null,null,null,null,null,null,null,null,null,null,0,null,null,null,null,null,null,null,0]
[null,null,null,null,null,null,null,null,null,null,null,0,null,null,null,null,null,null,null,0]
[null,null,null,null,null,null,null,null,null,null,null,0,null,null,null,null,null,null,null,0]
[null,null,null,null,null,null,null,null,null,null,null,0,null,null,null,null,null,null,null,0]
[null,null,null,null,null,null,null,null,null,null,null,0,null,null,null,null,null,null,null,0]
[null,null,null,null,null,null,null,null,null,null,null,0,null,null,null,null,null,null,null,0]
[null,null,null,null,null,null,null,null,null,null,null,0,null,null,null,null,null,null,null,0]
[null,null,null,null,null,null,null,null,null,null,null,0,null,null,null,null,null,null,null,0]
[null,null,null,null,null,null,null,null,null,null,null,0,null,null,null,null,null,null,null,0]
[null,null,null,null,null,null,null,null,null,null,null,0,null,null,null,null,null,null,null,0]
[null,null,null,null,null,null,null,null,null,null,null,0,null,null,null,null,null,null,null,0]
[null,null,null,null,null,null,null,null,null,null,null,0,null,null,null,null,null,null,null,0]
[null,null,null,null,null,null,null,null,null,null,null,0,null,null,null,null,null,null,null,0]
[null,null,null,null,null,null,null,null,null,null,null,0,null,null,null,null,null,null,null,0]
[null,null,null,null,null,null,null,null,null,null,null,0,null,null,null,null,null,null,null,0]
[null,null,null,null,null,null,null,null,null,null,null,0,null,null,null,null,null,null,null,0]
[null,null,null,null,null,null,null,null,null,null,null,0,null,null,null,null,null,null,null,0]
[null,null,null,null,null,null,null,null,null,null,null,0,null,null,null,null,null,null,null,0]
[null,null,null,null,null,null,null,null,null,null,null,0,null,null,null,null,null,null,null,0]
[null,null,null,null,null,null,null,null,null,null,null,0,null,null,null,null,null,null,null,0]
[null,null,null,null,null,null,null,null,null,null,null,0,null,null,null,null,null,null,null,0]
[null,null,null,null,null,null,null,null,null,null,null,0,null,null,null,null,null,null,null,0]
[null,null,null,null,null,null,null,null,null,null,null,0,null,null,null,null,null,null,null,0]
[null,null,null,null,null,null,null,null,null,null,null,0,null,null,null,null,null,null,null,0]
[null,null,null,null,null,null,null,null,null,null,null,0,null,null,null,null,null,null,null,0]
[null,null,null,null,null,null,null,null,null,null,null,0,null,null,null,null,null,null,null,0]
[null,null,null,null,null,null,null,null,null,null,null,0,null,null,null,null,null,null,null,0]
[null,null,null,null,null,null,null,null,null,null,null,0,null,null,null,null,null,null,null,0]
[null,null,null,null,null,null,null,null,null,null,null,0,null,null,null,null,null,null,null,0]
[null,null,null,null,null,null,null,null,null,null,null,0,null,null,null,null,null,null,null,0]
[null,null,null,null,null,null,null,null,null,null,null,0,null,null,null,null,null,null,null,0]
[null,null,null,null,null,null,null,null,null,null,null,{"$f":"IF(A1513=\"\",0,SUM(F1513:K1513))","v":0},null,null,null,null,null,null,null,{"$f":"SUM(O1513:S1513)","v":0}]
[null,null,null,null,null,null,null,null,null,null,null,0,null,null,null,null,null,null,null,0]
[null,null,null,null,null,null,null,null,null,null,null,0,null,null,null,null,null,null,null,0]
[null,null,null,null,null,null,null,null,null,null,null,0,null,null,null,null,null,null,null,0]
[null,null,null,null,null,null,null,null,null,null,null,0,null,null,null,null,null,null,null,0]
[null,null,null,null,null,null,null,null,null,null,null,0,null,null,null,null,null,null,null,0]
[null,null,null,null,null,null,null,null,null,null,null,0,null,null,null,null,null,null,null,0]
[null,null,null,null,null,null,null,null,null,null,null,0,null,null,null,null,null,null,null,0]
[null,null,null,null,null,null,null,null,null,null,null,0,null,null,null,null,null,null,null,0]
[null,null,null,null,null,null,null,null,null,null,null,0,null,null,null,null,null,null,null,0]
[null,null,null,null,null,null,null,null,null,null,null,0,null,null,null,null,null,null,null,0]
[null,null,null,null,null,null,null,null,null,null,null,0,null,null,null,null,null,null,null,0]
[null,null,null,null,null,null,null,null,null,null,null,0,null,null,null,null,null,null,null,0]
[null,null,null,null,null,null,null,null,null,null,null,0,null,null,null,null,null,null,null,0]
[null,null,null,null,null,null,null,null,null,null,null,0,null,null,null,null,null,null,null,0]
[null,null,null,null,null,null,null,null,null,null,null,0,null,null,null,null,null,null,null,0]
[null,null,null,null,null,null,null,null,null,null,null,0,null,null,null,null,null,null,null,0]
[null,null,null,null,null,null,null,null,null,null,null,0,null,null,null,null,null,null,null,0]
[null,null,null,null,null,null,null,null,null,null,null,0,null,null,null,null,null,null,null,0]
[null,null,null,null,null,null,null,null,null,null,null,0,null,null,null,null,null,null,null,0]
[null,null,null,null,null,null,null,null,null,null,null,0,null,null,null,null,null,null,null,0]
[null,null,null,null,null,null,null,null,null,null,null,0,null,null,null,null,null,null,null,0]
[null,null,null,null,null,null,null,null,null,null,null,0,null,null,null,null,null,null,null,0]
[null,null,null,null,null,null,null,null,null,null,null,0,null,null,null,null,null,null,null,0]
[null,null,null,null,null,null,null,null,null,null,null,0,null,null,null,null,null,null,null,0]
[null,null,null,null,null,null,null,null,null,null,null,0,null,null,null,null,null,null,null,0]
[null,null,null,null,null,null,null,null,null,null,null,0,null,null,null,null,null,null,null,0]
[null,null,null,null,null,null,null,null,null,null,null,0,null,null,null,null,null,null,null,0]
[null,null,null,null,null,null,null,null,null,null,null,0,null,null,null,null,null,null,null,0]
[null,null,null,null,null,null,null,null,null,null,null,0,null,null,null,null,null,null,null,0]
[null,null,null,null,null,null,null,null,null,null,null,0,null,null,null,null,null,null,null,0]
[null,null,null,null,null,null,null,null,null,null,null,0,null,null,null,null,null,null,null,0]
[null,null,null,null,null,null,null,null,null,null,null,0,null,null,null,null,null,null,null,0]
[null,null,null,null,null,null,null,null,null,null,null,0,null,null,null,null,null,null,null,0]
[null,null,null,null,null,null,null,null,null,null,null,0,null,null,null,null,null,null,null,0]
[null,null,null,null,null,null,null,null,null,null,null,0,null,null,null,null,null,null,null,0]
[null,null,null,null,null,null,null,null,null,null,null,0,null,null,null,null,null,null,null,0]
[null,null,null,null,null,null,null,null,null,null,null,0,null,null,null,null,null,null,null,0]
[null,null,null,null,null,null,null,null,null,null,null,0,null,null,null,null,null,null,null,0]
[null,null,null,null,null,null,null,null,null,null,null,0,null,null,null,null,null,null,null,0]
[null,null,null,null,null,null,null,null,null,null,null,0,null,null,null,null,null,null,null,0]
[null,null,null,null,null,null,null,null,null,null,null,0,null,null,null,null,null,null,null,0]
[null,null,null,null,null,null,null,null,null,null,null,0,null,null,null,null,null,null,null,0]
[null,null,null,null,null,null,null,null,null,null,null,0,null,null,null,null,null,null,null,0]
[null,null,null,null,null,null,null,null,null,null,null,0,null,null,null,null,null,null,null,0]
[null,null,null,null,null,null,null,null,null,null,null,0,null,null,null,null,null,null,null,0]
[null,null,null,null,null,null,null,null,null,null,null,0,null,null,null,null,null,null,null,0]
[null,null,null,null,null,null,null,null,null,null,null,0,null,null,null,null,null,null,null,0]
[null,null,null,null,null,null,null,null,null,null,null,0,null,null,null,null,null,null,null,0]
[null,null,null,null,null,null,null,null,null,null,null,0,null,null,null,null,null,null,null,0]
[null,null,null,null,null,null,null,null,null,null,null,0,null,null,null,null,null,null,null,0]
[null,null,null,null,null,null,null,null,null,null,null,0,null,null,null,null,null,null,null,0]
[null,null,null,null,null,null,null,null,null,null,null,0,null,null,null,null,null,null,null,0]
[null,null,null,null,null,null,null,null,null,null,null,0,null,null,null,null,null,null,null,0]
[null,null,null,null,null,null,null,null,null,null,null,0,null,null,null,null,null,null,null,0]
[null,null,null,null,null,null,null,null,null,null,null,0,null,null,null,null,null,null,null,0]
[null,null,null,null,null,null,null,null,null,null,null,0,null,null,null,null,null,null,null,0]
[null,null,null,null,null,null,null,null,null,null,null,0,null,null,null,null,null,null,null,0]
[null,null,null,null,null,null,null,null,null,null,null,0,null,null,null,null,null,null,null,0]
[null,null,null,null,null,null,null,null,null,null,null,0,null,null,null,null,null,null,null,0]
[null,null,null,null,null,null,null,null,null,null,null,0,null,null,null,null,null,null,null,0]
[null,null,null,null,null,null,null,null,null,null,null,0,null,null,null,null,null,null,null,0]
[null,null,null,null,null,null,null,null,null,null,null,0,null,null,null,null,null,null,null,0]
[null,null,null,null,null,null,null,null,null,null,null,0,null,null,null,null,null,null,null,0]
[null,null,null,null,null,null,null,null,null,null,null,{"$f":"IF(A1577=\"\",0,SUM(F1577:K1577))","v":0},null,null,null,null,null,null,null,{"$f":"SUM(O1577:S1577)","v":0}]
[null,null,null,null,null,null,null,null,null,null,null,0,null,null,null,null,null,null,null,0]
[null,null,null,null,null,null,null,null,null,null,null,0,null,null,null,null,null,null,null,0]
[null,null,null,null,null,null,null,null,null,null,null,0,null,null,null,null,null,null,null,0]
[null,null,null,null,null,null,null,null,null,null,null,0,null,null,null,null,null,null,null,0]
[null,null,null,null,null,null,null,null,null,null,null,0,null,null,null,null,null,null,null,0]
[null,null,null,null,null,null,null,null,null,null,null,0,null,null,null,null,null,null,null,0]
[null,null,null,null,null,null,null,null,null,null,null,0,null,null,null,null,null,null,null,0]
[null,null,null,null,null,null,null,null,null,null,null,0,null,null,null,null,null,null,null,0]
[null,null,null,null,null,null,null,null,null,null,null,0,null,null,null,null,null,null,null,0]
[null,null,null,null,null,null,null,null,null,null,null,0,null,null,null,null,null,null,null,0]
[null,null,null,null,null,null,null,null,null,null,null,0,null,null,null,null,null,null,null,0]
[null,null,null,null,null,null,null,null,null,null,null,0,null,null,null,null,null,null,null,0]
[null,null,null,null,null,null,null,null,null,null,null,0,null,null,null,null,null,null,null,0]
[null,null,null,null,null,null,null,null,null,null,null,0,null,null,null,null,null,null,null,0]
[null,null,null,null,null,null,null,null,null,null,null,0,null,null,null,null,null,null,null,0]
[null,null,null,null,null,null,null,null,null,null,null,0,null,null,null,null,null,null,null,0]
[null,null,null,null,null,null,null,null,null,null,null,0,null,null,null,null,null,null,null,0]
[null,null,null,null,null,null,null,null,null,null,null,0,null,null,null,null,null,null,null,0]
[null,null,null,null,null,null,null,null,null,null,null,0,null,null,null,null,null,null,null,0]
[null,null,null,null,null,null,null,null,null,null,null,0,null,null,null,null,null,null,null,0]
[null,null,null,null,null,null,null,null,null,null,null,0,null,null,null,null,null,null,null,0]
[null,null,null,null,null,null,null,null,null,null,null,0,null,null,null,null,null,null,null,0]
[null,null,null,null,null,null,null,null,null,null,null,0,null,null,null,null,null,null,null,0]
[null,null,null,null,null,null,null,null,null,null,null,0,null,null,null,null,null,null,null,0]
[null,null,null,null,null,null,null,null,null,null,null,0,null,null,null,null,null,null,null,0]
[null,null,null,null,null,null,null,null,null,null,null,0,null,null,null,null,null,null,null,0]
[null,null,null,null,null,null,null,null,null,null,null,0,null,null,null,null,null,null,null,0]
[null,null,null,null,null,null,null,null,null,null,null,0,null,null,null,null,null,null,null,0]
[null,null,null,null,null,null,null,null,null,null,null,0,null,null,null,null,null,null,null,0]
[null,null,null,null,null,null,null,null,null,null,null,0,null,null,null,null,null,null,null,0]
[null,null,null,null,null,null,null,null,null,null,null,0,null,null,null,null,null,null,null,0]
[null,null,null,null,null,null,null,null,null,null,null,0,null,null,null,null,null,null,null,0]
[null,null,null,null,null,null,null,null,null,null,null,0,null,null,null,null,null,null,null,0]
[null,null,null,null,null,null,null,null,null,null,null,0,null,null,null,null,null,null,null,0]
[null,null,null,null,null,null,null,null,null,null,null,0,null,null,null,null,null,null,null,0]
[null,null,null,null,null,null,null,null,null,null,null,0,null,null,null,null,null,null,null,0]
[null,null,null,null,null,null,null,null,null,null,null,0,null,null,null,null,null,null,null,0]
[null,null,null,null,null,null,null,null,null,null,null,0,null,null,null,null,null,null,null,0]
[null,null,null,null,null,null,null,null,null,null,null,0,null,null,null,null,null,null,null,0]
[null,null,null,null,null,null,null,null,null,null,null,0,null,null,null,null,null,null,null,0]
[null,null,null,null,null,null,null,null,null,null,null,0,null,null,null,null,null,null,null,0]
[null,null,null,null,null,null,null,null,null,null,null,0,null,null,null,null,null,null,null,0]
[null,null,null,null,null,null,null,null,null,null,null,0,null,null,null,null,null,null,null,0]
[null,null,null,null,null,null,null,null,null,null,null,0,null,null,null,null,null,null,null,0]
[null,null,null,null,null,null,null,null,null,null,null,0,null,null,null,null,null,null,null,0]
[null,null,null,null,null,null,null,null,null,null,null,0,null,null,null,null,null,null,null,0]
[null,null,null,null,null,null,null,null,null,null,null,0,null,null,null,null,null,null,null,0]
[null,null,null,null,null,null,null,null,null,null,null,0,null,null,null,null,null,null,null,0]
[null,null,null,null,null,null,null,null,null,null,null,0,null,null,null,null,null,null,null,0]
[null,null,null,null,null,null,null,null,null,null,null,0,null,null,null,null,null,null,null,0]
[null,null,null,null,null,null,null,null,null,null,null,0,null,null,null,null,null,null,null,0]
[null,null,null,null,null,null,null,null,null,null,null,0,null,null,null,null,null,null,null,0]
[null,null,null,null,null,null,null,null,null,null,null,0,null,null,null,null,null,null,null,0]
[null,null,null,null,null,null,null,null,null,null,null,0,null,null,null,null,null,null,null,0]
[null,null,null,null,null,null,null,null,null,null,null,0,null,null,null,null,null,null,null,0]
[null,null,null,null,null,null,null,null,null,null,null,0,null,null,null,null,null,null,null,0]
[null,null,null,null,null,null,null,null,null,null,null,0,null,null,null,null,null,null,null,0]
[null,null,null,null,null,null,null,null,null,null,null,0,null,null,null,null,null,null,null,0]
[null,null,null,null,null,null,null,null,null,null,null,0,null,null,null,null,null,null,null,0]
[null,null,null,null,null,null,null,null,null,null,null,0,null,null,null,null,null,null,null,0]
[null,null,null,null,null,null,null,null,null,null,null,0,null,null,null,null,null,null,null,0]
[null,null,null,null,null,null,null,null,null,null,null,0,null,null,null,null,null,null,null,0]
[null,null,null,null,null,null,null,null,null,null,null,0,null,null,null,null,null,null,null,0]
[null,null,null,null,null,null,null,null,null,null,null,{"$f":"IF(A1641=\"\",0,SUM(F1641:K1641))","v":0},null,null,null,null,null,null,null,{"$f":"SUM(O1641:S1641)","v":0}]
[null,null,null,null,null,null,null,null,null,null,null,0,null,null,null,null,null,null,null,0]
[null,null,null,null,null,null,null,null,null,null,null,0,null,null,null,null,null,null,null,0]
[null,null,null,null,null,null,null,null,null,null,null,0,null,null,null,null,null,null,null,0]
[null,null,null,null,null,null,null,null,null,null,null,0,null,null,null,null,null,null,null,0]
[null,null,null,null,null,null,null,null,null,null,null,0,null,null,null,null,null,null,null,0]
[null,null,null,null,null,null,null,null,null,null,null,0,null,null,null,null,null,null,null,0]
[null,null,null,null,null,null,null,null,null,null,null,0,null,null,null,null,null,null,null,0]
[null,null,null,null,null,null,null,null,null,null,null,0,null,null,null,null,null,null,null,0]
[null,null,null,null,null,null,null,null,null,null,null,0,null,null,null,null,null,null,null,0]
[null,null,null,null,null,null,null,null,null,null,null,0,null,null,null,null,null,null,null,0]
[null,null,null,null,null,null,null,null,null,null,null,0,null,null,null,null,null,null,null,0]
[null,null,null,null,null,null,null,null,null,null,null,0,null,null,null,null,null,null,null,0]
[null,null,null,null,null,null,null,null,null,null,null,0,null,null,null,null,null,null,null,0]
[null,null,null,null,null,null,null,null,null,null,null,0,null,null,null,null,null,null,null,0]
[null,null,null,null,null,null,null,null,null,null,null,0,null,null,null,null,null,null,null,0]
[null,null,null,null,null,null,null,null,null,null,null,0,null,null,null,null,null,null,null,0]
[null,null,null,null,null,null,null,null,null,null,null,0,null,null,null,null,null,null,null,0]
[null,null,null,null,null,null,null,null,null,null,null,0,null,null,null,null,null,null,null,0]
[null,null,null,null,null,null,null,null,null,null,null,0,null,null,null,null,null,null,null,0]
[null,null,null,null,null,null,null,null,null,null,null,0,null,null,null,null,null,null,null,0]
[null,null,null,null,null,null,null,null,null,null,null,0,null,null,null,null,null,null,null,0]
[null,null,null,null,null,null,null,null,null,null,null,0,null,null,null,null,null,null,null,0]
[null,null,null,null,null,null,null,null,null,null,null,0,null,null,null,null,null,null,null,0]
[null,null,null,null,null,null,null,null,null,null,null,0,null,null,null,null,null,null,null,0]
[null,null,null,null,null,null,null,null,null,null,null,0,null,null,null,null,null,null,null,0]
[null,null,null,null,null,null,null,null,null,null,null,0,null,null,null,null,null,null,null,0]
[null,null,null,null,null,null,null,null,null,null,null,0,null,null,null,null,null,null,null,0]
[null,null,null,null,null,null,null,null,null,null,null,0,null,null,null,null,null,null,null,0]
[null,null,null,null,null,null,null,null,null,null,null,0,null,null,null,null,null,null,null,0]
[null,null,null,null,null,null,null,null,null,null,null,0,null,null,null,null,null,null,null,0]
[null,null,null,null,null,null,null,null,null,null,null,0,null,null,null,null,null,null,null,0]
[null,null,null,null,null,null,null,null,null,null,null,0,null,null,null,null,null,null,null,0]
[null,null,null,null,null,null,null,null,null,null,null,0,null,null,null,null,null,null,null,0]
[null,null,null,null,null,null,null,null,null,null,null,0,null,null,null,null,null,null,null,0]
[null,null,null,null,null,null,null,null,null,null,null,0,null,null,null,null,null,null,null,0]
[null,null,null,null,null,null,null,null,null,null,null,0,null,null,null,null,null,null,null,0]
[null,null,null,null,null,null,null,null,null,null,null,0,null,null,null,null,null,null,null,0]
[null,null,null,null,null,null,null,null,null,null,null,0,null,null,null,null,null,null,null,0]
[null,null,null,null,null,null,null,null,null,null,null,0,null,null,null,null,null,null,null,0]
[null,null,null,null,null,null,null,null,null,null,null,0,null,null,null,null,null,null,null,0]
[null,null,null,null,null,null,null,null,null,null,null,0,null,null,null,null,null,null,null,0]
[null,null,null,null,null,null,null,null,null,null,null,0,null,null,null,null,null,null,null,0]
[null,null,null,null,null,null,null,null,null,null,null,0,null,null,null,null,null,null,null,0]
[null,null,null,null,null,null,null,null,null,null,null,0,null,null,null,null,null,null,null,0]
[null,null,null,null,null,null,null,null,null,null,null,0,null,null,null,null,null,null,null,0]
[null,null,null,null,null,null,null,null,null,null,null,0,null,null,null,null,null,null,null,0]
[null,null,null,null,null,null,null,null,null,null,null,0,null,null,null,null,null,null,null,0]
[null,null,null,null,null,null,null,null,null,null,null,0,null,null,null,null,null,null,null,0]
[null,null,null,null,null,null,null,null,null,null,null,0,null,null,null,null,null,null,null,0]
[null,null,null,null,null,null,null,null,null,null,null,0,null,null,null,null,null,null,null,0]
[null,null,null,null,null,null,null,null,null,null,null,0,null,null,null,null,null,null,null,0]
[null,null,null,null,null,null,null,null,null,null,null,0,null,null,null,null,null,null,null,0]
[null,null,null,null,null,null,null,null,null,null,null,0,null,null,null,null,null,null,null,0]
[null,null,null,null,null,null,null,null,null,null,null,0,null,null,null,null,null,null,null,0]
[null,null,null,null,null,null,null,null,null,null,null,0,null,null,null,null,null,null,null,0]
[null,null,null,null,null,null,null,null,null,null,null,0,null,null,null,null,null,null,null,0]
[null,null,null,null,null,null,null,null,null,null,null,0,null,null,null,null,null,null,null,0]
[null,null,null,null,null,null,null,null,null,null,null,0,null,null,null,null,null,null,null,0]
[null,null,null,null,null,null,null,null,null,null,null,0,null,null,null,null,null,null,null,0]
[null,null,null,null,null,null,null,null,null,null,null,0,null,null,null,null,null,null,null,0]
[null,null,null,null,null,null,null,null,null,null,null,0,null,null,null,null,null,null,null,0]
[null,null,null,null,null,null,null,null,null,null,null,0,null,null,null,null,null,null,null,0]
[null,null,null,null,null,null,null,null,null,null,null,0,null,null,null,null,null,null,null,0]
[null,null,null,null,null,null,null,null,null,null,null,{"$f":"IF(A1705=\"\",0,SUM(F1705:K1705))","v":0},null,null,null,null,null,null,null,{"$f":"SUM(O1705:S1705)","v":0}]
[null,null,null,null,null,null,null,null,null,null,null,0,null,null,null,null,null,null,null,0]
[null,null,null,null,null,null,null,null,null,null,null,0,null,null,null,null,null,null,null,0]
[null,null,null,null,null,null,null,null,null,null,null,0,null,null,null,null,null,null,null,0]
[null,null,null,null,null,null,null,null,null,null,null,0,null,null,null,null,null,null,null,0]
[null,null,null,null,null,null,null,null,null,null,null,0,null,null,null,null,null,null,null,0]
[null,null,null,null,null,null,null,null,null,null,null,0,null,null,null,null,null,null,null,0]
[null,null,null,null,null,null,null,null,null,null,null,0,null,null,null,null,null,null,null,0]
[null,null,null,null,null,null,null,null,null,null,null,0,null,null,null,null,null,null,null,0]
[null,null,null,null,null,null,null,null,null,null,null,0,null,null,null,null,null,null,null,0]
[null,null,null,null,null,null,null,null,null,null,null,0,null,null,null,null,null,null,null,0]
[null,null,null,null,null,null,null,null,null,null,null,0,null,null,null,null,null,null,null,0]
[null,null,null,null,null,null,null,null,null,null,null,0,null,null,null,null,null,null,null,0]
[null,null,null,null,null,null,null,null,null,null,null,0,null,null,null,null,null,null,null,0]
[null,null,null,null,null,null,null,null,null,null,null,0,null,null,null,null,null,null,null,0]
[null,null,null,null,null,null,null,null,null,null,null,0,null,null,null,null,null,null,null,0]
[null,null,null,null,null,null,null,null,null,null,null,0,null,null,null,null,null,null,null,0]
[null,null,null,null,null,null,null,null,null,null,null,0,null,null,null,null,null,null,null,0]
[null,null,null,null,null,null,null,null,null,null,null,0,null,null,null,null,null,null,null,0]
[null,null,null,null,null,null,null,null,null,null,null,0,null,null,null,null,null,null,null,0]
[null,null,null,null,null,null,null,null,null,null,null,0,null,null,null,null,null,null,null,0]
[null,null,null,null,null,null,null,null,null,null,null,0,null,null,null,null,null,null,null,0]
[null,null,null,null,null,null,null,null,null,null,null,0,null,null,null,null,null,null,null,0]
[null,null,null,null,null,null,null,null,null,null,null,0,null,null,null,null,null,null,null,0]
[null,null,null,null,null,null,null,null,null,null,null,0,null,null,null,null,null,null,null,0]
[null,null,null,null,null,null,null,null,null,null,null,0,null,null,null,null,null,null,null,0]
[null,null,null,null,null,null,null,null,null,null,null,0,null,null,null,null,null,null,null,0]
[null,null,null,null,null,null,null,null,null,null,null,0,null,null,null,null,null,null,null,0]
[null,null,null,null,null,null,null,null,null,null,null,0,null,null,null,null,null,null,null,0]
[null,null,null,null,null,null,null,null,null,null,null,0,null,null,null,null,null,null,null,0]
[null,null,null,null,null,null,null,null,null,null,null,0,null,null,null,null,null,null,null,0]
[null,null,null,null,null,null,null,null,null,null,null,0,null,null,null,null,null,null,null,0]
[null,null,null,null,null,null,null,null,null,null,null,0,null,null,null,null,null,null,null,0]
[null,null,null,null,null,null,null,null,null,null,null,0,null,null,null,null,null,null,null,0]
[null,null,null,null,null,null,null,null,null,null,null,0,null,null,null,null,null,null,null,0]
[null,null,null,null,null,null,null,null,null,null,null,0,null,null,null,null,null,null,null,0]
[null,null,null,null,null,null,null,null,null,null,null,0,null,null,null,null,null,null,null,0]
[null,null,null,null,null,null,null,null,null,null,null,0,null,null,null,null,null,null,null,0]
[null,null,null,null,null,null,null,null,null,null,null,0,null,null,null,null,null,null,null,0]
[null,null,null,null,null,null,null,null,null,null,null,0,null,null,null,null,null,null,null,0]
[null,null,null,null,null,null,null,null,null,null,null,0,null,null,null,null,null,null,null,0]
[null,null,null,null,null,null,null,null,null,null,null,0,null,null,null,null,null,null,null,0]
[null,null,null,null,null,null,null,null,null,null,null,0,null,null,null,null,null,null,null,0]
[null,null,null,null,null,null,null,null,null,null,null,0,null,null,null,null,null,null,null,0]
[null,null,null,null,null,null,null,null,null,null,null,0,null,null,null,null,null,null,null,0]
[null,null,null,null,null,null,null,null,null,null,null,0,null,null,null,null,null,null,null,0]
[null,null,null,null,null,null,null,null,null,null,null,0,null,null,null,null,null,null,null,0]
[null,null,null,null,null,null,null,null,null,null,null,0,null,null,null,null,null,null,null,0]
[null,null,null,null,null,null,null,null,null,null,null,0,null,null,null,null,null,null,null,0]
[null,null,null,null,null,null,null,null,null,null,null,0,null,null,null,null,null,null,null,0]
[null,null,null,null,null,null,null,null,null,null,null,0,null,null,null,null,null,null,null,0]
[null,null,null,null,null,null,null,null,null,null,null,0,null,null,null,null,null,null,null,0]
[null,null,null,null,null,null,null,null,null,null,null,0,null,null,null,null,null,null,null,0]
[null,null,null,null,null,null,null,null,null,null,null,0,null,null,null,null,null,null,null,0]
[null,null,null,null,null,null,null,null,null,null,null,0,null,null,null,null,null,null,null,0]
[null,null,null,null,null,null,null,null,null,null,null,0,null,null,null,null,null,null,null,0]
[null,null,null,null,null,null,null,null,null,null,null,0,null,null,null,null,null,null,null,0]
[null,null,null,null,null,null,null,null,null,null,null,0,null,null,null,null,null,null,null,0]
[null,null,null,null,null,null,null,null,null,null,null,0,null,null,null,null,null,null,null,0]
[null,null,null,null,null,null,null,null,null,null,null,0,null,null,null,null,null,null,null,0]
[null,null,null,null,null,null,null,null,null,null,null,0,null,null,null,null,null,null,null,0]
[null,null,null,null,null,null,null,null,null,null,null,0,null,null,null,null,null,null,null,0]
[null,null,null,null,null,null,null,null,null,null,null,0,null,null,null,null,null,null,null,0]
[null,null,null,null,null,null,null,null,null,null,null,0,null,null,null,null,null,null,null,0]
[null,null,null,null,null,null,null,null,null,null,null,{"$f":"IF(A1769=\"\",0,SUM(F1769:K1769))","v":0},null,null,null,null,null,null,null,{"$f":"SUM(O1769:S1769)","v":0}]
[null,null,null,null,null,null,null,null,null,null,null,0,null,null,null,null,null,null,null,0]
[null,null,null,null,null,null,null,null,null,null,null,0,null,null,null,null,null,null,null,0]
[null,null,null,null,null,null,null,null,null,null,null,0,null,null,null,null,null,null,null,0]
[null,null,null,null,null,null,null,null,null,null,null,0,null,null,null,null,null,null,null,0]
[null,null,null,null,null,null,null,null,null,null,null,0,null,null,null,null,null,null,null,0]
[null,null,null,null,null,null,null,null,null,null,null,0,null,null,null,null,null,null,null,0]
[null,null,null,null,null,null,null,null,null,null,null,0,null,null,null,null,null,null,null,0]
[null,null,null,null,null,null,null,null,null,null,null,0,null,null,null,null,null,null,null,0]
[null,null,null,null,null,null,null,null,null,null,null,0,null,null,null,null,null,null,null,0]
[null,null,null,null,null,null,null,null,null,null,null,0,null,null,null,null,null,null,null,0]
[null,null,null,null,null,null,null,null,null,null,null,0,null,null,null,null,null,null,null,0]
[null,null,null,null,null,null,null,null,null,null,null,0,null,null,null,null,null,null,null,0]
[null,null,null,null,null,null,null,null,null,null,null,0,null,null,null,null,null,null,null,0]
[null,null,null,null,null,null,null,null,null,null,null,0,null,null,null,null,null,null,null,0]
[null,null,null,null,null,null,null,null,null,null,null,0,null,null,null,null,null,null,null,0]
[null,null,null,null,null,null,null,null,null,null,null,0,null,null,null,null,null,null,null,0]
[null,null,null,null,null,null,null,null,null,null,null,0,null,null,null,null,null,null,null,0]
[null,null,null,null,null,null,null,null,null,null,null,0,null,null,null,null,null,null,null,0]
[null,null,null,null,null,null,null,null,null,null,null,0,null,null,null,null,null,null,null,0]
[null,null,null,null,null,null,null,null,null,null,null,0,null,null,null,null,null,null,null,0]
[null,null,null,null,null,null,null,null,null,null,null,0,null,null,null,null,null,null,null,0]
[null,null,null,null,null,null,null,null,null,null,null,0,null,null,null,null,null,null,null,0]
[null,null,null,null,null,null,null,null,null,null,null,0,null,null,null,null,null,null,null,0]
[null,null,null,null,null,null,null,null,null,null,null,0,null,null,null,null,null,null,null,0]
[null,null,null,null,null,null,null,null,null,null,null,0,null,null,null,null,null,null,null,0]
[null,null,null,null,null,null,null,null,null,null,null,0,null,null,null,null,null,null,null,0]
[null,null,null,null,null,null,null,null,null,null,null,0,null,null,null,null,null,null,null,0]
[null,null,null,null,null,null,null,null,null,null,null,0,null,null,null,null,null,null,null,0]
[null,null,null,null,null,null,null,null,null,null,null,0,null,null,null,null,null,null,null,0]
[null,null,null,null,null,null,null,null,null,null,null,0,null,null,null,null,null,null,null,0]
[null,null,null,null,null,null,null,null,null,null,null,0,null,null,null,null,null,null,null,0]
[null,null,null,null,null,null,null,null,null,null,null,0,null,null,null,null,null,null,null,0]
[null,null,null,null,null,null,null,null,null,null,null,0,null,null,null,null,null,null,null,0]
[null,null,null,null,null,null,null,null,null,null,null,0,null,null,null,null,null,null,null,0]
[null,null,null,null,null,null,null,null,null,null,null,0,null,null,null,null,null,null,null,0]
[null,null,null,null,null,null,null,null,null,null,null,0,null,null,null,null,null,null,null,0]
[null,null,null,null,null,null,null,null,null,null,null,0,null,null,null,null,null,null,null,0]
[null,null,null,null,null,null,null,null,null,null,null,0,null,null,null,null,null,null,null,0]
[null,null,null,null,null,null,null,null,null,null,null,0,null,null,null,null,null,null,null,0]
[null,null,null,null,null,null,null,null,null,null,null,0,null,null,null,null,null,null,null,0]
[null,null,null,null,null,null,null,null,null,null,null,0,null,null,null,null,null,null,null,0]
[null,null,null,null,null,null,null,null,null,null,null,0,null,null,null,null,null,null,null,0]
[null,null,null,null,null,null,null,null,null,null,null,0,null,null,null,null,null,null,null,0]
[null,null,null,null,null,null,null,null,null,null,null,0,null,null,null,null,null,null,null,0]
[null,null,null,null,null,null,null,null,null,null,null,0,null,null,null,null,null,null,null,0]
[null,null,null,null,null,null,null,null,null,null,null,0,null,null,null,null,null,null,null,0]
[null,null,null,null,null,null,null,null,null,null,null,0,null,null,null,null,null,null,null,0]
[null,null,null,null,null,null,null,null,null,null,null,0,null,null,null,null,null,null,null,0]
[null,null,null,null,null,null,null,null,null,null,null,0,null,null,null,null,null,null,null,0]
[null,null,null,null,null,null,null,null,null,null,null,0,null,null,null,null,null,null,null,0]
[null,null,null,null,null,null,null,null,null,null,null,0,null,null,null,null,null,null,null,0]
[null,null,null,null,null,null,null,null,null,null,null,0,null,null,null,null,null,null,null,0]
[null,null,null,null,null,null,null,null,null,null,null,0,null,null,null,null,null,null,null,0]
[null,null,null,null,null,null,null,null,null,null,null,0,null,null,null,null,null,null,null,0]
[null,null,null,null,null,null,null,null,null,null,null,0,null,null,null,null,null,null,null,0]
[null,null,null,null,null,null,null,null,null,null,null,0,null,null,null,null,null,null,null,0]
[null,null,null,null,null,null,null,null,null,null,null,0,null,null,null,null,null,null,null,0]
[null,null,null,null,null,null,null,null,null,null,null,0,null,null,null,null,null,null,null,0]
[null,null,null,null,null,null,null,null,null,null,null,0,null,null,null,null,null,null,null,0]
[null,null,null,null,null,null,null,null,null,null,null,0,null,null,null,null,null,null,null,0]
[null,null,null,null,null,null,null,null,null,null,null,0,null,null,null,null,null,null,null,0]
[null,null,null,null,null,null,null,null,null,null,null,0,null,null,null,null,null,null,null,0]
[null,null,null,null,null,null,null,null,null,null,null,0,null,null,null,null,null,null,null,0]
[null,null,null,null,null,null,null,null,null,null,null,{"$f":"IF(A1833=\"\",0,SUM(F1833:K1833))","v":0},null,null,null,null,null,null,null,{"$f":"SUM(O1833:S1833)","v":0}]
[null,null,null,null,null,null,null,null,null,null,null,0,null,null,null,null,null,null,null,0]
[null,null,null,null,null,null,null,null,null,null,null,0,null,null,null,null,null,null,null,0]
[null,null,null,null,null,null,null,null,null,null,null,0,null,null,null,null,null,null,null,0]
[null,null,null,null,null,null,null,null,null,null,null,0,null,null,null,null,null,null,null,0]
[null,null,null,null,null,null,null,null,null,null,null,0,null,null,null,null,null,null,null,0]
[null,null,null,null,null,null,null,null,null,null,null,0,null,null,null,null,null,null,null,0]
[null,null,null,null,null,null,null,null,null,null,null,0,null,null,null,null,null,null,null,0]
[null,null,null,null,null,null,null,null,null,null,null,0,null,null,null,null,null,null,null,0]
[null,null,null,null,null,null,null,null,null,null,null,0,null,null,null,null,null,null,null,0]
[null,null,null,null,null,null,null,null,null,null,null,0,null,null,null,null,null,null,null,0]
[null,null,null,null,null,null,null,null,null,null,null,0,null,null,null,null,null,null,null,0]
[null,null,null,null,null,null,null,null,null,null,null,0,null,null,null,null,null,null,null,0]
[null,null,null,null,null,null,null,null,null,null,null,0,null,null,null,null,null,null,null,0]
[null,null,null,null,null,null,null,null,null,null,null,0,null,null,null,null,null,null,null,0]
[null,null,null,null,null,null,null,null,null,null,null,0,null,null,null,null,null,null,null,0]
[null,null,null,null,null,null,null,null,null,null,null,0,null,null,null,null,null,null,null,0]
[null,null,null,null,null,null,null,null,null,null,null,0,null,null,null,null,null,null,null,0]
[null,null,null,null,null,null,null,null,null,null,null,0,null,null,null,null,null,null,null,0]
[null,null,null,null,null,null,null,null,null,null,null,0,null,null,null,null,null,null,null,0]
[null,null,null,null,null,null,null,null,null,null,null,0,null,null,null,null,null,null,null,0]
[null,null,null,null,null,null,null,null,null,null,null,0,null,null,null,null,null,null,null,0]
[null,null,null,null,null,null,null,null,null,null,null,0,null,null,null,null,null,null,null,0]
[null,null,null,null,null,null,null,null,null,null,null,0,null,null,null,null,null,null,null,0]
[null,null,null,null,null,null,null,null,null,null,null,0,null,null,null,null,null,null,null,0]
[null,null,null,null,null,null,null,null,null,null,null,0,null,null,null,null,null,null,null,0]
[null,null,null,null,null,null,null,null,null,null,null,0,null,null,null,null,null,null,null,0]
[null,null,null,null,null,null,null,null,null,null,null,0,null,null,null,null,null,null,null,0]
[null,null,null,null,null,null,null,null,null,null,null,0,null,null,null,null,null,null,null,0]
[null,null,null,null,null,null,null,null,null,null,null,0,null,null,null,null,null,null,null,0]
[null,null,null,null,null,null,null,null,null,null,null,0,null,null,null,null,null,null,null,0]
[null,null,null,null,null,null,null,null,null,null,null,0,null,null,null,null,null,null,null,0]
[null,null,null,null,null,null,null,null,null,null,null,0,null,null,null,null,null,null,null,0]
[null,null,null,null,null,null,null,null,null,null,null,0,null,null,null,null,null,null,null,0]
[null,null,null,null,null,null,null,null,null,null,null,0,null,null,null,null,null,null,null,0]
[null,null,null,null,null,null,null,null,null,null,null,0,null,null,null,null,null,null,null,0]
[null,null,null,null,null,null,null,null,null,null,null,0,null,null,null,null,null,null,null,0]
[null,null,null,null,null,null,null,null,null,null,null,0,null,null,null,null,null,null,null,0]
[null,null,null,null,null,null,null,null,null,null,null,0,null,null,null,null,null,null,null,0]
[null,null,null,null,null,null,null,null,null,null,null,0,null,null,null,null,null,null,null,0]
[null,null,null,null,null,null,null,null,null,null,null,0,null,null,null,null,null,null,null,0]
[null,null,null,null,null,null,null,null,null,null,null,0,null,null,null,null,null,null,null,0]
[null,null,null,null,null,null,null,null,null,null,null,0,null,null,null,null,null,null,null,0]
[null,null,null,null,null,null,null,null,null,null,null,0,null,null,null,null,null,null,null,0]
[null,null,null,null,null,null,null,null,null,null,null,0,null,null,null,null,null,null,null,0]
[null,null,null,null,null,null,null,null,null,null,null,0,null,null,null,null,null,null,null,0]
[null,null,null,null,null,null,null,null,null,null,null,0,null,null,null,null,null,null,null,0]
[null,null,null,null,null,null,null,null,null,null,null,0,null,null,null,null,null,null,null,0]
[null,null,null,null,null,null,null,null,null,null,null,0,null,null,null,null,null,null,null,0]
[null,null,null,null,null,null,null,null,null,null,null,0,null,null,null,null,null,null,null,0]
[null,null,null,null,null,null,null,null,null,null,null,0,null,null,null,null,null,null,null,0]
[null,null,null,null,null,null,null,null,null,null,null,0,null,null,null,null,null,null,null,0]
[null,null,null,null,null,null,null,null,null,null,null,0,null,null,null,null,null,null,null,0]
[null,null,null,null,null,null,null,null,null,null,null,0,null,null,null,null,null,null,null,0]
[null,null,null,null,null,null,null,null,null,null,null,0,null,null,null,null,null,null,null,0]
[null,null,null,null,null,null,null,null,null,null,null,0,null,null,null,null,null,null,null,0]
[null,null,null,null,null,null,null,null,null,null,null,0,null,null,null,null,null,null,null,0]
[null,null,null,null,null,null,null,null,null,null,null,0,null,null,null,null,null,null,null,0]
[null,null,null,null,null,null,null,null,null,null,null,0,null,null,null,null,null,null,null,0]
[null,null,null,null,null,null,null,null,null,null,null,0,null,null,null,null,null,null,null,0]
[null,null,null,null,null,null,null,null,null,null,null,0,null,null,null,null,null,null,null,0]
[null,null,null,null,null,null,null,null,null,null,null,0,null,null,null,null,null,null,null,0]
[null,null,null,null,null,null,null,null,null,null,null,0,null,null,null,null,null,null,null,0]
[null,null,null,null,null,null,null,null,null,null,null,0,null,null,null,null,null,null,null,0]
[null,null,null,null,null,null,null,null,null,null,null,{"$f":"IF(A1897=\"\",0,SUM(F1897:K1897))","v":0},null,null,null,null,null,null,null,{"$f":"SUM(O1897:S1897)","v":0}]
[null,null,null,null,null,null,null,null,null,null,null,0,null,null,null,null,null,null,null,0]
[null,null,null,null,null,null,null,null,null,null,null,0,null,null,null,null,null,null,null,0]
[null,null,null,null,null,null,null,null,null,null,null,0,null,null,null,null,null,null,null,0]
[null,null,null,null,null,null,null,null,null,null,null,0,null,null,null,null,null,null,null,0]
[null,null,null,null,null,null,null,null,null,null,null,0,null,null,null,null,null,null,null,0]
[null,null,null,null,null,null,null,null,null,null,null,0,null,null,null,null,null,null,null,0]
[null,null,null,null,null,null,null,null,null,null,null,0,null,null,null,null,null,null,null,0]
[null,null,null,null,null,null,null,null,null,null,null,0,null,null,null,null,null,null,null,0]
[null,null,null,null,null,null,null,null,null,null,null,0,null,null,null,null,null,null,null,0]
[null,null,null,null,null,null,null,null,null,null,null,0,null,null,null,null,null,null,null,0]
[null,null,null,null,null,null,null,null,null,null,null,0,null,null,null,null,null,null,null,0]
[null,null,null,null,null,null,null,null,null,null,null,0,null,null,null,null,null,null,null,0]
[null,null,null,null,null,null,null,null,null,null,null,0,null,null,null,null,null,null,null,0]
[null,null,null,null,null,null,null,null,null,null,null,0,null,null,null,null,null,null,null,0]
[null,null,null,null,null,null,null,null,null,null,null,0,null,null,null,null,null,null,null,0]
[null,null,null,null,null,null,null,null,null,null,null,0,null,null,null,null,null,null,null,0]
[null,null,null,null,null,null,null,null,null,null,null,0,null,null,null,null,null,null,null,0]
[null,null,null,null,null,null,null,null,null,null,null,0,null,null,null,null,null,null,null,0]
[null,null,null,null,null,null,null,null,null,null,null,0,null,null,null,null,null,null,null,0]
[null,null,null,null,null,null,null,null,null,null,null,0,null,null,null,null,null,null,null,0]
[null,null,null,null,null,null,null,null,null,null,null,0,null,null,null,null,null,null,null,0]
[null,null,null,null,null,null,null,null,null,null,null,0,null,null,null,null,null,null,null,0]
[null,null,null,null,null,null,null,null,null,null,null,0,null,null,null,null,null,null,null,0]
[null,null,null,null,null,null,null,null,null,null,null,0,null,null,null,null,null,null,null,0]
[null,null,null,null,null,null,null,null,null,null,null,0,null,null,null,null,null,null,null,0]
[null,null,null,null,null,null,null,null,null,null,null,0,null,null,null,null,null,null,null,0]
[null,null,null,null,null,null,null,null,null,null,null,0,null,null,null,null,null,null,null,0]
[null,null,null,null,null,null,null,null,null,null,null,0,null,null,null,null,null,null,null,0]
[null,null,null,null,null,null,null,null,null,null,null,0,null,null,null,null,null,null,null,0]
[null,null,null,null,null,null,null,null,null,null,null,0,null,null,null,null,null,null,null,0]
[null,null,null,null,null,null,null,null,null,null,null,0,null,null,null,null,null,null,null,0]
[null,null,null,null,null,null,null,null,null,null,null,0,null,null,null,null,null,null,null,0]
[null,null,null,null,null,null,null,null,null,null,null,0,null,null,null,null,null,null,null,0]
[null,null,null,null,null,null,null,null,null,null,null,0,null,null,null,null,null,null,null,0]
[null,null,null,null,null,null,null,null,null,null,null,0,null,null,null,null,null,null,null,0]
[null,null,null,null,null,null,null,null,null,null,null,0,null,null,null,null,null,null,null,0]
[null,null,null,null,null,null,null,null,null,null,null,0,null,null,null,null,null,null,null,0]
[null,null,null,null,null,null,null,null,null,null,null,0,null,null,null,null,null,null,null,0]
[null,null,null,null,null,null,null,null,null,null,null,0,null,null,null,null,null,null,null,0]
[null,null,null,null,null,null,null,null,null,null,null,0,null,null,null,null,null,null,null,0]
[null,null,null,null,null,null,null,null,null,null,null,0,null,null,null,null,null,null,null,0]
[null,null,null,null,null,null,null,null,null,null,null,0,null,null,null,null,null,null,null,0]
[null,null,null,null,null,null,null,null,null,null,null,0,null,null,null,null,null,null,null,0]
[null,null,null,null,null,null,null,null,null,null,null,0,null,null,null,null,null,null,null,0]
[null,null,null,null,null,null,null,null,null,null,null,0,null,null,null,null,null,null,null,0]
[null,null,null,null,null,null,null,null,null,null,null,0,null,null,null,null,null,null,null,0]
[null,null,null,null,null,null,null,null,null,null,null,0,null,null,null,null,null,null,null,0]
[null,null,null,null,null,null,null,null,null,null,null,0,null,null,null,null,null,null,null,0]
[null,null,null,null,null,null,null,null,null,null,null,0,null,null,null,null,null,null,null,0]
[null,null,null,null,null,null,null,null,null,null,null,0,null,null,null,null,null,null,null,0]
[null,null,null,null,null,null,null,null,null,null,null,0,null,null,null,null,null,null,null,0]
[null,null,null,null,null,null,null,null,null,null,null,0,null,null,null,null,null,null,null,0]
[null,null,null,null,null,null,null,null,null,null,null,0,null,null,null,null,null,null,null,0]
[null,null,null,null,null,null,null,null,null,null,null,0,null,null,null,null,null,null,null,0]
[null,null,null,null,null,null,null,null,null,null,null,0,null,null,null,null,null,null,null,0]
[null,null,null,null,null,null,null,null,null,null,null,0,null,null,null,null,null,null,null,0]
[null,null,null,null,null,null,null,null,null,null,null,0,null,null,null,null,null,null,null,0]
[null,null,null,null,null,null,null,null,null,null,null,0,null,null,null,null,null,null,null,0]
[null,null,null,null,null,null,null,null,null,null,null,0,null,null,null,null,null,null,null,0]
[null,null,null,null,null,null,null,null,null,null,null,0,null,null,null,null,null,null,null,0]
[null,null,null,null,null,null,null,null,null,null,null,0,null,null,null,null,null,null,null,0]
[null,null,null,null,null,null,null,null,null,null,null,0,null,null,null,null,null,null,null,0]
[null,null,null,null,null,null,null,null,null,null,null,0,null,null,null,null,null,null,null,0]
[null,null,null,null,null,null,null,null,null,null,null,{"$f":"IF(A1961=\"\",0,SUM(F1961:K1961))","v":0},null,null,null,null,null,null,null,{"$f":"SUM(O1961:S1961)","v":0}]
[null,null,null,null,null,null,null,null,null,null,null,0,null,null,null,null,null,null,null,0]
[null,null,null,null,null,null,null,null,null,null,null,0,null,null,null,null,null,null,null,0]
[null,null,null,null,null,null,null,null,null,null,null,0,null,null,null,null,null,null,null,0]
[null,null,null,null,null,null,null,null,null,null,null,0,null,null,null,null,null,null,null,0]
[null,null,null,null,null,null,null,null,null,null,null,0,null,null,null,null,null,null,null,0]
[null,null,null,null,null,null,null,null,null,null,null,0,null,null,null,null,null,null,null,0]
[null,null,null,null,null,null,null,null,null,null,null,0,null,null,null,null,null,null,null,0]
[null,null,null,null,null,null,null,null,null,null,null,0,null,null,null,null,null,null,null,0]
[null,null,null,null,null,null,null,null,null,null,null,0,null,null,null,null,null,null,null,0]
[null,null,null,null,null,null,null,null,null,null,null,0,null,null,null,null,null,null,null,0]
[null,null,null,null,null,null,null,null,null,null,null,0,null,null,null,null,null,null,null,0]
[null,null,null,null,null,null,null,null,null,null,null,0,null,null,null,null,null,null,null,0]
[null,null,null,null,null,null,null,null,null,null,null,0,null,null,null,null,null,null,null,0]
[null,null,null,null,null,null,null,null,null,null,null,0,null,null,null,null,null,null,null,0]
[null,null,null,null,null,null,null,null,null,null,null,0,null,null,null,null,null,null,null,0]
[null,null,null,null,null,null,null,null,null,null,null,0,null,null,null,null,null,null,null,0]
[null,null,null,null,null,null,null,null,null,null,null,0,null,null,null,null,null,null,null,0]
[null,null,null,null,null,null,null,null,null,null,null,0,null,null,null,null,null,null,null,0]
[null,null,null,null,null,null,null,null,null,null,null,0,null,null,null,null,null,null,null,0]
[null,null,null,null,null,null,null,null,null,null,null,0,null,null,null,null,null,null,null,0]
[null,null,null,null,null,null,null,null,null,null,null,0,null,null,null,null,null,null,null,0]
[null,null,null,null,null,null,null,null,null,null,null,0,null,null,null,null,null,null,null,0]
[null,null,null,null,null,null,null,null,null,null,null,0,null,null,null,null,null,null,null,0]
[null,null,null,null,null,null,null,null,null,null,null,0,null,null,null,null,null,null,null,0]
[null,null,null,null,null,null,null,null,null,null,null,0,null,null,null,null,null,null,null,0]
[null,null,null,null,null,null,null,null,null,null,null,0,null,null,null,null,null,null,null,0]
[null,null,null,null,null,null,null,null,null,null,null,0,null,null,null,null,null,null,null,0]
[null,null,null,null,null,null,null,null,null,null,null,0,null,null,null,null,null,null,null,0]
[null,null,null,null,null,null,null,null,null,null,null,0,null,null,null,null,null,null,null,0]
[null,null,null,null,null,null,null,null,null,null,null,0,null,null,null,null,null,null,null,0]
[null,null,null,null,null,null,null,null,null,null,null,0,null,null,null,null,null,null,null,0]
[null,null,null,null,null,null,null,null,null,null,null,0,null,null,null,null,null,null,null,0]
[null,null,null,null,null,null,null,null,null,null,null,0,null,null,null,null,null,null,null,0]
[null,null,null,null,null,null,null,null,null,null,null,0,null,null,null,null,null,null,null,0]
[null,null,null,null,null,null,null,null,null,null,null,0,null,null,null,null,null,null,null,0]
[null,null,null,null,null,null,null,null,null,null,null,0,null,null,null,null,null,null,null,0]
[null,null,null,null,null,null,null,null,null,null,null,0,null,null,null,null,null,null,null,0]
[null,null,null,null,null,null,null,null,null,null,null,0,null,null,null,null,null,null,null,0]
[null,null,null,null,null,null,null,null,null,null,null,0,null,null,null,null,null,null,null,0]

{"sheet":"Quantification Data","index":2,"n_rows":2000,"n_cols":10,"rows_kept":2000,"cut":false,"hidden":false,"merged":[]}
[null,"Quantification Data",null,null,null,null,null,"Allied Health Staffing Factor",1.4]
[null,{"$f":"CentreName","v":0},null,"Enter Week Beginning Date here","Total FTE:",{"$f":"SUM(J4:J2000)","v":0},"Total FTE for Filtered Data:",null,null,{"$f":"SUBTOTAL(109,J4:J2000)","v":0}]
["Survey No.","Site Name","Program Name","Team Name","Discipline Name","Practice Category","Total Minutes","Total Hours","Total Converted Hours","FTE"]
[null,null,null,null,null,null,null,{"$f":"G4/60","v":0},{"$f":"H4*Factor","v":0},{"$f":"I4/38","v":0}]
[null,null,null,null,null,null,null,{"$f":"G5/60","v":0},0,0]
[null,null,null,null,null,null,null,0,0,0]
[null,null,null,null,null,null,null,0,0,0]
[null,null,null,null,null,null,null,0,0,0]
[null,null,null,null,null,null,null,0,0,0]
[null,null,null,null,null,null,null,{"$f":"G10/60","v":0},0,0]
[null,null,null,null,null,null,null,0,0,0]
[null,null,null,null,null,null,null,0,0,0]
[null,null,null,null,null,null,null,0,0,0]
[null,null,null,null,null,null,null,0,0,0]
[null,null,null,null,null,null,null,0,0,0]
[null,null,null,null,null,null,null,0,0,0]
[null,null,null,null,null,null,null,0,0,0]
[null,null,null,null,null,null,null,0,0,0]
[null,null,null,null,null,null,null,0,0,0]
[null,null,null,null,null,null,null,0,0,0]
[null,null,null,null,null,null,null,0,0,0]
[null,null,null,null,null,null,null,0,0,0]
[null,null,null,null,null,null,null,0,0,0]
[null,null,null,null,null,null,null,0,0,0]
[null,null,null,null,null,null,null,0,0,0]
[null,null,null,null,null,null,null,0,0,0]
[null,null,null,null,null,null,null,0,0,0]
[null,null,null,null,null,null,null,0,0,0]
[null,null,null,null,null,null,null,0,0,0]
[null,null,null,null,null,null,null,0,0,0]
[null,null,null,null,null,null,null,0,0,0]
[null,null,null,null,null,null,null,0,0,0]
[null,null,null,null,null,null,null,0,0,0]
[null,null,null,null,null,null,null,0,0,0]
[null,null,null,null,null,null,null,0,0,0]
[null,null,null,null,null,null,null,0,0,0]
[null,null,null,null,null,null,null,0,0,0]
[null,null,null,null,null,null,null,0,0,0]
[null,null,null,null,null,null,null,0,0,0]
[null,null,null,null,null,null,null,0,0,0]
[null,null,null,null,null,null,null,0,0,0]
[null,null,null,null,null,null,null,0,0,0]
[null,null,null,null,null,null,null,0,0,0]
[null,null,null,null,null,null,null,0,0,0]
[null,null,null,null,null,null,null,0,0,0]
[null,null,null,null,null,null,null,0,0,0]
[null,null,null,null,null,null,null,0,0,0]
[null,null,null,null,null,null,null,0,0,0]
[null,null,null,null,null,null,null,{"$f":"G49/60","v":0},{"$f":"H49*Factor","v":0},{"$f":"I49/38","v":0}]
[null,null,null,null,null,null,null,0,0,0]
[null,null,null,null,null,null,null,0,0,0]
[null,null,null,null,null,null,null,0,0,0]
[null,null,null,null,null,null,null,0,0,0]
[null,null,null,null,null,null,null,0,0,0]
[null,null,null,null,null,null,null,0,0,0]
[null,null,null,null,null,null,null,0,0,0]
[null,null,null,null,null,null,null,0,0,0]
[null,null,null,null,null,null,null,0,0,0]
[null,null,null,null,null,null,null,0,0,0]
[null,null,null,null,null,null,null,0,0,0]
[null,null,null,null,null,null,null,0,0,0]
[null,null,null,null,null,null,null,0,0,0]
[null,null,null,null,null,null,null,0,0,0]
[null,null,null,null,null,null,null,0,0,0]
[null,null,null,null,null,null,null,0,0,0]
[null,null,null,null,null,null,null,0,0,0]
[null,null,null,null,null,null,null,0,0,0]
[null,null,null,null,null,null,null,0,0,0]
[null,null,null,null,null,null,null,0,0,0]
[null,null,null,null,null,null,null,0,0,0]
[null,null,null,null,null,null,null,0,0,0]
[null,null,null,null,null,null,null,0,0,0]
[null,null,null,null,null,null,null,0,0,0]
[null,null,null,null,null,null,null,0,0,0]
[null,null,null,null,null,null,null,0,0,0]
[null,null,null,null,null,null,null,0,0,0]
[null,null,null,null,null,null,null,0,0,0]
[null,null,null,null,null,null,null,0,0,0]
[null,null,null,null,null,null,null,0,0,0]
[null,null,null,null,null,null,null,0,0,0]
[null,null,null,null,null,null,null,0,0,0]
[null,null,null,null,null,null,null,0,0,0]
[null,null,null,null,null,null,null,0,0,0]
[null,null,null,null,null,null,null,0,0,0]
[null,null,null,null,null,null,null,0,0,0]
[null,null,null,null,null,null,null,0,0,0]
[null,null,null,null,null,null,null,0,0,0]
[null,null,null,null,null,null,null,0,0,0]
[null,null,null,null,null,null,null,0,0,0]
[null,null,null,null,null,null,null,0,0,0]
[null,null,null,null,null,null,null,0,0,0]
[null,null,null,null,null,null,null,0,0,0]
[null,null,null,null,null,null,null,0,0,0]
[null,null,null,null,null,null,null,0,0,0]
[null,null,null,null,null,null,null,0,0,0]
[null,null,null,null,null,null,null,0,0,0]
[null,null,null,null,null,null,null,0,0,0]
[null,null,null,null,null,null,null,0,0,0]
[null,null,null,null,null,null,null,0,0,0]
[null,null,null,null,null,null,null,0,0,0]
[null,null,null,null,null,null,null,0,0,0]
[null,null,null,null,null,null,null,0,0,0]
[null,null,null,null,null,null,null,0,0,0]
[null,null,null,null,null,null,null,0,0,0]
[null,null,null,null,null,null,null,0,0,0]
[null,null,null,null,null,null,null,0,0,0]
[null,null,null,null,null,null,null,0,0,0]
[null,null,null,null,null,null,null,0,0,0]
[null,null,null,null,null,null,null,0,0,0]
[null,null,null,null,null,null,null,0,0,0]
[null,null,null,null,null,null,null,0,0,0]
[null,null,null,null,null,null,null,0,0,0]
[null,null,null,null,null,null,null,{"$f":"G113/60","v":0},{"$f":"H113*Factor","v":0},{"$f":"I113/38","v":0}]
[null,null,null,null,null,null,null,0,0,0]
[null,null,null,null,null,null,null,0,0,0]
[null,null,null,null,null,null,null,0,0,0]
[null,null,null,null,null,null,null,0,0,0]
[null,null,null,null,null,null,null,0,0,0]
[null,null,null,null,null,null,null,0,0,0]
[null,null,null,null,null,null,null,0,0,0]
[null,null,null,null,null,null,null,0,0,0]
[null,null,null,null,null,null,null,0,0,0]
[null,null,null,null,null,null,null,0,0,0]
[null,null,null,null,null,null,null,0,0,0]
[null,null,null,null,null,null,null,0,0,0]
[null,null,null,null,null,null,null,0,0,0]
[null,null,null,null,null,null,null,0,0,0]
[null,null,null,null,null,null,null,0,0,0]
[null,null,null,null,null,null,null,0,0,0]
[null,null,null,null,null,null,null,0,0,0]
[null,null,null,null,null,null,null,0,0,0]
[null,null,null,null,null,null,null,0,0,0]
[null,null,null,null,null,null,null,0,0,0]
[null,null,null,null,null,null,null,0,0,0]
[null,null,null,null,null,null,null,0,0,0]
[null,null,null,null,null,null,null,0,0,0]
[null,null,null,null,null,null,null,0,0,0]
[null,null,null,null,null,null,null,0,0,0]
[null,null,null,null,null,null,null,0,0,0]
[null,null,null,null,null,null,null,0,0,0]
[null,null,null,null,null,null,null,0,0,0]
[null,null,null,null,null,null,null,0,0,0]
[null,null,null,null,null,null,null,0,0,0]
[null,null,null,null,null,null,null,0,0,0]
[null,null,null,null,null,null,null,0,0,0]
[null,null,null,null,null,null,null,0,0,0]
[null,null,null,null,null,null,null,0,0,0]
[null,null,null,null,null,null,null,0,0,0]
[null,null,null,null,null,null,null,0,0,0]
[null,null,null,null,null,null,null,0,0,0]
[null,null,null,null,null,null,null,0,0,0]
[null,null,null,null,null,null,null,0,0,0]
[null,null,null,null,null,null,null,0,0,0]
[null,null,null,null,null,null,null,0,0,0]
[null,null,null,null,null,null,null,0,0,0]
[null,null,null,null,null,null,null,0,0,0]
[null,null,null,null,null,null,null,0,0,0]
[null,null,null,null,null,null,null,0,0,0]
[null,null,null,null,null,null,null,0,0,0]
[null,null,null,null,null,null,null,0,0,0]
[null,null,null,null,null,null,null,0,0,0]
[null,null,null,null,null,null,null,0,0,0]
[null,null,null,null,null,null,null,0,0,0]
[null,null,null,null,null,null,null,0,0,0]
[null,null,null,null,null,null,null,0,0,0]
[null,null,null,null,null,null,null,0,0,0]
[null,null,null,null,null,null,null,0,0,0]
[null,null,null,null,null,null,null,0,0,0]
[null,null,null,null,null,null,null,0,0,0]
[null,null,null,null,null,null,null,0,0,0]
[null,null,null,null,null,null,null,0,0,0]
[null,null,null,null,null,null,null,0,0,0]
[null,null,null,null,null,null,null,0,0,0]
[null,null,null,null,null,null,null,0,0,0]
[null,null,null,null,null,null,null,0,0,0]
[null,null,null,null,null,null,null,0,0,0]
[null,null,null,null,null,null,null,{"$f":"G177/60","v":0},{"$f":"H177*Factor","v":0},{"$f":"I177/38","v":0}]
[null,null,null,null,null,null,null,0,0,0]
[null,null,null,null,null,null,null,0,0,0]
[null,null,null,null,null,null,null,0,0,0]
[null,null,null,null,null,null,null,0,0,0]
[null,null,null,null,null,null,null,0,0,0]
[null,null,null,null,null,null,null,0,0,0]
[null,null,null,null,null,null,null,0,0,0]
[null,null,null,null,null,null,null,0,0,0]
[null,null,null,null,null,null,null,0,0,0]
[null,null,null,null,null,null,null,0,0,0]
[null,null,null,null,null,null,null,0,0,0]
[null,null,null,null,null,null,null,0,0,0]
[null,null,null,null,null,null,null,0,0,0]
[null,null,null,null,null,null,null,0,0,0]
[null,null,null,null,null,null,null,0,0,0]
[null,null,null,null,null,null,null,0,0,0]
[null,null,null,null,null,null,null,0,0,0]
[null,null,null,null,null,null,null,0,0,0]
[null,null,null,null,null,null,null,0,0,0]
[null,null,null,null,null,null,null,0,0,0]
[null,null,null,null,null,null,null,0,0,0]
[null,null,null,null,null,null,null,0,0,0]
[null,null,null,null,null,null,null,0,0,0]
[null,null,null,null,null,null,null,0,0,0]
[null,null,null,null,null,null,null,0,0,0]
[null,null,null,null,null,null,null,0,0,0]
[null,null,null,null,null,null,null,0,0,0]
[null,null,null,null,null,null,null,0,0,0]
[null,null,null,null,null,null,null,0,0,0]
[null,null,null,null,null,null,null,0,0,0]
[null,null,null,null,null,null,null,0,0,0]
[null,null,null,null,null,null,null,0,0,0]
[null,null,null,null,null,null,null,0,0,0]
[null,null,null,null,null,null,null,0,0,0]
[null,null,null,null,null,null,null,0,0,0]
[null,null,null,null,null,null,null,0,0,0]
[null,null,null,null,null,null,null,0,0,0]
[null,null,null,null,null,null,null,0,0,0]
[null,null,null,null,null,null,null,0,0,0]
[null,null,null,null,null,null,null,0,0,0]
[null,null,null,null,null,null,null,0,0,0]
[null,null,null,null,null,null,null,0,0,0]
[null,null,null,null,null,null,null,0,0,0]
[null,null,null,null,null,null,null,0,0,0]
[null,null,null,null,null,null,null,0,0,0]
[null,null,null,null,null,null,null,0,0,0]
[null,null,null,null,null,null,null,0,0,0]
[null,null,null,null,null,null,null,0,0,0]
[null,null,null,null,null,null,null,0,0,0]
[null,null,null,null,null,null,null,0,0,0]
[null,null,null,null,null,null,null,0,0,0]
[null,null,null,null,null,null,null,0,0,0]
[null,null,null,null,null,null,null,0,0,0]
[null,null,null,null,null,null,null,0,0,0]
[null,null,null,null,null,null,null,0,0,0]
[null,null,null,null,null,null,null,0,0,0]
[null,null,null,null,null,null,null,0,0,0]
[null,null,null,null,null,null,null,0,0,0]
[null,null,null,null,null,null,null,0,0,0]
[null,null,null,null,null,null,null,0,0,0]
[null,null,null,null,null,null,null,0,0,0]
[null,null,null,null,null,null,null,0,0,0]
[null,null,null,null,null,null,null,0,0,0]
[null,null,null,null,null,null,null,{"$f":"G241/60","v":0},{"$f":"H241*Factor","v":0},{"$f":"I241/38","v":0}]
[null,null,null,null,null,null,null,0,0,0]
[null,null,null,null,null,null,null,0,0,0]
[null,null,null,null,null,null,null,0,0,0]
[null,null,null,null,null,null,null,0,0,0]
[null,null,null,null,null,null,null,0,0,0]
[null,null,null,null,null,null,null,0,0,0]
[null,null,null,null,null,null,null,0,0,0]
[null,null,null,null,null,null,null,0,0,0]
[null,null,null,null,null,null,null,0,0,0]
[null,null,null,null,null,null,null,0,0,0]
[null,null,null,null,null,null,null,0,0,0]
[null,null,null,null,null,null,null,0,0,0]
[null,null,null,null,null,null,null,0,0,0]
[null,null,null,null,null,null,null,0,0,0]
[null,null,null,null,null,null,null,0,0,0]
[null,null,null,null,null,null,null,0,0,0]
[null,null,null,null,null,null,null,0,0,0]
[null,null,null,null,null,null,null,0,0,0]
[null,null,null,null,null,null,null,0,0,0]
[null,null,null,null,null,null,null,0,0,0]
[null,null,null,null,null,null,null,0,0,0]
[null,null,null,null,null,null,null,0,0,0]
[null,null,null,null,null,null,null,0,0,0]
[null,null,null,null,null,null,null,0,0,0]
[null,null,null,null,null,null,null,0,0,0]
[null,null,null,null,null,null,null,0,0,0]
[null,null,null,null,null,null,null,0,0,0]
[null,null,null,null,null,null,null,0,0,0]
[null,null,null,null,null,null,null,0,0,0]
[null,null,null,null,null,null,null,0,0,0]
[null,null,null,null,null,null,null,0,0,0]
[null,null,null,null,null,null,null,0,0,0]
[null,null,null,null,null,null,null,0,0,0]
[null,null,null,null,null,null,null,0,0,0]
[null,null,null,null,null,null,null,0,0,0]
[null,null,null,null,null,null,null,0,0,0]
[null,null,null,null,null,null,null,0,0,0]
[null,null,null,null,null,null,null,0,0,0]
[null,null,null,null,null,null,null,0,0,0]
[null,null,null,null,null,null,null,0,0,0]
[null,null,null,null,null,null,null,0,0,0]
[null,null,null,null,null,null,null,0,0,0]
[null,null,null,null,null,null,null,0,0,0]
[null,null,null,null,null,null,null,0,0,0]
[null,null,null,null,null,null,null,0,0,0]
[null,null,null,null,null,null,null,0,0,0]
[null,null,null,null,null,null,null,0,0,0]
[null,null,null,null,null,null,null,0,0,0]
[null,null,null,null,null,null,null,0,0,0]
[null,null,null,null,null,null,null,0,0,0]
[null,null,null,null,null,null,null,0,0,0]
[null,null,null,null,null,null,null,0,0,0]
[null,null,null,null,null,null,null,0,0,0]
[null,null,null,null,null,null,null,0,0,0]
[null,null,null,null,null,null,null,0,0,0]
[null,null,null,null,null,null,null,0,0,0]
[null,null,null,null,null,null,null,0,0,0]
[null,null,null,null,null,null,null,0,0,0]
[null,null,null,null,null,null,null,0,0,0]
[null,null,null,null,null,null,null,0,0,0]
[null,null,null,null,null,null,null,0,0,0]
[null,null,null,null,null,null,null,0,0,0]
[null,null,null,null,null,null,null,0,0,0]
[null,null,null,null,null,null,null,{"$f":"G305/60","v":0},{"$f":"H305*Factor","v":0},{"$f":"I305/38","v":0}]
[null,null,null,null,null,null,null,0,0,0]
[null,null,null,null,null,null,null,0,0,0]
[null,null,null,null,null,null,null,0,0,0]
[null,null,null,null,null,null,null,0,0,0]
[null,null,null,null,null,null,null,0,0,0]
[null,null,null,null,null,null,null,0,0,0]
[null,null,null,null,null,null,null,0,0,0]
[null,null,null,null,null,null,null,0,0,0]
[null,null,null,null,null,null,null,0,0,0]
[null,null,null,null,null,null,null,0,0,0]
[null,null,null,null,null,null,null,0,0,0]
[null,null,null,null,null,null,null,0,0,0]
[null,null,null,null,null,null,null,0,0,0]
[null,null,null,null,null,null,null,0,0,0]
[null,null,null,null,null,null,null,0,0,0]
[null,null,null,null,null,null,null,0,0,0]
[null,null,null,null,null,null,null,0,0,0]
[null,null,null,null,null,null,null,0,0,0]
[null,null,null,null,null,null,null,0,0,0]
[null,null,null,null,null,null,null,0,0,0]
[null,null,null,null,null,null,null,0,0,0]
[null,null,null,null,null,null,null,0,0,0]
[null,null,null,null,null,null,null,0,0,0]
[null,null,null,null,null,null,null,0,0,0]
[null,null,null,null,null,null,null,0,0,0]
[null,null,null,null,null,null,null,0,0,0]
[null,null,null,null,null,null,null,0,0,0]
[null,null,null,null,null,null,null,0,0,0]
[null,null,null,null,null,null,null,0,0,0]
[null,null,null,null,null,null,null,0,0,0]
[null,null,null,null,null,null,null,0,0,0]
[null,null,null,null,null,null,null,0,0,0]
[null,null,null,null,null,null,null,0,0,0]
[null,null,null,null,null,null,null,0,0,0]
[null,null,null,null,null,null,null,0,0,0]
[null,null,null,null,null,null,null,0,0,0]
[null,null,null,null,null,null,null,0,0,0]
[null,null,null,null,null,null,null,0,0,0]
[null,null,null,null,null,null,null,0,0,0]
[null,null,null,null,null,null,null,0,0,0]
[null,null,null,null,null,null,null,0,0,0]
[null,null,null,null,null,null,null,0,0,0]
[null,null,null,null,null,null,null,0,0,0]
[null,null,null,null,null,null,null,0,0,0]
[null,null,null,null,null,null,null,0,0,0]
[null,null,null,null,null,null,null,0,0,0]
[null,null,null,null,null,null,null,0,0,0]
[null,null,null,null,null,null,null,0,0,0]
[null,null,null,null,null,null,null,0,0,0]
[null,null,null,null,null,null,null,0,0,0]
[null,null,null,null,null,null,null,0,0,0]
[null,null,null,null,null,null,null,0,0,0]
[null,null,null,null,null,null,null,0,0,0]
[null,null,null,null,null,null,null,0,0,0]
[null,null,null,null,null,null,null,0,0,0]
[null,null,null,null,null,null,null,0,0,0]
[null,null,null,null,null,null,null,0,0,0]
[null,null,null,null,null,null,null,0,0,0]
[null,null,null,null,null,null,null,0,0,0]
[null,null,null,null,null,null,null,0,0,0]
[null,null,null,null,null,null,null,0,0,0]
[null,null,null,null,null,null,null,0,0,0]
[null,null,null,null,null,null,null,0,0,0]
[null,null,null,null,null,null,null,{"$f":"G369/60","v":0},{"$f":"H369*Factor","v":0},{"$f":"I369/38","v":0}]
[null,null,null,null,null,null,null,0,0,0]
[null,null,null,null,null,null,null,0,0,0]
[null,null,null,null,null,null,null,0,0,0]
[null,null,null,null,null,null,null,0,0,0]
[null,null,null,null,null,null,null,0,0,0]
[null,null,null,null,null,null,null,0,0,0]
[null,null,null,null,null,null,null,0,0,0]
[null,null,null,null,null,null,null,0,0,0]
[null,null,null,null,null,null,null,0,0,0]
[null,null,null,null,null,null,null,0,0,0]
[null,null,null,null,null,null,null,0,0,0]
[null,null,null,null,null,null,null,0,0,0]
[null,null,null,null,null,null,null,0,0,0]
[null,null,null,null,null,null,null,0,0,0]
[null,null,null,null,null,null,null,0,0,0]
[null,null,null,null,null,null,null,0,0,0]
[null,null,null,null,null,null,null,0,0,0]
[null,null,null,null,null,null,null,0,0,0]
[null,null,null,null,null,null,null,0,0,0]
[null,null,null,null,null,null,null,0,0,0]
[null,null,null,null,null,null,null,0,0,0]
[null,null,null,null,null,null,null,0,0,0]
[null,null,null,null,null,null,null,0,0,0]
[null,null,null,null,null,null,null,0,0,0]
[null,null,null,null,null,null,null,0,0,0]
[null,null,null,null,null,null,null,0,0,0]
[null,null,null,null,null,null,null,0,0,0]
[null,null,null,null,null,null,null,0,0,0]
[null,null,null,null,null,null,null,0,0,0]
[null,null,null,null,null,null,null,0,0,0]
[null,null,null,null,null,null,null,0,0,0]
[null,null,null,null,null,null,null,0,0,0]
[null,null,null,null,null,null,null,0,0,0]
[null,null,null,null,null,null,null,0,0,0]
[null,null,null,null,null,null,null,0,0,0]
[null,null,null,null,null,null,null,0,0,0]
[null,null,null,null,null,null,null,0,0,0]
[null,null,null,null,null,null,null,0,0,0]
[null,null,null,null,null,null,null,0,0,0]
[null,null,null,null,null,null,null,0,0,0]
[null,null,null,null,null,null,null,0,0,0]
[null,null,null,null,null,null,null,0,0,0]
[null,null,null,null,null,null,null,0,0,0]
[null,null,null,null,null,null,null,0,0,0]
[null,null,null,null,null,null,null,0,0,0]
[null,null,null,null,null,null,null,0,0,0]
[null,null,null,null,null,null,null,0,0,0]
[null,null,null,null,null,null,null,0,0,0]
[null,null,null,null,null,null,null,0,0,0]
[null,null,null,null,null,null,null,0,0,0]
[null,null,null,null,null,null,null,0,0,0]
[null,null,null,null,null,null,null,0,0,0]
[null,null,null,null,null,null,null,0,0,0]
[null,null,null,null,null,null,null,0,0,0]
[null,null,null,null,null,null,null,0,0,0]
[null,null,null,null,null,null,null,0,0,0]
[null,null,null,null,null,null,null,0,0,0]
[null,null,null,null,null,null,null,0,0,0]
[null,null,null,null,null,null,null,0,0,0]
[null,null,null,null,null,null,null,0,0,0]
[null,null,null,null,null,null,null,0,0,0]
[null,null,null,null,null,null,null,0,0,0]
[null,null,null,null,null,null,null,0,0,0]
[null,null,null,null,null,null,null,{"$f":"G433/60","v":0},{"$f":"H433*Factor","v":0},{"$f":"I433/38","v":0}]
[null,null,null,null,null,null,null,0,0,0]
[null,null,null,null,null,null,null,0,0,0]
[null,null,null,null,null,null,null,0,0,0]
[null,null,null,null,null,null,null,0,0,0]
[null,null,null,null,null,null,null,0,0,0]
[null,null,null,null,null,null,null,0,0,0]
[null,null,null,null,null,null,null,0,0,0]
[null,null,null,null,null,null,null,0,0,0]
[null,null,null,null,null,null,null,0,0,0]
[null,null,null,null,null,null,null,0,0,0]
[null,null,null,null,null,null,null,0,0,0]
[null,null,null,null,null,null,null,0,0,0]
[null,null,null,null,null,null,null,0,0,0]
[null,null,null,null,null,null,null,0,0,0]
[null,null,null,null,null,null,null,0,0,0]
[null,null,null,null,null,null,null,0,0,0]
[null,null,null,null,null,null,null,0,0,0]
[null,null,null,null,null,null,null,0,0,0]
[null,null,null,null,null,null,null,0,0,0]
[null,null,null,null,null,null,null,0,0,0]
[null,null,null,null,null,null,null,0,0,0]
[null,null,null,null,null,null,null,0,0,0]
[null,null,null,null,null,null,null,0,0,0]
[null,null,null,null,null,null,null,0,0,0]
[null,null,null,null,null,null,null,0,0,0]
[null,null,null,null,null,null,null,0,0,0]
[null,null,null,null,null,null,null,0,0,0]
[null,null,null,null,null,null,null,0,0,0]
[null,null,null,null,null,null,null,0,0,0]
[null,null,null,null,null,null,null,0,0,0]
[null,null,null,null,null,null,null,0,0,0]
[null,null,null,null,null,null,null,0,0,0]
[null,null,null,null,null,null,null,0,0,0]
[null,null,null,null,null,null,null,0,0,0]
[null,null,null,null,null,null,null,0,0,0]
[null,null,null,null,null,null,null,0,0,0]
[null,null,null,null,null,null,null,0,0,0]
[null,null,null,null,null,null,null,0,0,0]
[null,null,null,null,null,null,null,0,0,0]
[null,null,null,null,null,null,null,0,0,0]
[null,null,null,null,null,null,null,0,0,0]
[null,null,null,null,null,null,null,0,0,0]
[null,null,null,null,null,null,null,0,0,0]
[null,null,null,null,null,null,null,0,0,0]
[null,null,null,null,null,null,null,0,0,0]
[null,null,null,null,null,null,null,0,0,0]
[null,null,null,null,null,null,null,0,0,0]
[null,null,null,null,null,null,null,0,0,0]
[null,null,null,null,null,null,null,0,0,0]
[null,null,null,null,null,null,null,0,0,0]
[null,null,null,null,null,null,null,0,0,0]
[null,null,null,null,null,null,null,0,0,0]
[null,null,null,null,null,null,null,0,0,0]
[null,null,null,null,null,null,null,0,0,0]
[null,null,null,null,null,null,null,0,0,0]
[null,null,null,null,null,null,null,0,0,0]
[null,null,null,null,null,null,null,0,0,0]
[null,null,null,null,null,null,null,0,0,0]
[null,null,null,null,null,null,null,0,0,0]
[null,null,null,null,null,null,null,0,0,0]
[null,null,null,null,null,null,null,0,0,0]
[null,null,null,null,null,null,null,0,0,0]
[null,null,null,null,null,null,null,0,0,0]
[null,null,null,null,null,null,null,{"$f":"G497/60","v":0},{"$f":"H497*Factor","v":0},{"$f":"I497/38","v":0}]
[null,null,null,null,null,null,null,0,0,0]
[null,null,null,null,null,null,null,0,0,0]
[null,null,null,null,null,null,null,0,0,0]
[null,null,null,null,null,null,null,0,0,0]
[null,null,null,null,null,null,null,0,0,0]
[null,null,null,null,null,null,null,0,0,0]
[null,null,null,null,null,null,null,0,0,0]
[null,null,null,null,null,null,null,0,0,0]
[null,null,null,null,null,null,null,0,0,0]
[null,null,null,null,null,null,null,0,0,0]
[null,null,null,null,null,null,null,0,0,0]
[null,null,null,null,null,null,null,0,0,0]
[null,null,null,null,null,null,null,0,0,0]
[null,null,null,null,null,null,null,0,0,0]
[null,null,null,null,null,null,null,0,0,0]
[null,null,null,null,null,null,null,0,0,0]
[null,null,null,null,null,null,null,0,0,0]
[null,null,null,null,null,null,null,0,0,0]
[null,null,null,null,null,null,null,0,0,0]
[null,null,null,null,null,null,null,0,0,0]
[null,null,null,null,null,null,null,0,0,0]
[null,null,null,null,null,null,null,0,0,0]
[null,null,null,null,null,null,null,0,0,0]
[null,null,null,null,null,null,null,0,0,0]
[null,null,null,null,null,null,null,0,0,0]
[null,null,null,null,null,null,null,0,0,0]
[null,null,null,null,null,null,null,0,0,0]
[null,null,null,null,null,null,null,0,0,0]
[null,null,null,null,null,null,null,0,0,0]
[null,null,null,null,null,null,null,0,0,0]
[null,null,null,null,null,null,null,0,0,0]
[null,null,null,null,null,null,null,0,0,0]
[null,null,null,null,null,null,null,0,0,0]
[null,null,null,null,null,null,null,0,0,0]
[null,null,null,null,null,null,null,0,0,0]
[null,null,null,null,null,null,null,0,0,0]
[null,null,null,null,null,null,null,0,0,0]
[null,null,null,null,null,null,null,0,0,0]
[null,null,null,null,null,null,null,0,0,0]
[null,null,null,null,null,null,null,0,0,0]
[null,null,null,null,null,null,null,0,0,0]
[null,null,null,null,null,null,null,0,0,0]
[null,null,null,null,null,null,null,0,0,0]
[null,null,null,null,null,null,null,0,0,0]
[null,null,null,null,null,null,null,0,0,0]
[null,null,null,null,null,null,null,0,0,0]
[null,null,null,null,null,null,null,0,0,0]
[null,null,null,null,null,null,null,0,0,0]
[null,null,null,null,null,null,null,0,0,0]
[null,null,null,null,null,null,null,0,0,0]
[null,null,null,null,null,null,null,0,0,0]
[null,null,null,null,null,null,null,0,0,0]
[null,null,null,null,null,null,null,0,0,0]
[null,null,null,null,null,null,null,0,0,0]
[null,null,null,null,null,null,null,0,0,0]
[null,null,null,null,null,null,null,0,0,0]
[null,null,null,null,null,null,null,0,0,0]
[null,null,null,null,null,null,null,0,0,0]
[null,null,null,null,null,null,null,0,0,0]
[null,null,null,null,null,null,null,0,0,0]
[null,null,null,null,null,null,null,0,0,0]
[null,null,null,null,null,null,null,0,0,0]
[null,null,null,null,null,null,null,0,0,0]
[null,null,null,null,null,null,null,{"$f":"G561/60","v":0},{"$f":"H561*Factor","v":0},{"$f":"I561/38","v":0}]
[null,null,null,null,null,null,null,0,0,0]
[null,null,null,null,null,null,null,0,0,0]
[null,null,null,null,null,null,null,0,0,0]
[null,null,null,null,null,null,null,0,0,0]
[null,null,null,null,null,null,null,0,0,0]
[null,null,null,null,null,null,null,0,0,0]
[null,null,null,null,null,null,null,0,0,0]
[null,null,null,null,null,null,null,0,0,0]
[null,null,null,null,null,null,null,0,0,0]
[null,null,null,null,null,null,null,0,0,0]
[null,null,null,null,null,null,null,0,0,0]
[null,null,null,null,null,null,null,0,0,0]
[null,null,null,null,null,null,null,0,0,0]
[null,null,null,null,null,null,null,0,0,0]
[null,null,null,null,null,null,null,0,0,0]
[null,null,null,null,null,null,null,0,0,0]
[null,null,null,null,null,null,null,0,0,0]
[null,null,null,null,null,null,null,0,0,0]
[null,null,null,null,null,null,null,0,0,0]
[null,null,null,null,null,null,null,0,0,0]
[null,null,null,null,null,null,null,0,0,0]
[null,null,null,null,null,null,null,0,0,0]
[null,null,null,null,null,null,null,0,0,0]
[null,null,null,null,null,null,null,0,0,0]
[null,null,null,null,null,null,null,0,0,0]
[null,null,null,null,null,null,null,0,0,0]
[null,null,null,null,null,null,null,0,0,0]
[null,null,null,null,null,null,null,0,0,0]
[null,null,null,null,null,null,null,0,0,0]
[null,null,null,null,null,null,null,0,0,0]
[null,null,null,null,null,null,null,0,0,0]
[null,null,null,null,null,null,null,0,0,0]
[null,null,null,null,null,null,null,0,0,0]
[null,null,null,null,null,null,null,0,0,0]
[null,null,null,null,null,null,null,0,0,0]
[null,null,null,null,null,null,null,0,0,0]
[null,null,null,null,null,null,null,0,0,0]
[null,null,null,null,null,null,null,0,0,0]
[null,null,null,null,null,null,null,0,0,0]
[null,null,null,null,null,null,null,0,0,0]
[null,null,null,null,null,null,null,0,0,0]
[null,null,null,null,null,null,null,0,0,0]
[null,null,null,null,null,null,null,0,0,0]
[null,null,null,null,null,null,null,0,0,0]
[null,null,null,null,null,null,null,0,0,0]
[null,null,null,null,null,null,null,0,0,0]
[null,null,null,null,null,null,null,0,0,0]
[null,null,null,null,null,null,null,0,0,0]
[null,null,null,null,null,null,null,0,0,0]
[null,null,null,null,null,null,null,0,0,0]
[null,null,null,null,null,null,null,0,0,0]
[null,null,null,null,null,null,null,0,0,0]
[null,null,null,null,null,null,null,0,0,0]
[null,null,null,null,null,null,null,0,0,0]
[null,null,null,null,null,null,null,0,0,0]
[null,null,null,null,null,null,null,0,0,0]
[null,null,null,null,null,null,null,0,0,0]
[null,null,null,null,null,null,null,0,0,0]
[null,null,null,null,null,null,null,0,0,0]
[null,null,null,null,null,null,null,0,0,0]
[null,null,null,null,null,null,null,0,0,0]
[null,null,null,null,null,null,null,0,0,0]
[null,null,null,null,null,null,null,0,0,0]
[null,null,null,null,null,null,null,{"$f":"G625/60","v":0},{"$f":"H625*Factor","v":0},{"$f":"I625/38","v":0}]
[null,null,null,null,null,null,null,0,0,0]
[null,null,null,null,null,null,null,0,0,0]
[null,null,null,null,null,null,null,0,0,0]
[null,null,null,null,null,null,null,0,0,0]
[null,null,null,null,null,null,null,0,0,0]
[null,null,null,null,null,null,null,0,0,0]
[null,null,null,null,null,null,null,0,0,0]
[null,null,null,null,null,null,null,0,0,0]
[null,null,null,null,null,null,null,0,0,0]
[null,null,null,null,null,null,null,0,0,0]
[null,null,null,null,null,null,null,0,0,0]
[null,null,null,null,null,null,null,0,0,0]
[null,null,null,null,null,null,null,0,0,0]
[null,null,null,null,null,null,null,0,0,0]
[null,null,null,null,null,null,null,0,0,0]
[null,null,null,null,null,null,null,0,0,0]
[null,null,null,null,null,null,null,0,0,0]
[null,null,null,null,null,null,null,0,0,0]
[null,null,null,null,null,null,null,0,0,0]
[null,null,null,null,null,null,null,0,0,0]
[null,null,null,null,null,null,null,0,0,0]
[null,null,null,null,null,null,null,0,0,0]
[null,null,null,null,null,null,null,0,0,0]
[null,null,null,null,null,null,null,0,0,0]
[null,null,null,null,null,null,null,0,0,0]
[null,null,null,null,null,null,null,0,0,0]
[null,null,null,null,null,null,null,0,0,0]
[null,null,null,null,null,null,null,0,0,0]
[null,null,null,null,null,null,null,0,0,0]
[null,null,null,null,null,null,null,0,0,0]
[null,null,null,null,null,null,null,0,0,0]
[null,null,null,null,null,null,null,0,0,0]
[null,null,null,null,null,null,null,0,0,0]
[null,null,null,null,null,null,null,0,0,0]
[null,null,null,null,null,null,null,0,0,0]
[null,null,null,null,null,null,null,0,0,0]
[null,null,null,null,null,null,null,0,0,0]
[null,null,null,null,null,null,null,0,0,0]
[null,null,null,null,null,null,null,0,0,0]
[null,null,null,null,null,null,null,0,0,0]
[null,null,null,null,null,null,null,0,0,0]
[null,null,null,null,null,null,null,0,0,0]
[null,null,null,null,null,null,null,0,0,0]
[null,null,null,null,null,null,null,0,0,0]
[null,null,null,null,null,null,null,0,0,0]
[null,null,null,null,null,null,null,0,0,0]
[null,null,null,null,null,null,null,0,0,0]
[null,null,null,null,null,null,null,0,0,0]
[null,null,null,null,null,null,null,0,0,0]
[null,null,null,null,null,null,null,0,0,0]
[null,null,null,null,null,null,null,0,0,0]
[null,null,null,null,null,null,null,0,0,0]
[null,null,null,null,null,null,null,0,0,0]
[null,null,null,null,null,null,null,0,0,0]
[null,null,null,null,null,null,null,0,0,0]
[null,null,null,null,null,null,null,0,0,0]
[null,null,null,null,null,null,null,0,0,0]
[null,null,null,null,null,null,null,0,0,0]
[null,null,null,null,null,null,null,0,0,0]
[null,null,null,null,null,null,null,0,0,0]
[null,null,null,null,null,null,null,0,0,0]
[null,null,null,null,null,null,null,0,0,0]
[null,null,null,null,null,null,null,0,0,0]
[null,null,null,null,null,null,null,{"$f":"G689/60","v":0},{"$f":"H689*Factor","v":0},{"$f":"I689/38","v":0}]
[null,null,null,null,null,null,null,0,0,0]
[null,null,null,null,null,null,null,0,0,0]
[null,null,null,null,null,null,null,0,0,0]
[null,null,null,null,null,null,null,0,0,0]
[null,null,null,null,null,null,null,0,0,0]
[null,null,null,null,null,null,null,0,0,0]
[null,null,null,null,null,null,null,0,0,0]
[null,null,null,null,null,null,null,0,0,0]
[null,null,null,null,null,null,null,0,0,0]
[null,null,null,null,null,null,null,0,0,0]
[null,null,null,null,null,null,null,0,0,0]
[null,null,null,null,null,null,null,0,0,0]
[null,null,null,null,null,null,null,0,0,0]
[null,null,null,null,null,null,null,0,0,0]
[null,null,null,null,null,null,null,0,0,0]
[null,null,null,null,null,null,null,0,0,0]
[null,null,null,null,null,null,null,0,0,0]
[null,null,null,null,null,null,null,0,0,0]
[null,null,null,null,null,null,null,0,0,0]
[null,null,null,null,null,null,null,0,0,0]
[null,null,null,null,null,null,null,0,0,0]
[null,null,null,null,null,null,null,0,0,0]
[null,null,null,null,null,null,null,0,0,0]
[null,null,null,null,null,null,null,0,0,0]
[null,null,null,null,null,null,null,0,0,0]
[null,null,null,null,null,null,null,0,0,0]
[null,null,null,null,null,null,null,0,0,0]
[null,null,null,null,null,null,null,0,0,0]
[null,null,null,null,null,null,null,0,0,0]
[null,null,null,null,null,null,null,0,0,0]
[null,null,null,null,null,null,null,0,0,0]
[null,null,null,null,null,null,null,0,0,0]
[null,null,null,null,null,null,null,0,0,0]
[null,null,null,null,null,null,null,0,0,0]
[null,null,null,null,null,null,null,0,0,0]
[null,null,null,null,null,null,null,0,0,0]
[null,null,null,null,null,null,null,0,0,0]
[null,null,null,null,null,null,null,0,0,0]
[null,null,null,null,null,null,null,0,0,0]
[null,null,null,null,null,null,null,0,0,0]
[null,null,null,null,null,null,null,0,0,0]
[null,null,null,null,null,null,null,0,0,0]
[null,null,null,null,null,null,null,0,0,0]
[null,null,null,null,null,null,null,0,0,0]
[null,null,null,null,null,null,null,0,0,0]
[null,null,null,null,null,null,null,0,0,0]
[null,null,null,null,null,null,null,0,0,0]
[null,null,null,null,null,null,null,0,0,0]
[null,null,null,null,null,null,null,0,0,0]
[null,null,null,null,null,null,null,0,0,0]
[null,null,null,null,null,null,null,0,0,0]
[null,null,null,null,null,null,null,0,0,0]
[null,null,null,null,null,null,null,0,0,0]
[null,null,null,null,null,null,null,0,0,0]
[null,null,null,null,null,null,null,0,0,0]
[null,null,null,null,null,null,null,0,0,0]
[null,null,null,null,null,null,null,0,0,0]
[null,null,null,null,null,null,null,0,0,0]
[null,null,null,null,null,null,null,0,0,0]
[null,null,null,null,null,null,null,0,0,0]
[null,null,null,null,null,null,null,0,0,0]
[null,null,null,null,null,null,null,0,0,0]
[null,null,null,null,null,null,null,0,0,0]
[null,null,null,null,null,null,null,{"$f":"G753/60","v":0},{"$f":"H753*Factor","v":0},{"$f":"I753/38","v":0}]
[null,null,null,null,null,null,null,0,0,0]
[null,null,null,null,null,null,null,0,0,0]
[null,null,null,null,null,null,null,0,0,0]
[null,null,null,null,null,null,null,0,0,0]
[null,null,null,null,null,null,null,0,0,0]
[null,null,null,null,null,null,null,0,0,0]
[null,null,null,null,null,null,null,0,0,0]
[null,null,null,null,null,null,null,0,0,0]
[null,null,null,null,null,null,null,0,0,0]
[null,null,null,null,null,null,null,0,0,0]
[null,null,null,null,null,null,null,0,0,0]
[null,null,null,null,null,null,null,0,0,0]
[null,null,null,null,null,null,null,0,0,0]
[null,null,null,null,null,null,null,0,0,0]
[null,null,null,null,null,null,null,0,0,0]
[null,null,null,null,null,null,null,0,0,0]
[null,null,null,null,null,null,null,0,0,0]
[null,null,null,null,null,null,null,0,0,0]
[null,null,null,null,null,null,null,0,0,0]
[null,null,null,null,null,null,null,0,0,0]
[null,null,null,null,null,null,null,0,0,0]
[null,null,null,null,null,null,null,0,0,0]
[null,null,null,null,null,null,null,0,0,0]
[null,null,null,null,null,null,null,0,0,0]
[null,null,null,null,null,null,null,0,0,0]
[null,null,null,null,null,null,null,0,0,0]
[null,null,null,null,null,null,null,0,0,0]
[null,null,null,null,null,null,null,0,0,0]
[null,null,null,null,null,null,null,0,0,0]
[null,null,null,null,null,null,null,0,0,0]
[null,null,null,null,null,null,null,0,0,0]
[null,null,null,null,null,null,null,0,0,0]
[null,null,null,null,null,null,null,0,0,0]
[null,null,null,null,null,null,null,0,0,0]
[null,null,null,null,null,null,null,0,0,0]
[null,null,null,null,null,null,null,0,0,0]
[null,null,null,null,null,null,null,0,0,0]
[null,null,null,null,null,null,null,0,0,0]
[null,null,null,null,null,null,null,0,0,0]
[null,null,null,null,null,null,null,0,0,0]
[null,null,null,null,null,null,null,0,0,0]
[null,null,null,null,null,null,null,0,0,0]
[null,null,null,null,null,null,null,0,0,0]
[null,null,null,null,null,null,null,0,0,0]
[null,null,null,null,null,null,null,0,0,0]
[null,null,null,null,null,null,null,0,0,0]
[null,null,null,null,null,null,null,0,0,0]
[null,null,null,null,null,null,null,0,0,0]
[null,null,null,null,null,null,null,0,0,0]
[null,null,null,null,null,null,null,0,0,0]
[null,null,null,null,null,null,null,0,0,0]
[null,null,null,null,null,null,null,0,0,0]
[null,null,null,null,null,null,null,0,0,0]
[null,null,null,null,null,null,null,0,0,0]
[null,null,null,null,null,null,null,0,0,0]
[null,null,null,null,null,null,null,0,0,0]
[null,null,null,null,null,null,null,0,0,0]
[null,null,null,null,null,null,null,0,0,0]
[null,null,null,null,null,null,null,0,0,0]
[null,null,null,null,null,null,null,0,0,0]
[null,null,null,null,null,null,null,0,0,0]
[null,null,null,null,null,null,null,0,0,0]
[null,null,null,null,null,null,null,0,0,0]
[null,null,null,null,null,null,null,{"$f":"G817/60","v":0},{"$f":"H817*Factor","v":0},{"$f":"I817/38","v":0}]
[null,null,null,null,null,null,null,0,0,0]
[null,null,null,null,null,null,null,0,0,0]
[null,null,null,null,null,null,null,0,0,0]
[null,null,null,null,null,null,null,0,0,0]
[null,null,null,null,null,null,null,0,0,0]
[null,null,null,null,null,null,null,0,0,0]
[null,null,null,null,null,null,null,0,0,0]
[null,null,null,null,null,null,null,0,0,0]
[null,null,null,null,null,null,null,0,0,0]
[null,null,null,null,null,null,null,0,0,0]
[null,null,null,null,null,null,null,0,0,0]
[null,null,null,null,null,null,null,0,0,0]
[null,null,null,null,null,null,null,0,0,0]
[null,null,null,null,null,null,null,0,0,0]
[null,null,null,null,null,null,null,0,0,0]
[null,null,null,null,null,null,null,0,0,0]
[null,null,null,null,null,null,null,0,0,0]
[null,null,null,null,null,null,null,0,0,0]
[null,null,null,null,null,null,null,0,0,0]
[null,null,null,null,null,null,null,0,0,0]
[null,null,null,null,null,null,null,0,0,0]
[null,null,null,null,null,null,null,0,0,0]
[null,null,null,null,null,null,null,0,0,0]
[null,null,null,null,null,null,null,0,0,0]
[null,null,null,null,null,null,null,0,0,0]
[null,null,null,null,null,null,null,0,0,0]
[null,null,null,null,null,null,null,0,0,0]
[null,null,null,null,null,null,null,0,0,0]
[null,null,null,null,null,null,null,0,0,0]
[null,null,null,null,null,null,null,0,0,0]
[null,null,null,null,null,null,null,0,0,0]
[null,null,null,null,null,null,null,0,0,0]
[null,null,null,null,null,null,null,0,0,0]
[null,null,null,null,null,null,null,0,0,0]
[null,null,null,null,null,null,null,0,0,0]
[null,null,null,null,null,null,null,0,0,0]
[null,null,null,null,null,null,null,0,0,0]
[null,null,null,null,null,null,null,0,0,0]
[null,null,null,null,null,null,null,0,0,0]
[null,null,null,null,null,null,null,0,0,0]
[null,null,null,null,null,null,null,0,0,0]
[null,null,null,null,null,null,null,0,0,0]
[null,null,null,null,null,null,null,0,0,0]
[null,null,null,null,null,null,null,0,0,0]
[null,null,null,null,null,null,null,0,0,0]
[null,null,null,null,null,null,null,0,0,0]
[null,null,null,null,null,null,null,0,0,0]
[null,null,null,null,null,null,null,0,0,0]
[null,null,null,null,null,null,null,0,0,0]
[null,null,null,null,null,null,null,0,0,0]
[null,null,null,null,null,null,null,0,0,0]
[null,null,null,null,null,null,null,0,0,0]
[null,null,null,null,null,null,null,0,0,0]
[null,null,null,null,null,null,null,0,0,0]
[null,null,null,null,null,null,null,0,0,0]
[null,null,null,null,null,null,null,0,0,0]
[null,null,null,null,null,null,null,0,0,0]
[null,null,null,null,null,null,null,0,0,0]
[null,null,null,null,null,null,null,0,0,0]
[null,null,null,null,null,null,null,0,0,0]
[null,null,null,null,null,null,null,0,0,0]
[null,null,null,null,null,null,null,0,0,0]
[null,null,null,null,null,null,null,0,0,0]
[null,null,null,null,null,null,null,{"$f":"G881/60","v":0},{"$f":"H881*Factor","v":0},{"$f":"I881/38","v":0}]
[null,null,null,null,null,null,null,0,0,0]
[null,null,null,null,null,null,null,0,0,0]
[null,null,null,null,null,null,null,0,0,0]
[null,null,null,null,null,null,null,0,0,0]
[null,null,null,null,null,null,null,0,0,0]
[null,null,null,null,null,null,null,0,0,0]
[null,null,null,null,null,null,null,0,0,0]
[null,null,null,null,null,null,null,0,0,0]
[null,null,null,null,null,null,null,0,0,0]
[null,null,null,null,null,null,null,0,0,0]
[null,null,null,null,null,null,null,0,0,0]
[null,null,null,null,null,null,null,0,0,0]
[null,null,null,null,null,null,null,0,0,0]
[null,null,null,null,null,null,null,0,0,0]
[null,null,null,null,null,null,null,0,0,0]
[null,null,null,null,null,null,null,0,0,0]
[null,null,null,null,null,null,null,0,0,0]
[null,null,null,null,null,null,null,0,0,0]
[null,null,null,null,null,null,null,0,0,0]
[null,null,null,null,null,null,null,0,0,0]
[null,null,null,null,null,null,null,0,0,0]
[null,null,null,null,null,null,null,0,0,0]
[null,null,null,null,null,null,null,0,0,0]
[null,null,null,null,null,null,null,0,0,0]
[null,null,null,null,null,null,null,0,0,0]
[null,null,null,null,null,null,null,0,0,0]
[null,null,null,null,null,null,null,0,0,0]
[null,null,null,null,null,null,null,0,0,0]
[null,null,null,null,null,null,null,0,0,0]
[null,null,null,null,null,null,null,0,0,0]
[null,null,null,null,null,null,null,0,0,0]
[null,null,null,null,null,null,null,0,0,0]
[null,null,null,null,null,null,null,0,0,0]
[null,null,null,null,null,null,null,0,0,0]
[null,null,null,null,null,null,null,0,0,0]
[null,null,null,null,null,null,null,0,0,0]
[null,null,null,null,null,null,null,0,0,0]
[null,null,null,null,null,null,null,0,0,0]
[null,null,null,null,null,null,null,0,0,0]
[null,null,null,null,null,null,null,0,0,0]
[null,null,null,null,null,null,null,0,0,0]
[null,null,null,null,null,null,null,0,0,0]
[null,null,null,null,null,null,null,0,0,0]
[null,null,null,null,null,null,null,0,0,0]
[null,null,null,null,null,null,null,0,0,0]
[null,null,null,null,null,null,null,0,0,0]
[null,null,null,null,null,null,null,0,0,0]
[null,null,null,null,null,null,null,0,0,0]
[null,null,null,null,null,null,null,0,0,0]
[null,null,null,null,null,null,null,0,0,0]
[null,null,null,null,null,null,null,0,0,0]
[null,null,null,null,null,null,null,0,0,0]
[null,null,null,null,null,null,null,0,0,0]
[null,null,null,null,null,null,null,0,0,0]
[null,null,null,null,null,null,null,0,0,0]
[null,null,null,null,null,null,null,0,0,0]
[null,null,null,null,null,null,null,0,0,0]
[null,null,null,null,null,null,null,0,0,0]
[null,null,null,null,null,null,null,0,0,0]
[null,null,null,null,null,null,null,0,0,0]
[null,null,null,null,null,null,null,0,0,0]
[null,null,null,null,null,null,null,0,0,0]
[null,null,null,null,null,null,null,0,0,0]
[null,null,null,null,null,null,null,{"$f":"G945/60","v":0},{"$f":"H945*Factor","v":0},{"$f":"I945/38","v":0}]
[null,null,null,null,null,null,null,0,0,0]
[null,null,null,null,null,null,null,0,0,0]
[null,null,null,null,null,null,null,0,0,0]
[null,null,null,null,null,null,null,0,0,0]
[null,null,null,null,null,null,null,0,0,0]
[null,null,null,null,null,null,null,0,0,0]
[null,null,null,null,null,null,null,0,0,0]
[null,null,null,null,null,null,null,0,0,0]
[null,null,null,null,null,null,null,0,0,0]
[null,null,null,null,null,null,null,0,0,0]
[null,null,null,null,null,null,null,0,0,0]
[null,null,null,null,null,null,null,0,0,0]
[null,null,null,null,null,null,null,0,0,0]
[null,null,null,null,null,null,null,0,0,0]
[null,null,null,null,null,null,null,0,0,0]
[null,null,null,null,null,null,null,0,0,0]
[null,null,null,null,null,null,null,0,0,0]
[null,null,null,null,null,null,null,0,0,0]
[null,null,null,null,null,null,null,0,0,0]
[null,null,null,null,null,null,null,0,0,0]
[null,null,null,null,null,null,null,0,0,0]
[null,null,null,null,null,null,null,0,0,0]
[null,null,null,null,null,null,null,0,0,0]
[null,null,null,null,null,null,null,0,0,0]
[null,null,null,null,null,null,null,0,0,0]
[null,null,null,null,null,null,null,0,0,0]
[null,null,null,null,null,null,null,0,0,0]
[null,null,null,null,null,null,null,0,0,0]
[null,null,null,null,null,null,null,0,0,0]
[null,null,null,null,null,null,null,0,0,0]
[null,null,null,null,null,null,null,0,0,0]
[null,null,null,null,null,null,null,0,0,0]
[null,null,null,null,null,null,null,0,0,0]
[null,null,null,null,null,null,null,0,0,0]
[null,null,null,null,null,null,null,0,0,0]
[null,null,null,null,null,null,null,0,0,0]
[null,null,null,null,null,null,null,0,0,0]
[null,null,null,null,null,null,null,0,0,0]
[null,null,null,null,null,null,null,0,0,0]
[null,null,null,null,null,null,null,0,0,0]
[null,null,null,null,null,null,null,0,0,0]
[null,null,null,null,null,null,null,0,0,0]
[null,null,null,null,null,null,null,0,0,0]
[null,null,null,null,null,null,null,0,0,0]
[null,null,null,null,null,null,null,0,0,0]
[null,null,null,null,null,null,null,0,0,0]
[null,null,null,null,null,null,null,0,0,0]
[null,null,null,null,null,null,null,0,0,0]
[null,null,null,null,null,null,null,0,0,0]
[null,null,null,null,null,null,null,0,0,0]
[null,null,null,null,null,null,null,0,0,0]
[null,null,null,null,null,null,null,0,0,0]
[null,null,null,null,null,null,null,0,0,0]
[null,null,null,null,null,null,null,0,0,0]
[null,null,null,null,null,null,null,0,0,0]
[null,null,null,null,null,null,null,{"$f":"G1001/60","v":0},{"$f":"H1001*Factor","v":0},{"$f":"I1001/38","v":0}]
[null,null,null,null,null,null,null,0,0,0]
[null,null,null,null,null,null,null,0,0,0]
[null,null,null,null,null,null,null,0,0,0]
[null,null,null,null,null,null,null,0,0,0]
[null,null,null,null,null,null,null,0,0,0]
[null,null,null,null,null,null,null,0,0,0]
[null,null,null,null,null,null,null,0,0,0]
[null,null,null,null,null,null,null,0,0,0]
[null,null,null,null,null,null,null,0,0,0]
[null,null,null,null,null,null,null,0,0,0]
[null,null,null,null,null,null,null,0,0,0]
[null,null,null,null,null,null,null,0,0,0]
[null,null,null,null,null,null,null,0,0,0]
[null,null,null,null,null,null,null,0,0,0]
[null,null,null,null,null,null,null,0,0,0]
[null,null,null,null,null,null,null,0,0,0]
[null,null,null,null,null,null,null,0,0,0]
[null,null,null,null,null,null,null,0,0,0]
[null,null,null,null,null,null,null,0,0,0]
[null,null,null,null,null,null,null,0,0,0]
[null,null,null,null,null,null,null,0,0,0]
[null,null,null,null,null,null,null,0,0,0]
[null,null,null,null,null,null,null,0,0,0]
[null,null,null,null,null,null,null,0,0,0]
[null,null,null,null,null,null,null,0,0,0]
[null,null,null,null,null,null,null,0,0,0]
[null,null,null,null,null,null,null,0,0,0]
[null,null,null,null,null,null,null,0,0,0]
[null,null,null,null,null,null,null,0,0,0]
[null,null,null,null,null,null,null,0,0,0]
[null,null,null,null,null,null,null,0,0,0]
[null,null,null,null,null,null,null,0,0,0]
[null,null,null,null,null,null,null,{"$f":"G1034/60","v":0},{"$f":"H1034*Factor","v":0},{"$f":"I1034/38","v":0}]
[null,null,null,null,null,null,null,0,0,0]
[null,null,null,null,null,null,null,0,0,0]
[null,null,null,null,null,null,null,0,0,0]
[null,null,null,null,null,null,null,0,0,0]
[null,null,null,null,null,null,null,0,0,0]
[null,null,null,null,null,null,null,0,0,0]
[null,null,null,null,null,null,null,0,0,0]
[null,null,null,null,null,null,null,0,0,0]
[null,null,null,null,null,null,null,0,0,0]
[null,null,null,null,null,null,null,0,0,0]
[null,null,null,null,null,null,null,0,0,0]
[null,null,null,null,null,null,null,0,0,0]
[null,null,null,null,null,null,null,0,0,0]
[null,null,null,null,null,null,null,0,0,0]
[null,null,null,null,null,null,null,0,0,0]
[null,null,null,null,null,null,null,0,0,0]
[null,null,null,null,null,null,null,0,0,0]
[null,null,null,null,null,null,null,0,0,0]
[null,null,null,null,null,null,null,0,0,0]
[null,null,null,null,null,null,null,0,0,0]
[null,null,null,null,null,null,null,0,0,0]
[null,null,null,null,null,null,null,0,0,0]
[null,null,null,null,null,null,null,0,0,0]
[null,null,null,null,null,null,null,0,0,0]
[null,null,null,null,null,null,null,0,0,0]
[null,null,null,null,null,null,null,0,0,0]
[null,null,null,null,null,null,null,0,0,0]
[null,null,null,null,null,null,null,0,0,0]
[null,null,null,null,null,null,null,0,0,0]
[null,null,null,null,null,null,null,0,0,0]
[null,null,null,null,null,null,null,0,0,0]
[null,null,null,null,null,null,null,0,0,0]
[null,null,null,null,null,null,null,0,0,0]
[null,null,null,null,null,null,null,0,0,0]
[null,null,null,null,null,null,null,0,0,0]
[null,null,null,null,null,null,null,0,0,0]
[null,null,null,null,null,null,null,0,0,0]
[null,null,null,null,null,null,null,0,0,0]
[null,null,null,null,null,null,null,0,0,0]
[null,null,null,null,null,null,null,0,0,0]
[null,null,null,null,null,null,null,0,0,0]
[null,null,null,null,null,null,null,0,0,0]
[null,null,null,null,null,null,null,0,0,0]
[null,null,null,null,null,null,null,0,0,0]
[null,null,null,null,null,null,null,0,0,0]
[null,null,null,null,null,null,null,0,0,0]
[null,null,null,null,null,null,null,0,0,0]
[null,null,null,null,null,null,null,0,0,0]
[null,null,null,null,null,null,null,0,0,0]
[null,null,null,null,null,null,null,0,0,0]
[null,null,null,null,null,null,null,0,0,0]
[null,null,null,null,null,null,null,0,0,0]
[null,null,null,null,null,null,null,0,0,0]
[null,null,null,null,null,null,null,0,0,0]
[null,null,null,null,null,null,null,0,0,0]
[null,null,null,null,null,null,null,0,0,0]
[null,null,null,null,null,null,null,0,0,0]
[null,null,null,null,null,null,null,0,0,0]
[null,null,null,null,null,null,null,0,0,0]
[null,null,null,null,null,null,null,0,0,0]
[null,null,null,null,null,null,null,0,0,0]
[null,null,null,null,null,null,null,0,0,0]
[null,null,null,null,null,null,null,0,0,0]
[null,null,null,null,null,null,null,{"$f":"G1098/60","v":0},{"$f":"H1098*Factor","v":0},{"$f":"I1098/38","v":0}]
[null,null,null,null,null,null,null,0,0,0]
[null,null,null,null,null,null,null,0,0,0]
[null,null,null,null,null,null,null,0,0,0]
[null,null,null,null,null,null,null,0,0,0]
[null,null,null,null,null,null,null,0,0,0]
[null,null,null,null,null,null,null,0,0,0]
[null,null,null,null,null,null,null,0,0,0]
[null,null,null,null,null,null,null,0,0,0]
[null,null,null,null,null,null,null,0,0,0]
[null,null,null,null,null,null,null,0,0,0]
[null,null,null,null,null,null,null,0,0,0]
[null,null,null,null,null,null,null,0,0,0]
[null,null,null,null,null,null,null,0,0,0]
[null,null,null,null,null,null,null,0,0,0]
[null,null,null,null,null,null,null,0,0,0]
[null,null,null,null,null,null,null,0,0,0]
[null,null,null,null,null,null,null,0,0,0]
[null,null,null,null,null,null,null,0,0,0]
[null,null,null,null,null,null,null,0,0,0]
[null,null,null,null,null,null,null,0,0,0]
[null,null,null,null,null,null,null,0,0,0]
[null,null,null,null,null,null,null,0,0,0]
[null,null,null,null,null,null,null,0,0,0]
[null,null,null,null,null,null,null,0,0,0]
[null,null,null,null,null,null,null,0,0,0]
[null,null,null,null,null,null,null,0,0,0]
[null,null,null,null,null,null,null,0,0,0]
[null,null,null,null,null,null,null,0,0,0]
[null,null,null,null,null,null,null,0,0,0]
[null,null,null,null,null,null,null,0,0,0]
[null,null,null,null,null,null,null,0,0,0]
[null,null,null,null,null,null,null,0,0,0]
[null,null,null,null,null,null,null,0,0,0]
[null,null,null,null,null,null,null,0,0,0]
[null,null,null,null,null,null,null,0,0,0]
[null,null,null,null,null,null,null,0,0,0]
[null,null,null,null,null,null,null,0,0,0]
[null,null,null,null,null,null,null,0,0,0]
[null,null,null,null,null,null,null,0,0,0]
[null,null,null,null,null,null,null,0,0,0]
[null,null,null,null,null,null,null,0,0,0]
[null,null,null,null,null,null,null,0,0,0]
[null,null,null,null,null,null,null,0,0,0]
[null,null,null,null,null,null,null,0,0,0]
[null,null,null,null,null,null,null,0,0,0]
[null,null,null,null,null,null,null,0,0,0]
[null,null,null,null,null,null,null,0,0,0]
[null,null,null,null,null,null,null,0,0,0]
[null,null,null,null,null,null,null,0,0,0]
[null,null,null,null,null,null,null,0,0,0]
[null,null,null,null,null,null,null,0,0,0]
[null,null,null,null,null,null,null,0,0,0]
[null,null,null,null,null,null,null,0,0,0]
[null,null,null,null,null,null,null,0,0,0]
[null,null,null,null,null,null,null,0,0,0]
[null,null,null,null,null,null,null,0,0,0]
[null,null,null,null,null,null,null,0,0,0]
[null,null,null,null,null,null,null,0,0,0]
[null,null,null,null,null,null,null,0,0,0]
[null,null,null,null,null,null,null,0,0,0]
[null,null,null,null,null,null,null,0,0,0]
[null,null,null,null,null,null,null,0,0,0]
[null,null,null,null,null,null,null,0,0,0]
[null,null,null,null,null,null,null,{"$f":"G1162/60","v":0},{"$f":"H1162*Factor","v":0},{"$f":"I1162/38","v":0}]
[null,null,null,null,null,null,null,0,0,0]
[null,null,null,null,null,null,null,0,0,0]
[null,null,null,null,null,null,null,0,0,0]
[null,null,null,null,null,null,null,0,0,0]
[null,null,null,null,null,null,null,0,0,0]
[null,null,null,null,null,null,null,0,0,0]
[null,null,null,null,null,null,null,0,0,0]
[null,null,null,null,null,null,null,0,0,0]
[null,null,null,null,null,null,null,0,0,0]
[null,null,null,null,null,null,null,0,0,0]
[null,null,null,null,null,null,null,0,0,0]
[null,null,null,null,null,null,null,0,0,0]
[null,null,null,null,null,null,null,0,0,0]
[null,null,null,null,null,null,null,0,0,0]
[null,null,null,null,null,null,null,0,0,0]
[null,null,null,null,null,null,null,0,0,0]
[null,null,null,null,null,null,null,0,0,0]
[null,null,null,null,null,null,null,0,0,0]
[null,null,null,null,null,null,null,0,0,0]
[null,null,null,null,null,null,null,0,0,0]
[null,null,null,null,null,null,null,0,0,0]
[null,null,null,null,null,null,null,0,0,0]
[null,null,null,null,null,null,null,0,0,0]
[null,null,null,null,null,null,null,0,0,0]
[null,null,null,null,null,null,null,0,0,0]
[null,null,null,null,null,null,null,0,0,0]
[null,null,null,null,null,null,null,0,0,0]
[null,null,null,null,null,null,null,0,0,0]
[null,null,null,null,null,null,null,0,0,0]
[null,null,null,null,null,null,null,0,0,0]
[null,null,null,null,null,null,null,0,0,0]
[null,null,null,null,null,null,null,0,0,0]
[null,null,null,null,null,null,null,0,0,0]
[null,null,null,null,null,null,null,0,0,0]
[null,null,null,null,null,null,null,0,0,0]
[null,null,null,null,null,null,null,0,0,0]
[null,null,null,null,null,null,null,0,0,0]
[null,null,null,null,null,null,null,0,0,0]
[null,null,null,null,null,null,null,0,0,0]
[null,null,null,null,null,null,null,0,0,0]
[null,null,null,null,null,null,null,0,0,0]
[null,null,null,null,null,null,null,0,0,0]
[null,null,null,null,null,null,null,0,0,0]
[null,null,null,null,null,null,null,0,0,0]
[null,null,null,null,null,null,null,0,0,0]
[null,null,null,null,null,null,null,0,0,0]
[null,null,null,null,null,null,null,0,0,0]
[null,null,null,null,null,null,null,0,0,0]
[null,null,null,null,null,null,null,0,0,0]
[null,null,null,null,null,null,null,0,0,0]
[null,null,null,null,null,null,null,0,0,0]
[null,null,null,null,null,null,null,0,0,0]
[null,null,null,null,null,null,null,0,0,0]
[null,null,null,null,null,null,null,0,0,0]
[null,null,null,null,null,null,null,0,0,0]
[null,null,null,null,null,null,null,0,0,0]
[null,null,null,null,null,null,null,0,0,0]
[null,null,null,null,null,null,null,0,0,0]
[null,null,null,null,null,null,null,0,0,0]
[null,null,null,null,null,null,null,0,0,0]
[null,null,null,null,null,null,null,0,0,0]
[null,null,null,null,null,null,null,0,0,0]
[null,null,null,null,null,null,null,0,0,0]
[null,null,null,null,null,null,null,{"$f":"G1226/60","v":0},{"$f":"H1226*Factor","v":0},{"$f":"I1226/38","v":0}]
[null,null,null,null,null,null,null,0,0,0]
[null,null,null,null,null,null,null,0,0,0]
[null,null,null,null,null,null,null,0,0,0]
[null,null,null,null,null,null,null,0,0,0]
[null,null,null,null,null,null,null,0,0,0]
[null,null,null,null,null,null,null,0,0,0]
[null,null,null,null,null,null,null,0,0,0]
[null,null,null,null,null,null,null,0,0,0]
[null,null,null,null,null,null,null,0,0,0]
[null,null,null,null,null,null,null,0,0,0]
[null,null,null,null,null,null,null,0,0,0]
[null,null,null,null,null,null,null,0,0,0]
[null,null,null,null,null,null,null,0,0,0]
[null,null,null,null,null,null,null,0,0,0]
[null,null,null,null,null,null,null,0,0,0]
[null,null,null,null,null,null,null,0,0,0]
[null,null,null,null,null,null,null,0,0,0]
[null,null,null,null,null,null,null,0,0,0]
[null,null,null,null,null,null,null,0,0,0]
[null,null,null,null,null,null,null,0,0,0]
[null,null,null,null,null,null,null,0,0,0]
[null,null,null,null,null,null,null,0,0,0]
[null,null,null,null,null,null,null,0,0,0]
[null,null,null,null,null,null,null,0,0,0]
[null,null,null,null,null,null,null,0,0,0]
[null,null,null,null,null,null,null,0,0,0]
[null,null,null,null,null,null,null,0,0,0]
[null,null,null,null,null,null,null,0,0,0]
[null,null,null,null,null,null,null,0,0,0]
[null,null,null,null,null,null,null,0,0,0]
[null,null,null,null,null,null,null,0,0,0]
[null,null,null,null,null,null,null,0,0,0]
[null,null,null,null,null,null,null,0,0,0]
[null,null,null,null,null,null,null,0,0,0]
[null,null,null,null,null,null,null,0,0,0]
[null,null,null,null,null,null,null,0,0,0]
[null,null,null,null,null,null,null,0,0,0]
[null,null,null,null,null,null,null,0,0,0]
[null,null,null,null,null,null,null,0,0,0]
[null,null,null,null,null,null,null,0,0,0]
[null,null,null,null,null,null,null,0,0,0]
[null,null,null,null,null,null,null,0,0,0]
[null,null,null,null,null,null,null,0,0,0]
[null,null,null,null,null,null,null,0,0,0]
[null,null,null,null,null,null,null,0,0,0]
[null,null,null,null,null,null,null,0,0,0]
[null,null,null,null,null,null,null,0,0,0]
[null,null,null,null,null,null,null,0,0,0]
[null,null,null,null,null,null,null,0,0,0]
[null,null,null,null,null,null,null,0,0,0]
[null,null,null,null,null,null,null,0,0,0]
[null,null,null,null,null,null,null,0,0,0]
[null,null,null,null,null,null,null,0,0,0]
[null,null,null,null,null,null,null,0,0,0]
[null,null,null,null,null,null,null,0,0,0]
[null,null,null,null,null,null,null,0,0,0]
[null,null,null,null,null,null,null,0,0,0]
[null,null,null,null,null,null,null,0,0,0]
[null,null,null,null,null,null,null,0,0,0]
[null,null,null,null,null,null,null,0,0,0]
[null,null,null,null,null,null,null,0,0,0]
[null,null,null,null,null,null,null,0,0,0]
[null,null,null,null,null,null,null,0,0,0]
[null,null,null,null,null,null,null,{"$f":"G1290/60","v":0},{"$f":"H1290*Factor","v":0},{"$f":"I1290/38","v":0}]
[null,null,null,null,null,null,null,0,0,0]
[null,null,null,null,null,null,null,0,0,0]
[null,null,null,null,null,null,null,0,0,0]
[null,null,null,null,null,null,null,0,0,0]
[null,null,null,null,null,null,null,0,0,0]
[null,null,null,null,null,null,null,0,0,0]
[null,null,null,null,null,null,null,0,0,0]
[null,null,null,null,null,null,null,0,0,0]
[null,null,null,null,null,null,null,0,0,0]
[null,null,null,null,null,null,null,0,0,0]
[null,null,null,null,null,null,null,0,0,0]
[null,null,null,null,null,null,null,0,0,0]
[null,null,null,null,null,null,null,0,0,0]
[null,null,null,null,null,null,null,0,0,0]
[null,null,null,null,null,null,null,0,0,0]
[null,null,null,null,null,null,null,0,0,0]
[null,null,null,null,null,null,null,0,0,0]
[null,null,null,null,null,null,null,0,0,0]
[null,null,null,null,null,null,null,0,0,0]
[null,null,null,null,null,null,null,0,0,0]
[null,null,null,null,null,null,null,0,0,0]
[null,null,null,null,null,null,null,0,0,0]
[null,null,null,null,null,null,null,0,0,0]
[null,null,null,null,null,null,null,0,0,0]
[null,null,null,null,null,null,null,0,0,0]
[null,null,null,null,null,null,null,0,0,0]
[null,null,null,null,null,null,null,0,0,0]
[null,null,null,null,null,null,null,0,0,0]
[null,null,null,null,null,null,null,0,0,0]
[null,null,null,null,null,null,null,0,0,0]
[null,null,null,null,null,null,null,0,0,0]
[null,null,null,null,null,null,null,0,0,0]
[null,null,null,null,null,null,null,0,0,0]
[null,null,null,null,null,null,null,0,0,0]
[null,null,null,null,null,null,null,0,0,0]
[null,null,null,null,null,null,null,0,0,0]
[null,null,null,null,null,null,null,0,0,0]
[null,null,null,null,null,null,null,0,0,0]
[null,null,null,null,null,null,null,0,0,0]
[null,null,null,null,null,null,null,0,0,0]
[null,null,null,null,null,null,null,0,0,0]
[null,null,null,null,null,null,null,0,0,0]
[null,null,null,null,null,null,null,0,0,0]
[null,null,null,null,null,null,null,0,0,0]
[null,null,null,null,null,null,null,0,0,0]
[null,null,null,null,null,null,null,0,0,0]
[null,null,null,null,null,null,null,0,0,0]
[null,null,null,null,null,null,null,0,0,0]
[null,null,null,null,null,null,null,0,0,0]
[null,null,null,null,null,null,null,0,0,0]
[null,null,null,null,null,null,null,0,0,0]
[null,null,null,null,null,null,null,0,0,0]
[null,null,null,null,null,null,null,0,0,0]
[null,null,null,null,null,null,null,0,0,0]
[null,null,null,null,null,null,null,0,0,0]
[null,null,null,null,null,null,null,0,0,0]
[null,null,null,null,null,null,null,0,0,0]
[null,null,null,null,null,null,null,0,0,0]
[null,null,null,null,null,null,null,0,0,0]
[null,null,null,null,null,null,null,0,0,0]
[null,null,null,null,null,null,null,0,0,0]
[null,null,null,null,null,null,null,0,0,0]
[null,null,null,null,null,null,null,0,0,0]
[null,null,null,null,null,null,null,{"$f":"G1354/60","v":0},{"$f":"H1354*Factor","v":0},{"$f":"I1354/38","v":0}]
[null,null,null,null,null,null,null,0,0,0]
[null,null,null,null,null,null,null,0,0,0]
[null,null,null,null,null,null,null,0,0,0]
[null,null,null,null,null,null,null,0,0,0]
[null,null,null,null,null,null,null,0,0,0]
[null,null,null,null,null,null,null,0,0,0]
[null,null,null,null,null,null,null,0,0,0]
[null,null,null,null,null,null,null,0,0,0]
[null,null,null,null,null,null,null,0,0,0]
[null,null,null,null,null,null,null,0,0,0]
[null,null,null,null,null,null,null,0,0,0]
[null,null,null,null,null,null,null,0,0,0]
[null,null,null,null,null,null,null,0,0,0]
[null,null,null,null,null,null,null,0,0,0]
[null,null,null,null,null,null,null,0,0,0]
[null,null,null,null,null,null,null,0,0,0]
[null,null,null,null,null,null,null,0,0,0]
[null,null,null,null,null,null,null,0,0,0]
[null,null,null,null,null,null,null,0,0,0]
[null,null,null,null,null,null,null,0,0,0]
[null,null,null,null,null,null,null,0,0,0]
[null,null,null,null,null,null,null,0,0,0]
[null,null,null,null,null,null,null,0,0,0]
[null,null,null,null,null,null,null,0,0,0]
[null,null,null,null,null,null,null,0,0,0]
[null,null,null,null,null,null,null,0,0,0]
[null,null,null,null,null,null,null,0,0,0]
[null,null,null,null,null,null,null,0,0,0]
[null,null,null,null,null,null,null,0,0,0]
[null,null,null,null,null,null,null,0,0,0]
[null,null,null,null,null,null,null,0,0,0]
[null,null,null,null,null,null,null,0,0,0]
[null,null,null,null,null,null,null,0,0,0]
[null,null,null,null,null,null,null,0,0,0]
[null,null,null,null,null,null,null,0,0,0]
[null,null,null,null,null,null,null,0,0,0]
[null,null,null,null,null,null,null,0,0,0]
[null,null,null,null,null,null,null,0,0,0]
[null,null,null,null,null,null,null,0,0,0]
[null,null,null,null,null,null,null,0,0,0]
[null,null,null,null,null,null,null,0,0,0]
[null,null,null,null,null,null,null,0,0,0]
[null,null,null,null,null,null,null,0,0,0]
[null,null,null,null,null,null,null,0,0,0]
[null,null,null,null,null,null,null,0,0,0]
[null,null,null,null,null,null,null,0,0,0]
[null,null,null,null,null,null,null,0,0,0]
[null,null,null,null,null,null,null,0,0,0]
[null,null,null,null,null,null,null,0,0,0]
[null,null,null,null,null,null,null,0,0,0]
[null,null,null,null,null,null,null,0,0,0]
[null,null,null,null,null,null,null,0,0,0]
[null,null,null,null,null,null,null,0,0,0]
[null,null,null,null,null,null,null,0,0,0]
[null,null,null,null,null,null,null,0,0,0]
[null,null,null,null,null,null,null,0,0,0]
[null,null,null,null,null,null,null,0,0,0]
[null,null,null,null,null,null,null,0,0,0]
[null,null,null,null,null,null,null,0,0,0]
[null,null,null,null,null,null,null,0,0,0]
[null,null,null,null,null,null,null,0,0,0]
[null,null,null,null,null,null,null,0,0,0]
[null,null,null,null,null,null,null,0,0,0]
[null,null,null,null,null,null,null,{"$f":"G1418/60","v":0},{"$f":"H1418*Factor","v":0},{"$f":"I1418/38","v":0}]
[null,null,null,null,null,null,null,0,0,0]
[null,null,null,null,null,null,null,0,0,0]
[null,null,null,null,null,null,null,0,0,0]
[null,null,null,null,null,null,null,0,0,0]
[null,null,null,null,null,null,null,0,0,0]
[null,null,null,null,null,null,null,0,0,0]
[null,null,null,null,null,null,null,0,0,0]
[null,null,null,null,null,null,null,0,0,0]
[null,null,null,null,null,null,null,0,0,0]
[null,null,null,null,null,null,null,0,0,0]
[null,null,null,null,null,null,null,0,0,0]
[null,null,null,null,null,null,null,0,0,0]
[null,null,null,null,null,null,null,0,0,0]
[null,null,null,null,null,null,null,0,0,0]
[null,null,null,null,null,null,null,0,0,0]
[null,null,null,null,null,null,null,0,0,0]
[null,null,null,null,null,null,null,0,0,0]
[null,null,null,null,null,null,null,0,0,0]
[null,null,null,null,null,null,null,0,0,0]
[null,null,null,null,null,null,null,0,0,0]
[null,null,null,null,null,null,null,0,0,0]
[null,null,null,null,null,null,null,0,0,0]
[null,null,null,null,null,null,null,0,0,0]
[null,null,null,null,null,null,null,0,0,0]
[null,null,null,null,null,null,null,0,0,0]
[null,null,null,null,null,null,null,0,0,0]
[null,null,null,null,null,null,null,0,0,0]
[null,null,null,null,null,null,null,0,0,0]
[null,null,null,null,null,null,null,0,0,0]
[null,null,null,null,null,null,null,0,0,0]
[null,null,null,null,null,null,null,0,0,0]
[null,null,null,null,null,null,null,0,0,0]
[null,null,null,null,null,null,null,0,0,0]
[null,null,null,null,null,null,null,0,0,0]
[null,null,null,null,null,null,null,0,0,0]
[null,null,null,null,null,null,null,0,0,0]
[null,null,null,null,null,null,null,0,0,0]
[null,null,null,null,null,null,null,0,0,0]
[null,null,null,null,null,null,null,0,0,0]
[null,null,null,null,null,null,null,0,0,0]
[null,null,null,null,null,null,null,0,0,0]
[null,null,null,null,null,null,null,0,0,0]
[null,null,null,null,null,null,null,0,0,0]
[null,null,null,null,null,null,null,0,0,0]
[null,null,null,null,null,null,null,0,0,0]
[null,null,null,null,null,null,null,0,0,0]
[null,null,null,null,null,null,null,0,0,0]
[null,null,null,null,null,null,null,0,0,0]
[null,null,null,null,null,null,null,0,0,0]
[null,null,null,null,null,null,null,0,0,0]
[null,null,null,null,null,null,null,0,0,0]
[null,null,null,null,null,null,null,0,0,0]
[null,null,null,null,null,null,null,0,0,0]
[null,null,null,null,null,null,null,0,0,0]
[null,null,null,null,null,null,null,0,0,0]
[null,null,null,null,null,null,null,0,0,0]
[null,null,null,null,null,null,null,0,0,0]
[null,null,null,null,null,null,null,0,0,0]
[null,null,null,null,null,null,null,0,0,0]
[null,null,null,null,null,null,null,0,0,0]
[null,null,null,null,null,null,null,0,0,0]
[null,null,null,null,null,null,null,0,0,0]
[null,null,null,null,null,null,null,0,0,0]
[null,null,null,null,null,null,null,{"$f":"G1482/60","v":0},{"$f":"H1482*Factor","v":0},{"$f":"I1482/38","v":0}]
[null,null,null,null,null,null,null,0,0,0]
[null,null,null,null,null,null,null,0,0,0]
[null,null,null,null,null,null,null,0,0,0]
[null,null,null,null,null,null,null,0,0,0]
[null,null,null,null,null,null,null,0,0,0]
[null,null,null,null,null,null,null,0,0,0]
[null,null,null,null,null,null,null,0,0,0]
[null,null,null,null,null,null,null,0,0,0]
[null,null,null,null,null,null,null,0,0,0]
[null,null,null,null,null,null,null,0,0,0]
[null,null,null,null,null,null,null,0,0,0]
[null,null,null,null,null,null,null,0,0,0]
[null,null,null,null,null,null,null,0,0,0]
[null,null,null,null,null,null,null,0,0,0]
[null,null,null,null,null,null,null,0,0,0]
[null,null,null,null,null,null,null,0,0,0]
[null,null,null,null,null,null,null,0,0,0]
[null,null,null,null,null,null,null,0,0,0]
[null,null,null,null,null,null,null,0,0,0]
[null,null,null,null,null,null,null,0,0,0]
[null,null,null,null,null,null,null,0,0,0]
[null,null,null,null,null,null,null,0,0,0]
[null,null,null,null,null,null,null,0,0,0]
[null,null,null,null,null,null,null,0,0,0]
[null,null,null,null,null,null,null,0,0,0]
[null,null,null,null,null,null,null,0,0,0]
[null,null,null,null,null,null,null,0,0,0]
[null,null,null,null,null,null,null,0,0,0]
[null,null,null,null,null,null,null,0,0,0]
[null,null,null,null,null,null,null,0,0,0]
[null,null,null,null,null,null,null,0,0,0]
[null,null,null,null,null,null,null,0,0,0]
[null,null,null,null,null,null,null,0,0,0]
[null,null,null,null,null,null,null,0,0,0]
[null,null,null,null,null,null,null,0,0,0]
[null,null,null,null,null,null,null,0,0,0]
[null,null,null,null,null,null,null,0,0,0]
[null,null,null,null,null,null,null,0,0,0]
[null,null,null,null,null,null,null,0,0,0]
[null,null,null,null,null,null,null,0,0,0]
[null,null,null,null,null,null,null,0,0,0]
[null,null,null,null,null,null,null,0,0,0]
[null,null,null,null,null,null,null,0,0,0]
[null,null,null,null,null,null,null,0,0,0]
[null,null,null,null,null,null,null,0,0,0]
[null,null,null,null,null,null,null,0,0,0]
[null,null,null,null,null,null,null,0,0,0]
[null,null,null,null,null,null,null,0,0,0]
[null,null,null,null,null,null,null,0,0,0]
[null,null,null,null,null,null,null,0,0,0]
[null,null,null,null,null,null,null,0,0,0]
[null,null,null,null,null,null,null,0,0,0]
[null,null,null,null,null,null,null,0,0,0]
[null,null,null,null,null,null,null,0,0,0]
[null,null,null,null,null,null,null,0,0,0]
[null,null,null,null,null,null,null,0,0,0]
[null,null,null,null,null,null,null,0,0,0]
[null,null,null,null,null,null,null,0,0,0]
[null,null,null,null,null,null,null,0,0,0]
[null,null,null,null,null,null,null,0,0,0]
[null,null,null,null,null,null,null,0,0,0]
[null,null,null,null,null,null,null,0,0,0]
[null,null,null,null,null,null,null,0,0,0]
[null,null,null,null,null,null,null,{"$f":"G1546/60","v":0},{"$f":"H1546*Factor","v":0},{"$f":"I1546/38","v":0}]
[null,null,null,null,null,null,null,0,0,0]
[null,null,null,null,null,null,null,0,0,0]
[null,null,null,null,null,null,null,0,0,0]
[null,null,null,null,null,null,null,0,0,0]
[null,null,null,null,null,null,null,0,0,0]
[null,null,null,null,null,null,null,0,0,0]
[null,null,null,null,null,null,null,0,0,0]
[null,null,null,null,null,null,null,0,0,0]
[null,null,null,null,null,null,null,0,0,0]
[null,null,null,null,null,null,null,0,0,0]
[null,null,null,null,null,null,null,0,0,0]
[null,null,null,null,null,null,null,0,0,0]
[null,null,null,null,null,null,null,0,0,0]
[null,null,null,null,null,null,null,0,0,0]
[null,null,null,null,null,null,null,0,0,0]
[null,null,null,null,null,null,null,0,0,0]
[null,null,null,null,null,null,null,0,0,0]
[null,null,null,null,null,null,null,0,0,0]
[null,null,null,null,null,null,null,0,0,0]
[null,null,null,null,null,null,null,0,0,0]
[null,null,null,null,null,null,null,0,0,0]
[null,null,null,null,null,null,null,0,0,0]
[null,null,null,null,null,null,null,0,0,0]
[null,null,null,null,null,null,null,0,0,0]
[null,null,null,null,null,null,null,0,0,0]
[null,null,null,null,null,null,null,0,0,0]
[null,null,null,null,null,null,null,0,0,0]
[null,null,null,null,null,null,null,0,0,0]
[null,null,null,null,null,null,null,0,0,0]
[null,null,null,null,null,null,null,0,0,0]
[null,null,null,null,null,null,null,0,0,0]
[null,null,null,null,null,null,null,0,0,0]
[null,null,null,null,null,null,null,0,0,0]
[null,null,null,null,null,null,null,0,0,0]
[null,null,null,null,null,null,null,0,0,0]
[null,null,null,null,null,null,null,0,0,0]
[null,null,null,null,null,null,null,0,0,0]
[null,null,null,null,null,null,null,0,0,0]
[null,null,null,null,null,null,null,0,0,0]
[null,null,null,null,null,null,null,0,0,0]
[null,null,null,null,null,null,null,0,0,0]
[null,null,null,null,null,null,null,0,0,0]
[null,null,null,null,null,null,null,0,0,0]
[null,null,null,null,null,null,null,0,0,0]
[null,null,null,null,null,null,null,0,0,0]
[null,null,null,null,null,null,null,0,0,0]
[null,null,null,null,null,null,null,0,0,0]
[null,null,null,null,null,null,null,0,0,0]
[null,null,null,null,null,null,null,0,0,0]
[null,null,null,null,null,null,null,0,0,0]
[null,null,null,null,null,null,null,0,0,0]
[null,null,null,null,null,null,null,0,0,0]
[null,null,null,null,null,null,null,0,0,0]
[null,null,null,null,null,null,null,0,0,0]
[null,null,null,null,null,null,null,0,0,0]
[null,null,null,null,null,null,null,0,0,0]
[null,null,null,null,null,null,null,0,0,0]
[null,null,null,null,null,null,null,0,0,0]
[null,null,null,null,null,null,null,0,0,0]
[null,null,null,null,null,null,null,0,0,0]
[null,null,null,null,null,null,null,0,0,0]
[null,null,null,null,null,null,null,0,0,0]
[null,null,null,null,null,null,null,0,0,0]
[null,null,null,null,null,null,null,{"$f":"G1610/60","v":0},{"$f":"H1610*Factor","v":0},{"$f":"I1610/38","v":0}]
[null,null,null,null,null,null,null,0,0,0]
[null,null,null,null,null,null,null,0,0,0]
[null,null,null,null,null,null,null,0,0,0]
[null,null,null,null,null,null,null,0,0,0]
[null,null,null,null,null,null,null,0,0,0]
[null,null,null,null,null,null,null,0,0,0]
[null,null,null,null,null,null,null,0,0,0]
[null,null,null,null,null,null,null,0,0,0]
[null,null,null,null,null,null,null,0,0,0]
[null,null,null,null,null,null,null,0,0,0]
[null,null,null,null,null,null,null,0,0,0]
[null,null,null,null,null,null,null,0,0,0]
[null,null,null,null,null,null,null,0,0,0]
[null,null,null,null,null,null,null,0,0,0]
[null,null,null,null,null,null,null,0,0,0]
[null,null,null,null,null,null,null,0,0,0]
[null,null,null,null,null,null,null,0,0,0]
[null,null,null,null,null,null,null,0,0,0]
[null,null,null,null,null,null,null,0,0,0]
[null,null,null,null,null,null,null,0,0,0]
[null,null,null,null,null,null,null,0,0,0]
[null,null,null,null,null,null,null,0,0,0]
[null,null,null,null,null,null,null,0,0,0]
[null,null,null,null,null,null,null,0,0,0]
[null,null,null,null,null,null,null,0,0,0]
[null,null,null,null,null,null,null,0,0,0]
[null,null,null,null,null,null,null,0,0,0]
[null,null,null,null,null,null,null,0,0,0]
[null,null,null,null,null,null,null,0,0,0]
[null,null,null,null,null,null,null,0,0,0]
[null,null,null,null,null,null,null,0,0,0]
[null,null,null,null,null,null,null,0,0,0]
[null,null,null,null,null,null,null,0,0,0]
[null,null,null,null,null,null,null,0,0,0]
[null,null,null,null,null,null,null,0,0,0]
[null,null,null,null,null,null,null,0,0,0]
[null,null,null,null,null,null,null,0,0,0]
[null,null,null,null,null,null,null,0,0,0]
[null,null,null,null,null,null,null,0,0,0]
[null,null,null,null,null,null,null,0,0,0]
[null,null,null,null,null,null,null,0,0,0]
[null,null,null,null,null,null,null,0,0,0]
[null,null,null,null,null,null,null,0,0,0]
[null,null,null,null,null,null,null,0,0,0]
[null,null,null,null,null,null,null,0,0,0]
[null,null,null,null,null,null,null,0,0,0]
[null,null,null,null,null,null,null,0,0,0]
[null,null,null,null,null,null,null,0,0,0]
[null,null,null,null,null,null,null,0,0,0]
[null,null,null,null,null,null,null,0,0,0]
[null,null,null,null,null,null,null,0,0,0]
[null,null,null,null,null,null,null,0,0,0]
[null,null,null,null,null,null,null,0,0,0]
[null,null,null,null,null,null,null,0,0,0]
[null,null,null,null,null,null,null,0,0,0]
[null,null,null,null,null,null,null,0,0,0]
[null,null,null,null,null,null,null,0,0,0]
[null,null,null,null,null,null,null,0,0,0]
[null,null,null,null,null,null,null,0,0,0]
[null,null,null,null,null,null,null,0,0,0]
[null,null,null,null,null,null,null,0,0,0]
[null,null,null,null,null,null,null,0,0,0]
[null,null,null,null,null,null,null,0,0,0]
[null,null,null,null,null,null,null,{"$f":"G1674/60","v":0},{"$f":"H1674*Factor","v":0},{"$f":"I1674/38","v":0}]
[null,null,null,null,null,null,null,0,0,0]
[null,null,null,null,null,null,null,0,0,0]
[null,null,null,null,null,null,null,0,0,0]
[null,null,null,null,null,null,null,0,0,0]
[null,null,null,null,null,null,null,0,0,0]
[null,null,null,null,null,null,null,0,0,0]
[null,null,null,null,null,null,null,0,0,0]
[null,null,null,null,null,null,null,0,0,0]
[null,null,null,null,null,null,null,0,0,0]
[null,null,null,null,null,null,null,0,0,0]
[null,null,null,null,null,null,null,0,0,0]
[null,null,null,null,null,null,null,0,0,0]
[null,null,null,null,null,null,null,0,0,0]
[null,null,null,null,null,null,null,0,0,0]
[null,null,null,null,null,null,null,0,0,0]
[null,null,null,null,null,null,null,0,0,0]
[null,null,null,null,null,null,null,0,0,0]
[null,null,null,null,null,null,null,0,0,0]
[null,null,null,null,null,null,null,0,0,0]
[null,null,null,null,null,null,null,0,0,0]
[null,null,null,null,null,null,null,0,0,0]
[null,null,null,null,null,null,null,0,0,0]
[null,null,null,null,null,null,null,0,0,0]
[null,null,null,null,null,null,null,0,0,0]
[null,null,null,null,null,null,null,0,0,0]
[null,null,null,null,null,null,null,0,0,0]
[null,null,null,null,null,null,null,0,0,0]
[null,null,null,null,null,null,null,0,0,0]
[null,null,null,null,null,null,null,0,0,0]
[null,null,null,null,null,null,null,0,0,0]
[null,null,null,null,null,null,null,0,0,0]
[null,null,null,null,null,null,null,0,0,0]
[null,null,null,null,null,null,null,0,0,0]
[null,null,null,null,null,null,null,0,0,0]
[null,null,null,null,null,null,null,0,0,0]
[null,null,null,null,null,null,null,0,0,0]
[null,null,null,null,null,null,null,0,0,0]
[null,null,null,null,null,null,null,0,0,0]
[null,null,null,null,null,null,null,0,0,0]
[null,null,null,null,null,null,null,0,0,0]
[null,null,null,null,null,null,null,0,0,0]
[null,null,null,null,null,null,null,0,0,0]
[null,null,null,null,null,null,null,0,0,0]
[null,null,null,null,null,null,null,0,0,0]
[null,null,null,null,null,null,null,0,0,0]
[null,null,null,null,null,null,null,0,0,0]
[null,null,null,null,null,null,null,0,0,0]
[null,null,null,null,null,null,null,0,0,0]
[null,null,null,null,null,null,null,0,0,0]
[null,null,null,null,null,null,null,0,0,0]
[null,null,null,null,null,null,null,0,0,0]
[null,null,null,null,null,null,null,0,0,0]
[null,null,null,null,null,null,null,0,0,0]
[null,null,null,null,null,null,null,0,0,0]
[null,null,null,null,null,null,null,0,0,0]
[null,null,null,null,null,null,null,0,0,0]
[null,null,null,null,null,null,null,0,0,0]
[null,null,null,null,null,null,null,0,0,0]
[null,null,null,null,null,null,null,0,0,0]
[null,null,null,null,null,null,null,0,0,0]
[null,null,null,null,null,null,null,0,0,0]
[null,null,null,null,null,null,null,0,0,0]
[null,null,null,null,null,null,null,0,0,0]
[null,null,null,null,null,null,null,{"$f":"G1738/60","v":0},{"$f":"H1738*Factor","v":0},{"$f":"I1738/38","v":0}]
[null,null,null,null,null,null,null,0,0,0]
[null,null,null,null,null,null,null,0,0,0]
[null,null,null,null,null,null,null,0,0,0]
[null,null,null,null,null,null,null,0,0,0]
[null,null,null,null,null,null,null,0,0,0]
[null,null,null,null,null,null,null,0,0,0]
[null,null,null,null,null,null,null,0,0,0]
[null,null,null,null,null,null,null,0,0,0]
[null,null,null,null,null,null,null,0,0,0]
[null,null,null,null,null,null,null,0,0,0]
[null,null,null,null,null,null,null,0,0,0]
[null,null,null,null,null,null,null,0,0,0]
[null,null,null,null,null,null,null,0,0,0]
[null,null,null,null,null,null,null,0,0,0]
[null,null,null,null,null,null,null,0,0,0]
[null,null,null,null,null,null,null,0,0,0]
[null,null,null,null,null,null,null,0,0,0]
[null,null,null,null,null,null,null,0,0,0]
[null,null,null,null,null,null,null,0,0,0]
[null,null,null,null,null,null,null,0,0,0]
[null,null,null,null,null,null,null,0,0,0]
[null,null,null,null,null,null,null,0,0,0]
[null,null,null,null,null,null,null,0,0,0]
[null,null,null,null,null,null,null,0,0,0]
[null,null,null,null,null,null,null,0,0,0]
[null,null,null,null,null,null,null,0,0,0]
[null,null,null,null,null,null,null,0,0,0]
[null,null,null,null,null,null,null,0,0,0]
[null,null,null,null,null,null,null,0,0,0]
[null,null,null,null,null,null,null,0,0,0]
[null,null,null,null,null,null,null,0,0,0]
[null,null,null,null,null,null,null,0,0,0]
[null,null,null,null,null,null,null,0,0,0]
[null,null,null,null,null,null,null,0,0,0]
[null,null,null,null,null,null,null,0,0,0]
[null,null,null,null,null,null,null,0,0,0]
[null,null,null,null,null,null,null,0,0,0]
[null,null,null,null,null,null,null,0,0,0]
[null,null,null,null,null,null,null,0,0,0]
[null,null,null,null,null,null,null,0,0,0]
[null,null,null,null,null,null,null,0,0,0]
[null,null,null,null,null,null,null,0,0,0]
[null,null,null,null,null,null,null,0,0,0]
[null,null,null,null,null,null,null,0,0,0]
[null,null,null,null,null,null,null,0,0,0]
[null,null,null,null,null,null,null,0,0,0]
[null,null,null,null,null,null,null,0,0,0]
[null,null,null,null,null,null,null,0,0,0]
[null,null,null,null,null,null,null,0,0,0]
[null,null,null,null,null,null,null,0,0,0]
[null,null,null,null,null,null,null,0,0,0]
[null,null,null,null,null,null,null,0,0,0]
[null,null,null,null,null,null,null,0,0,0]
[null,null,null,null,null,null,null,0,0,0]
[null,null,null,null,null,null,null,0,0,0]
[null,null,null,null,null,null,null,0,0,0]
[null,null,null,null,null,null,null,0,0,0]
[null,null,null,null,null,null,null,0,0,0]
[null,null,null,null,null,null,null,0,0,0]
[null,null,null,null,null,null,null,0,0,0]
[null,null,null,null,null,null,null,0,0,0]
[null,null,null,null,null,null,null,0,0,0]
[null,null,null,null,null,null,null,0,0,0]
[null,null,null,null,null,null,null,{"$f":"G1802/60","v":0},{"$f":"H1802*Factor","v":0},{"$f":"I1802/38","v":0}]
[null,null,null,null,null,null,null,0,0,0]
[null,null,null,null,null,null,null,0,0,0]
[null,null,null,null,null,null,null,0,0,0]
[null,null,null,null,null,null,null,0,0,0]
[null,null,null,null,null,null,null,0,0,0]
[null,null,null,null,null,null,null,0,0,0]
[null,null,null,null,null,null,null,0,0,0]
[null,null,null,null,null,null,null,0,0,0]
[null,null,null,null,null,null,null,0,0,0]
[null,null,null,null,null,null,null,0,0,0]
[null,null,null,null,null,null,null,0,0,0]
[null,null,null,null,null,null,null,0,0,0]
[null,null,null,null,null,null,null,0,0,0]
[null,null,null,null,null,null,null,0,0,0]
[null,null,null,null,null,null,null,0,0,0]
[null,null,null,null,null,null,null,0,0,0]
[null,null,null,null,null,null,null,0,0,0]
[null,null,null,null,null,null,null,0,0,0]
[null,null,null,null,null,null,null,0,0,0]
[null,null,null,null,null,null,null,0,0,0]
[null,null,null,null,null,null,null,0,0,0]
[null,null,null,null,null,null,null,0,0,0]
[null,null,null,null,null,null,null,0,0,0]
[null,null,null,null,null,null,null,0,0,0]
[null,null,null,null,null,null,null,0,0,0]
[null,null,null,null,null,null,null,0,0,0]
[null,null,null,null,null,null,null,0,0,0]
[null,null,null,null,null,null,null,0,0,0]
[null,null,null,null,null,null,null,0,0,0]
[null,null,null,null,null,null,null,0,0,0]
[null,null,null,null,null,null,null,0,0,0]
[null,null,null,null,null,null,null,0,0,0]
[null,null,null,null,null,null,null,0,0,0]
[null,null,null,null,null,null,null,0,0,0]
[null,null,null,null,null,null,null,0,0,0]
[null,null,null,null,null,null,null,0,0,0]
[null,null,null,null,null,null,null,0,0,0]
[null,null,null,null,null,null,null,0,0,0]
[null,null,null,null,null,null,null,0,0,0]
[null,null,null,null,null,null,null,0,0,0]
[null,null,null,null,null,null,null,0,0,0]
[null,null,null,null,null,null,null,0,0,0]
[null,null,null,null,null,null,null,0,0,0]
[null,null,null,null,null,null,null,0,0,0]
[null,null,null,null,null,null,null,0,0,0]
[null,null,null,null,null,null,null,0,0,0]
[null,null,null,null,null,null,null,0,0,0]
[null,null,null,null,null,null,null,0,0,0]
[null,null,null,null,null,null,null,0,0,0]
[null,null,null,null,null,null,null,0,0,0]
[null,null,null,null,null,null,null,0,0,0]
[null,null,null,null,null,null,null,0,0,0]
[null,null,null,null,null,null,null,0,0,0]
[null,null,null,null,null,null,null,0,0,0]
[null,null,null,null,null,null,null,0,0,0]
[null,null,null,null,null,null,null,0,0,0]
[null,null,null,null,null,null,null,0,0,0]
[null,null,null,null,null,null,null,0,0,0]
[null,null,null,null,null,null,null,0,0,0]
[null,null,null,null,null,null,null,0,0,0]
[null,null,null,null,null,null,null,0,0,0]
[null,null,null,null,null,null,null,0,0,0]
[null,null,null,null,null,null,null,0,0,0]
[null,null,null,null,null,null,null,{"$f":"G1866/60","v":0},{"$f":"H1866*Factor","v":0},{"$f":"I1866/38","v":0}]
[null,null,null,null,null,null,null,0,0,0]
[null,null,null,null,null,null,null,0,0,0]
[null,null,null,null,null,null,null,0,0,0]
[null,null,null,null,null,null,null,0,0,0]
[null,null,null,null,null,null,null,0,0,0]
[null,null,null,null,null,null,null,0,0,0]
[null,null,null,null,null,null,null,0,0,0]
[null,null,null,null,null,null,null,0,0,0]
[null,null,null,null,null,null,null,0,0,0]
[null,null,null,null,null,null,null,0,0,0]
[null,null,null,null,null,null,null,0,0,0]
[null,null,null,null,null,null,null,0,0,0]
[null,null,null,null,null,null,null,0,0,0]
[null,null,null,null,null,null,null,0,0,0]
[null,null,null,null,null,null,null,0,0,0]
[null,null,null,null,null,null,null,0,0,0]
[null,null,null,null,null,null,null,0,0,0]
[null,null,null,null,null,null,null,0,0,0]
[null,null,null,null,null,null,null,0,0,0]
[null,null,null,null,null,null,null,0,0,0]
[null,null,null,null,null,null,null,0,0,0]
[null,null,null,null,null,null,null,0,0,0]
[null,null,null,null,null,null,null,0,0,0]
[null,null,null,null,null,null,null,0,0,0]
[null,null,null,null,null,null,null,0,0,0]
[null,null,null,null,null,null,null,0,0,0]
[null,null,null,null,null,null,null,0,0,0]
[null,null,null,null,null,null,null,0,0,0]
[null,null,null,null,null,null,null,0,0,0]
[null,null,null,null,null,null,null,0,0,0]
[null,null,null,null,null,null,null,0,0,0]
[null,null,null,null,null,null,null,0,0,0]
[null,null,null,null,null,null,null,0,0,0]
[null,null,null,null,null,null,null,0,0,0]
[null,null,null,null,null,null,null,0,0,0]
[null,null,null,null,null,null,null,0,0,0]
[null,null,null,null,null,null,null,0,0,0]
[null,null,null,null,null,null,null,0,0,0]
[null,null,null,null,null,null,null,0,0,0]
[null,null,null,null,null,null,null,0,0,0]
[null,null,null,null,null,null,null,0,0,0]
[null,null,null,null,null,null,null,0,0,0]
[null,null,null,null,null,null,null,0,0,0]
[null,null,null,null,null,null,null,0,0,0]
[null,null,null,null,null,null,null,0,0,0]
[null,null,null,null,null,null,null,0,0,0]
[null,null,null,null,null,null,null,0,0,0]
[null,null,null,null,null,null,null,0,0,0]
[null,null,null,null,null,null,null,0,0,0]
[null,null,null,null,null,null,null,0,0,0]
[null,null,null,null,null,null,null,0,0,0]
[null,null,null,null,null,null,null,0,0,0]
[null,null,null,null,null,null,null,0,0,0]
[null,null,null,null,null,null,null,0,0,0]
[null,null,null,null,null,null,null,0,0,0]
[null,null,null,null,null,null,null,0,0,0]
[null,null,null,null,null,null,null,0,0,0]
[null,null,null,null,null,null,null,0,0,0]
[null,null,null,null,null,null,null,0,0,0]
[null,null,null,null,null,null,null,0,0,0]
[null,null,null,null,null,null,null,0,0,0]
[null,null,null,null,null,null,null,0,0,0]
[null,null,null,null,null,null,null,0,0,0]
[null,null,null,null,null,null,null,{"$f":"G1930/60","v":0},{"$f":"H1930*Factor","v":0},{"$f":"I1930/38","v":0}]
[null,null,null,null,null,null,null,0,0,0]
[null,null,null,null,null,null,null,0,0,0]
[null,null,null,null,null,null,null,0,0,0]
[null,null,null,null,null,null,null,0,0,0]
[null,null,null,null,null,null,null,0,0,0]
[null,null,null,null,null,null,null,0,0,0]
[null,null,null,null,null,null,null,0,0,0]
[null,null,null,null,null,null,null,0,0,0]
[null,null,null,null,null,null,null,0,0,0]
[null,null,null,null,null,null,null,0,0,0]
[null,null,null,null,null,null,null,0,0,0]
[null,null,null,null,null,null,null,0,0,0]
[null,null,null,null,null,null,null,0,0,0]
[null,null,null,null,null,null,null,0,0,0]
[null,null,null,null,null,null,null,0,0,0]
[null,null,null,null,null,null,null,0,0,0]
[null,null,null,null,null,null,null,0,0,0]
[null,null,null,null,null,null,null,0,0,0]
[null,null,null,null,null,null,null,0,0,0]
[null,null,null,null,null,null,null,0,0,0]
[null,null,null,null,null,null,null,0,0,0]
[null,null,null,null,null,null,null,0,0,0]
[null,null,null,null,null,null,null,0,0,0]
[null,null,null,null,null,null,null,0,0,0]
[null,null,null,null,null,null,null,0,0,0]
[null,null,null,null,null,null,null,0,0,0]
[null,null,null,null,null,null,null,0,0,0]
[null,null,null,null,null,null,null,0,0,0]
[null,null,null,null,null,null,null,0,0,0]
[null,null,null,null,null,null,null,0,0,0]
[null,null,null,null,null,null,null,0,0,0]
[null,null,null,null,null,null,null,0,0,0]
[null,null,null,null,null,null,null,0,0,0]
[null,null,null,null,null,null,null,0,0,0]
[null,null,null,null,null,null,null,0,0,0]
[null,null,null,null,null,null,null,0,0,0]
[null,null,null,null,null,null,null,0,0,0]
[null,null,null,null,null,null,null,0,0,0]
[null,null,null,null,null,null,null,0,0,0]
[null,null,null,null,null,null,null,0,0,0]
[null,null,null,null,null,null,null,0,0,0]
[null,null,null,null,null,null,null,0,0,0]
[null,null,null,null,null,null,null,0,0,0]
[null,null,null,null,null,null,null,0,0,0]
[null,null,null,null,null,null,null,0,0,0]
[null,null,null,null,null,null,null,0,0,0]
[null,null,null,null,null,null,null,0,0,0]
[null,null,null,null,null,null,null,0,0,0]
[null,null,null,null,null,null,null,0,0,0]
[null,null,null,null,null,null,null,0,0,0]
[null,null,null,null,null,null,null,0,0,0]
[null,null,null,null,null,null,null,0,0,0]
[null,null,null,null,null,null,null,0,0,0]
[null,null,null,null,null,null,null,0,0,0]
[null,null,null,null,null,null,null,0,0,0]
[null,null,null,null,null,null,null,0,0,0]
[null,null,null,null,null,null,null,0,0,0]
[null,null,null,null,null,null,null,0,0,0]
[null,null,null,null,null,null,null,0,0,0]
[null,null,null,null,null,null,null,0,0,0]
[null,null,null,null,null,null,null,0,0,0]
[null,null,null,null,null,null,null,0,0,0]
[null,null,null,null,null,null,null,0,0,0]
[null,null,null,null,null,null,null,{"$f":"G1994/60","v":0},{"$f":"H1994*Factor","v":0},{"$f":"I1994/38","v":0}]
[null,null,null,null,null,null,null,0,0,0]
[null,null,null,null,null,null,null,0,0,0]
[null,null,null,null,null,null,null,0,0,0]
[null,null,null,null,null,null,null,0,0,0]
[null,null,null,null,null,null,null,0,0,0]
[null,null,null,null,null,null,null,0,0,0]

{"sheet":"Clinical Incidents and Waitlist","index":3,"n_rows":3,"n_cols":6,"rows_kept":3,"cut":false,"hidden":false,"merged":[]}
["Optional Baseline Workforce Staffing Profile Data"]
["Clinical Incidents",null,null,null,"Waitlist"]
["Type of Incident","Level of Risk","Number of Incidents","Comments","Waitlist description - define how you priortise your waitlist.","Number of weeks"]

{"sheet":"% FTE","index":4,"n_rows":2000,"n_cols":4,"rows_kept":2000,"cut":false,"hidden":false,"merged":[[0,0,1,3]]}
["% FTE Calculation"]
[]
["Program, Team, Discipline or Practice Category","Budgeted AHP FTE \n(from baseline workforce staffing profile data)","Quantified AHP FTE Spent on tasks that could be delegated to an AHA (from Quantification Data)","% of AHP FTE spent on tasks that \ncould be delegated to AHA"]
[null,null,null,{"$f":"IFERROR((C4/B4),0)","v":0}]
[null,null,null,0]
[null,null,null,0]
[null,null,null,0]
[null,null,null,0]
[null,null,null,0]
[null,null,null,0]
[null,null,null,0]
[null,null,null,0]
[null,null,null,0]
[null,null,null,0]
[null,null,null,0]
[null,null,null,0]
[null,null,null,0]
[null,null,null,0]
[null,null,null,0]
[null,null,null,0]
[null,null,null,0]
[null,null,null,0]
[null,null,null,0]
[null,null,null,0]
[null,null,null,0]
[null,null,null,0]
[null,null,null,0]
[null,null,null,0]
[null,null,null,0]
[null,null,null,0]
[null,null,null,0]
[null,null,null,0]
[null,null,null,0]
[null,null,null,0]
[null,null,null,0]
[null,null,null,0]
[null,null,null,0]
[null,null,null,0]
[null,null,null,0]
[null,null,null,0]
[null,null,null,0]
[null,null,null,0]
[null,null,null,0]
[null,null,null,0]
[null,null,null,0]
[null,null,null,0]
[null,null,null,0]
[null,null,null,0]
[null,null,null,0]
[null,null,null,0]
[null,null,null,0]
[null,null,null,0]
[null,null,null,0]
[null,null,null,0]
[null,null,null,0]
[null,null,null,0]
[null,null,null,0]
[null,null,null,0]
[null,null,null,0]
[null,null,null,0]
[null,null,null,0]
[null,null,null,0]
[null,null,null,0]
[null,null,null,0]
[null,null,null,0]
[null,null,null,0]
[null,null,null,0]
[null,null,null,{"$f":"IFERROR((C68/B68),0)","v":0}]
[null,null,null,0]
[null,null,null,0]
[null,null,null,0]
[null,null,null,0]
[null,null,null,0]
[null,null,null,0]
[null,null,null,0]
[null,null,null,0]
[null,null,null,0]
[null,null,null,0]
[null,null,null,0]
[null,null,null,0]
[null,null,null,0]
[null,null,null,0]
[null,null,null,0]
[null,null,null,0]
[null,null,null,0]
[null,null,null,0]
[null,null,null,0]
[null,null,null,0]
[null,null,null,0]
[null,null,null,0]
[null,null,null,0]
[null,null,null,0]
[null,null,null,0]
[null,null,null,0]
[null,null,null,0]
[null,null,null,0]
[null,null,null,0]
[null,null,null,0]
[null,null,null,0]
[null,null,null,0]
[null,null,null,0]
[null,null,null,0]
[null,null,null,0]
[null,null,null,0]
[null,null,null,0]
[null,null,null,0]
[null,null,null,0]
[null,null,null,0]
[null,null,null,0]
[null,null,null,0]
[null,null,null,0]
[null,null,null,0]
[null,null,null,0]
[null,null,null,0]
[null,null,null,0]
[null,null,null,0]
[null,null,null,0]
[null,null,null,0]
[null,null,null,0]
[null,null,null,0]
[null,null,null,0]
[null,null,null,0]
[null,null,null,0]
[null,null,null,0]
[null,null,null,0]
[null,null,null,0]
[null,null,null,0]
[null,null,null,0]
[null,null,null,0]
[null,null,null,0]
[null,null,null,0]
[null,null,null,{"$f":"IFERROR((C132/B132),0)","v":0}]
[null,null,null,0]
[null,null,null,0]
[null,null,null,0]
[null,null,null,0]
[null,null,null,0]
[null,null,null,0]
[null,null,null,0]
[null,null,null,0]
[null,null,null,0]
[null,null,null,0]
[null,null,null,0]
[null,null,null,0]
[null,null,null,0]
[null,null,null,0]
[null,null,null,0]
[null,null,null,0]
[null,null,null,0]
[null,null,null,0]
[null,null,null,0]
[null,null,null,0]
[null,null,null,0]
[null,null,null,0]
[null,null,null,0]
[null,null,null,0]
[null,null,null,0]
[null,null,null,0]
[null,null,null,0]
[null,null,null,0]
[null,null,null,0]
[null,null,null,0]
[null,null,null,0]
[null,null,null,0]
[null,null,null,0]
[null,null,null,0]
[null,null,null,0]
[null,null,null,0]
[null,null,null,0]
[null,null,null,0]
[null,null,null,0]
[null,null,null,0]
[null,null,null,0]
[null,null,null,0]
[null,null,null,0]
[null,null,null,0]
[null,null,null,0]
[null,null,null,0]
[null,null,null,0]
[null,null,null,0]
[null,null,null,0]
[null,null,null,0]
[null,null,null,0]
[null,null,null,0]
[null,null,null,0]
[null,null,null,0]
[null,null,null,0]
[null,null,null,0]
[null,null,null,0]
[null,null,null,0]
[null,null,null,0]
[null,null,null,0]
[null,null,null,0]
[null,null,null,0]
[null,null,null,0]
[null,null,null,{"$f":"IFERROR((C196/B196),0)","v":0}]
[null,null,null,0]
[null,null,null,0]
[null,null,null,0]
[null,null,null,0]
[null,null,null,0]
[null,null,null,0]
[null,null,null,0]
[null,null,null,0]
[null,null,null,0]
[null,null,null,0]
[null,null,null,0]
[null,null,null,0]
[null,null,null,0]
[null,null,null,0]
[null,null,null,0]
[null,null,null,0]
[null,null,null,0]
[null,null,null,0]
[null,null,null,0]
[null,null,null,0]
[null,null,null,0]
[null,null,null,0]
[null,null,null,0]
[null,null,null,0]
[null,null,null,0]
[null,null,null,0]
[null,null,null,0]
[null,null,null,0]
[null,null,null,0]
[null,null,null,0]
[null,null,null,0]
[null,null,null,0]
[null,null,null,0]
[null,null,null,0]
[null,null,null,0]
[null,null,null,0]
[null,null,null,0]
[null,null,null,0]
[null,null,null,0]
[null,null,null,0]
[null,null,null,0]
[null,null,null,0]
[null,null,null,0]
[null,null,null,0]
[null,null,null,0]
[null,null,null,0]
[null,null,null,0]
[null,null,null,0]
[null,null,null,0]
[null,null,null,0]
[null,null,null,0]
[null,null,null,0]
[null,null,null,0]
[null,null,null,0]
[null,null,null,0]
[null,null,null,0]
[null,null,null,0]
[null,null,null,0]
[null,null,null,0]
[null,null,null,0]
[null,null,null,0]
[null,null,null,0]
[null,null,null,0]
[null,null,null,{"$f":"IFERROR((C260/B260),0)","v":0}]
[null,null,null,0]
[null,null,null,0]
[null,null,null,0]
[null,null,null,0]
[null,null,null,0]
[null,null,null,0]
[null,null,null,0]
[null,null,null,0]
[null,null,null,0]
[null,null,null,0]
[null,null,null,0]
[null,null,null,0]
[null,null,null,0]
[null,null,null,0]
[null,null,null,0]
[null,null,null,0]
[null,null,null,0]
[null,null,null,0]
[null,null,null,0]
[null,null,null,0]
[null,null,null,0]
[null,null,null,0]
[null,null,null,0]
[null,null,null,0]
[null,null,null,0]
[null,null,null,0]
[null,null,null,0]
[null,null,null,0]
[null,null,null,0]
[null,null,null,0]
[null,null,null,0]
[null,null,null,0]
[null,null,null,0]
[null,null,null,0]
[null,null,null,0]
[null,null,null,0]
[null,null,null,0]
[null,null,null,0]
[null,null,null,0]
[null,null,null,0]
[null,null,null,0]
[null,null,null,0]
[null,null,null,0]
[null,null,null,0]
[null,null,null,0]
[null,null,null,0]
[null,null,null,0]
[null,null,null,0]
[null,null,null,0]
[null,null,null,0]
[null,null,null,0]
[null,null,null,0]
[null,null,null,0]
[null,null,null,0]
[null,null,null,0]
[null,null,null,0]
[null,null,null,0]
[null,null,null,0]
[null,null,null,0]
[null,null,null,0]
[null,null,null,0]
[null,null,null,0]
[null,null,null,0]
[null,null,null,{"$f":"IFERROR((C324/B324),0)","v":0}]
[null,null,null,0]
[null,null,null,0]
[null,null,null,0]
[null,null,null,0]
[null,null,null,0]
[null,null,null,0]
[null,null,null,0]
[null,null,null,0]
[null,null,null,0]
[null,null,null,0]
[null,null,null,0]
[null,null,null,0]
[null,null,null,0]
[null,null,null,0]
[null,null,null,0]
[null,null,null,0]
[null,null,null,0]
[null,null,null,0]
[null,null,null,0]
[null,null,null,0]
[null,null,null,0]
[null,null,null,0]
[null,null,null,0]
[null,null,null,0]
[null,null,null,0]
[null,null,null,0]
[null,null,null,0]
[null,null,null,0]
[null,null,null,0]
[null,null,null,0]
[null,null,null,0]
[null,null,null,0]
[null,null,null,0]
[null,null,null,0]
[null,null,null,0]
[null,null,null,0]
[null,null,null,0]
[null,null,null,0]
[null,null,null,0]
[null,null,null,0]
[null,null,null,0]
[null,null,null,0]
[null,null,null,0]
[null,null,null,0]
[null,null,null,0]
[null,null,null,0]
[null,null,null,0]
[null,null,null,0]
[null,null,null,0]
[null,null,null,0]
[null,null,null,0]
[null,null,null,0]
[null,null,null,0]
[null,null,null,0]
[null,null,null,0]
[null,null,null,0]
[null,null,null,0]
[null,null,null,0]
[null,null,null,0]
[null,null,null,0]
[null,null,null,0]
[null,null,null,0]
[null,null,null,0]
[null,null,null,{"$f":"IFERROR((C388/B388),0)","v":0}]
[null,null,null,0]
[null,null,null,0]
[null,null,null,0]
[null,null,null,0]
[null,null,null,0]
[null,null,null,0]
[null,null,null,0]
[null,null,null,0]
[null,null,null,0]
[null,null,null,0]
[null,null,null,0]
[null,null,null,0]
[null,null,null,0]
[null,null,null,0]
[null,null,null,0]
[null,null,null,0]
[null,null,null,0]
[null,null,null,0]
[null,null,null,0]
[null,null,null,0]
[null,null,null,0]
[null,null,null,0]
[null,null,null,0]
[null,null,null,0]
[null,null,null,0]
[null,null,null,0]
[null,null,null,0]
[null,null,null,0]
[null,null,null,0]
[null,null,null,0]
[null,null,null,0]
[null,null,null,0]
[null,null,null,0]
[null,null,null,0]
[null,null,null,0]
[null,null,null,0]
[null,null,null,0]
[null,null,null,0]
[null,null,null,0]
[null,null,null,0]
[null,null,null,0]
[null,null,null,0]
[null,null,null,0]
[null,null,null,0]
[null,null,null,0]
[null,null,null,0]
[null,null,null,0]
[null,null,null,0]
[null,null,null,0]
[null,null,null,0]
[null,null,null,0]
[null,null,null,0]
[null,null,null,0]
[null,null,null,0]
[null,null,null,0]
[null,null,null,0]
[null,null,null,0]
[null,null,null,0]
[null,null,null,0]
[null,null,null,0]
[null,null,null,0]
[null,null,null,0]
[null,null,null,0]
[null,null,null,{"$f":"IFERROR((C452/B452),0)","v":0}]
[null,null,null,0]
[null,null,null,0]
[null,null,null,0]
[null,null,null,0]
[null,null,null,0]
[null,null,null,0]
[null,null,null,0]
[null,null,null,0]
[null,null,null,0]
[null,null,null,0]
[null,null,null,0]
[null,null,null,0]
[null,null,null,0]
[null,null,null,0]
[null,null,null,0]
[null,null,null,0]
[null,null,null,0]
[null,null,null,0]
[null,null,null,0]
[null,null,null,0]
[null,null,null,0]
[null,null,null,0]
[null,null,null,0]
[null,null,null,0]
[null,null,null,0]
[null,null,null,0]
[null,null,null,0]
[null,null,null,0]
[null,null,null,0]
[null,null,null,0]
[null,null,null,0]
[null,null,null,0]
[null,null,null,0]
[null,null,null,0]
[null,null,null,0]
[null,null,null,0]
[null,null,null,0]
[null,null,null,0]
[null,null,null,0]
[null,null,null,0]
[null,null,null,0]
[null,null,null,0]
[null,null,null,0]
[null,null,null,0]
[null,null,null,0]
[null,null,null,0]
[null,null,null,0]
[null,null,null,0]
[null,null,null,0]
[null,null,null,0]
[null,null,null,0]
[null,null,null,0]
[null,null,null,0]
[null,null,null,0]
[null,null,null,0]
[null,null,null,0]
[null,null,null,0]
[null,null,null,0]
[null,null,null,0]
[null,null,null,0]
[null,null,null,0]
[null,null,null,0]
[null,null,null,0]
[null,null,null,{"$f":"IFERROR((C516/B516),0)","v":0}]
[null,null,null,0]
[null,null,null,0]
[null,null,null,0]
[null,null,null,0]
[null,null,null,0]
[null,null,null,0]
[null,null,null,0]
[null,null,null,0]
[null,null,null,0]
[null,null,null,0]
[null,null,null,0]
[null,null,null,0]
[null,null,null,0]
[null,null,null,0]
[null,null,null,0]
[null,null,null,0]
[null,null,null,0]
[null,null,null,0]
[null,null,null,0]
[null,null,null,0]
[null,null,null,0]
[null,null,null,0]
[null,null,null,0]
[null,null,null,0]
[null,null,null,0]
[null,null,null,0]
[null,null,null,0]
[null,null,null,0]
[null,null,null,0]
[null,null,null,0]
[null,null,null,0]
[null,null,null,0]
[null,null,null,0]
[null,null,null,0]
[null,null,null,0]
[null,null,null,0]
[null,null,null,0]
[null,null,null,0]
[null,null,null,0]
[null,null,null,0]
[null,null,null,0]
[null,null,null,0]
[null,null,null,0]
[null,null,null,0]
[null,null,null,0]
[null,null,null,0]
[null,null,null,0]
[null,null,null,0]
[null,null,null,0]
[null,null,null,0]
[null,null,null,0]
[null,null,null,0]
[null,null,null,0]
[null,null,null,0]
[null,null,null,0]
[null,null,null,0]
[null,null,null,0]
[null,null,null,0]
[null,null,null,0]
[null,null,null,0]
[null,null,null,0]
[null,null,null,0]
[null,null,null,0]
[null,null,null,{"$f":"IFERROR((C580/B580),0)","v":0}]
[null,null,null,0]
[null,null,null,0]
[null,null,null,0]
[null,null,null,0]
[null,null,null,0]
[null,null,null,0]
[null,null,null,0]
[null,null,null,0]
[null,null,null,0]
[null,null,null,0]
[null,null,null,0]
[null,null,null,0]
[null,null,null,0]
[null,null,null,0]
[null,null,null,0]
[null,null,null,0]
[null,null,null,0]
[null,null,null,0]
[null,null,null,0]
[null,null,null,0]
[null,null,null,0]
[null,null,null,0]
[null,null,null,0]
[null,null,null,0]
[null,null,null,0]
[null,null,null,0]
[null,null,null,0]
[null,null,null,0]
[null,null,null,0]
[null,null,null,0]
[null,null,null,0]
[null,null,null,0]
[null,null,null,0]
[null,null,null,0]
[null,null,null,0]
[null,null,null,0]
[null,null,null,0]
[null,null,null,0]
[null,null,null,0]
[null,null,null,0]
[null,null,null,0]
[null,null,null,0]
[null,null,null,0]
[null,null,null,0]
[null,null,null,0]
[null,null,null,0]
[null,null,null,0]
[null,null,null,0]
[null,null,null,0]
[null,null,null,0]
[null,null,null,0]
[null,null,null,0]
[null,null,null,0]
[null,null,null,0]
[null,null,null,0]
[null,null,null,0]
[null,null,null,0]
[null,null,null,0]
[null,null,null,0]
[null,null,null,0]
[null,null,null,0]
[null,null,null,0]
[null,null,null,0]
[null,null,null,{"$f":"IFERROR((C644/B644),0)","v":0}]
[null,null,null,0]
[null,null,null,0]
[null,null,null,0]
[null,null,null,0]
[null,null,null,0]
[null,null,null,0]
[null,null,null,0]
[null,null,null,0]
[null,null,null,0]
[null,null,null,0]
[null,null,null,0]
[null,null,null,0]
[null,null,null,0]
[null,null,null,0]
[null,null,null,0]
[null,null,null,0]
[null,null,null,0]
[null,null,null,0]
[null,null,null,0]
[null,null,null,0]
[null,null,null,0]
[null,null,null,0]
[null,null,null,0]
[null,null,null,0]
[null,null,null,0]
[null,null,null,0]
[null,null,null,0]
[null,null,null,0]
[null,null,null,0]
[null,null,null,0]
[null,null,null,0]
[null,null,null,0]
[null,null,null,0]
[null,null,null,0]
[null,null,null,0]
[null,null,null,0]
[null,null,null,0]
[null,null,null,0]
[null,null,null,0]
[null,null,null,0]
[null,null,null,0]
[null,null,null,0]
[null,null,null,0]
[null,null,null,0]
[null,null,null,0]
[null,null,null,0]
[null,null,null,0]
[null,null,null,0]
[null,null,null,0]
[null,null,null,0]
[null,null,null,0]
[null,null,null,0]
[null,null,null,0]
[null,null,null,0]
[null,null,null,0]
[null,null,null,0]
[null,null,null,0]
[null,null,null,0]
[null,null,null,0]
[null,null,null,0]
[null,null,null,0]
[null,null,null,0]
[null,null,null,0]
[null,null,null,{"$f":"IFERROR((C708/B708),0)","v":0}]
[null,null,null,0]
[null,null,null,0]
[null,null,null,0]
[null,null,null,0]
[null,null,null,0]
[null,null,null,0]
[null,null,null,0]
[null,null,null,0]
[null,null,null,0]
[null,null,null,0]
[null,null,null,0]
[null,null,null,0]
[null,null,null,0]
[null,null,null,0]
[null,null,null,0]
[null,null,null,0]
[null,null,null,0]
[null,null,null,0]
[null,null,null,0]
[null,null,null,0]
[null,null,null,0]
[null,null,null,0]
[null,null,null,0]
[null,null,null,0]
[null,null,null,0]
[null,null,null,0]
[null,null,null,0]
[null,null,null,0]
[null,null,null,0]
[null,null,null,0]
[null,null,null,0]
[null,null,null,0]
[null,null,null,0]
[null,null,null,0]
[null,null,null,0]
[null,null,null,0]
[null,null,null,0]
[null,null,null,0]
[null,null,null,0]
[null,null,null,0]
[null,null,null,0]
[null,null,null,0]
[null,null,null,0]
[null,null,null,0]
[null,null,null,0]
[null,null,null,0]
[null,null,null,0]
[null,null,null,0]
[null,null,null,0]
[null,null,null,0]
[null,null,null,0]
[null,null,null,0]
[null,null,null,0]
[null,null,null,0]
[null,null,null,0]
[null,null,null,0]
[null,null,null,0]
[null,null,null,0]
[null,null,null,0]
[null,null,null,0]
[null,null,null,0]
[null,null,null,0]
[null,null,null,0]
[null,null,null,{"$f":"IFERROR((C772/B772),0)","v":0}]
[null,null,null,0]
[null,null,null,0]
[null,null,null,0]
[null,null,null,0]
[null,null,null,0]
[null,null,null,0]
[null,null,null,0]
[null,null,null,0]
[null,null,null,0]
[null,null,null,0]
[null,null,null,0]
[null,null,null,0]
[null,null,null,0]
[null,null,null,0]
[null,null,null,0]
[null,null,null,0]
[null,null,null,0]
[null,null,null,0]
[null,null,null,0]
[null,null,null,0]
[null,null,null,0]
[null,null,null,0]
[null,null,null,0]
[null,null,null,0]
[null,null,null,0]
[null,null,null,0]
[null,null,null,0]
[null,null,null,0]
[null,null,null,0]
[null,null,null,0]
[null,null,null,0]
[null,null,null,0]
[null,null,null,0]
[null,null,null,0]
[null,null,null,0]
[null,null,null,0]
[null,null,null,0]
[null,null,null,0]
[null,null,null,0]
[null,null,null,0]
[null,null,null,0]
[null,null,null,0]
[null,null,null,0]
[null,null,null,0]
[null,null,null,0]
[null,null,null,0]
[null,null,null,0]
[null,null,null,0]
[null,null,null,0]
[null,null,null,0]
[null,null,null,0]
[null,null,null,0]
[null,null,null,0]
[null,null,null,0]
[null,null,null,0]
[null,null,null,0]
[null,null,null,0]
[null,null,null,0]
[null,null,null,0]
[null,null,null,0]
[null,null,null,0]
[null,null,null,0]
[null,null,null,0]
[null,null,null,{"$f":"IFERROR((C836/B836),0)","v":0}]
[null,null,null,0]
[null,null,null,0]
[null,null,null,0]
[null,null,null,0]
[null,null,null,0]
[null,null,null,0]
[null,null,null,0]
[null,null,null,0]
[null,null,null,0]
[null,null,null,0]
[null,null,null,0]
[null,null,null,0]
[null,null,null,0]
[null,null,null,0]
[null,null,null,0]
[null,null,null,0]
[null,null,null,0]
[null,null,null,0]
[null,null,null,0]
[null,null,null,0]
[null,null,null,0]
[null,null,null,0]
[null,null,null,0]
[null,null,null,0]
[null,null,null,0]
[null,null,null,0]
[null,null,null,0]
[null,null,null,0]
[null,null,null,0]
[null,null,null,0]
[null,null,null,0]
[null,null,null,0]
[null,null,null,0]
[null,null,null,0]
[null,null,null,0]
[null,null,null,0]
[null,null,null,0]
[null,null,null,0]
[null,null,null,0]
[null,null,null,0]
[null,null,null,0]
[null,null,null,0]
[null,null,null,0]
[null,null,null,0]
[null,null,null,0]
[null,null,null,0]
[null,null,null,0]
[null,null,null,0]
[null,null,null,0]
[null,null,null,0]
[null,null,null,0]
[null,null,null,0]
[null,null,null,0]
[null,null,null,0]
[null,null,null,0]
[null,null,null,0]
[null,null,null,0]
[null,null,null,0]
[null,null,null,0]
[null,null,null,0]
[null,null,null,0]
[null,null,null,0]
[null,null,null,0]
[null,null,null,{"$f":"IFERROR((C900/B900),0)","v":0}]
[null,null,null,0]
[null,null,null,0]
[null,null,null,0]
[null,null,null,0]
[null,null,null,0]
[null,null,null,0]
[null,null,null,0]
[null,null,null,0]
[null,null,null,0]
[null,null,null,0]
[null,null,null,0]
[null,null,null,0]
[null,null,null,0]
[null,null,null,0]
[null,null,null,0]
[null,null,null,0]
[null,null,null,0]
[null,null,null,0]
[null,null,null,0]
[null,null,null,0]
[null,null,null,0]
[null,null,null,0]
[null,null,null,0]
[null,null,null,0]
[null,null,null,0]
[null,null,null,0]
[null,null,null,0]
[null,null,null,0]
[null,null,null,0]
[null,null,null,0]
[null,null,null,0]
[null,null,null,0]
[null,null,null,0]
[null,null,null,0]
[null,null,null,0]
[null,null,null,0]
[null,null,null,0]
[null,null,null,0]
[null,null,null,0]
[null,null,null,0]
[null,null,null,0]
[null,null,null,0]
[null,null,null,0]
[null,null,null,0]
[null,null,null,0]
[null,null,null,0]
[null,null,null,0]
[null,null,null,0]
[null,null,null,0]
[null,null,null,0]
[null,null,null,0]
[null,null,null,0]
[null,null,null,0]
[null,null,null,0]
[null,null,null,0]
[null,null,null,0]
[null,null,null,0]
[null,null,null,0]
[null,null,null,0]
[null,null,null,0]
[null,null,null,0]
[null,null,null,0]
[null,null,null,0]
[null,null,null,{"$f":"IFERROR((C964/B964),0)","v":0}]
[null,null,null,0]
[null,null,null,0]
[null,null,null,0]
[null,null,null,0]
[null,null,null,0]
[null,null,null,0]
[null,null,null,0]
[null,null,null,0]
[null,null,null,0]
[null,null,null,0]
[null,null,null,0]
[null,null,null,0]
[null,null,null,0]
[null,null,null,0]
[null,null,null,0]
[null,null,null,0]
[null,null,null,0]
[null,null,null,0]
[null,null,null,0]
[null,null,null,0]
[null,null,null,0]
[null,null,null,0]
[null,null,null,0]
[null,null,null,0]
[null,null,null,0]
[null,null,null,0]
[null,null,null,0]
[null,null,null,0]
[null,null,null,0]
[null,null,null,0]
[null,null,null,0]
[null,null,null,0]
[null,null,null,0]
[null,null,null,0]
[null,null,null,0]
[null,null,null,0]
[null,null,null,{"$f":"IFERROR((C1001/B1001),0)","v":0}]
[null,null,null,0]
[null,null,null,0]
[null,null,null,0]
[null,null,null,0]
[null,null,null,0]
[null,null,null,0]
[null,null,null,0]
[null,null,null,0]
[null,null,null,0]
[null,null,null,0]
[null,null,null,0]
[null,null,null,0]
[null,null,null,0]
[null,null,null,0]
[null,null,null,0]
[null,null,null,0]
[null,null,null,0]
[null,null,null,0]
[null,null,null,0]
[null,null,null,0]
[null,null,null,0]
[null,null,null,0]
[null,null,null,0]
[null,null,null,0]
[null,null,null,0]
[null,null,null,0]
[null,null,null,0]
[null,null,null,0]
[null,null,null,0]
[null,null,null,0]
[null,null,null,0]
[null,null,null,0]
[null,null,null,0]
[null,null,null,0]
[null,null,null,0]
[null,null,null,0]
[null,null,null,0]
[null,null,null,0]
[null,null,null,0]
[null,null,null,0]
[null,null,null,0]
[null,null,null,0]
[null,null,null,0]
[null,null,null,0]
[null,null,null,0]
[null,null,null,0]
[null,null,null,0]
[null,null,null,0]
[null,null,null,0]
[null,null,null,0]
[null,null,null,0]
[null,null,null,0]
[null,null,null,0]
[null,null,null,0]
[null,null,null,0]
[null,null,null,0]
[null,null,null,0]
[null,null,null,0]
[null,null,null,0]
[null,null,null,0]
[null,null,null,0]
[null,null,null,0]
[null,null,null,0]
[null,null,null,{"$f":"IFERROR((C1065/B1065),0)","v":0}]
[null,null,null,0]
[null,null,null,0]
[null,null,null,0]
[null,null,null,0]
[null,null,null,0]
[null,null,null,0]
[null,null,null,0]
[null,null,null,0]
[null,null,null,0]
[null,null,null,0]
[null,null,null,0]
[null,null,null,0]
[null,null,null,0]
[null,null,null,0]
[null,null,null,0]
[null,null,null,0]
[null,null,null,0]
[null,null,null,0]
[null,null,null,0]
[null,null,null,0]
[null,null,null,0]
[null,null,null,0]
[null,null,null,0]
[null,null,null,0]
[null,null,null,0]
[null,null,null,0]
[null,null,null,0]
[null,null,null,0]
[null,null,null,0]
[null,null,null,0]
[null,null,null,0]
[null,null,null,0]
[null,null,null,0]
[null,null,null,0]
[null,null,null,0]
[null,null,null,0]
[null,null,null,0]
[null,null,null,0]
[null,null,null,0]
[null,null,null,0]
[null,null,null,0]
[null,null,null,0]
[null,null,null,0]
[null,null,null,0]
[null,null,null,0]
[null,null,null,0]
[null,null,null,0]
[null,null,null,0]
[null,null,null,0]
[null,null,null,0]
[null,null,null,0]
[null,null,null,0]
[null,null,null,0]
[null,null,null,0]
[null,null,null,0]
[null,null,null,0]
[null,null,null,0]
[null,null,null,0]
[null,null,null,0]
[null,null,null,0]
[null,null,null,0]
[null,null,null,0]
[null,null,null,0]
[null,null,null,{"$f":"IFERROR((C1129/B1129),0)","v":0}]
[null,null,null,0]
[null,null,null,0]
[null,null,null,0]
[null,null,null,0]
[null,null,null,0]
[null,null,null,0]
[null,null,null,0]
[null,null,null,0]
[null,null,null,0]
[null,null,null,0]
[null,null,null,0]
[null,null,null,0]
[null,null,null,0]
[null,null,null,0]
[null,null,null,0]
[null,null,null,0]
[null,null,null,0]
[null,null,null,0]
[null,null,null,0]
[null,null,null,0]
[null,null,null,0]
[null,null,null,0]
[null,null,null,0]
[null,null,null,0]
[null,null,null,0]
[null,null,null,0]
[null,null,null,0]
[null,null,null,0]
[null,null,null,0]
[null,null,null,0]
[null,null,null,0]
[null,null,null,0]
[null,null,null,0]
[null,null,null,0]
[null,null,null,0]
[null,null,null,0]
[null,null,null,0]
[null,null,null,0]
[null,null,null,0]
[null,null,null,0]
[null,null,null,0]
[null,null,null,0]
[null,null,null,0]
[null,null,null,0]
[null,null,null,0]
[null,null,null,0]
[null,null,null,0]
[null,null,null,0]
[null,null,null,0]
[null,null,null,0]
[null,null,null,0]
[null,null,null,0]
[null,null,null,0]
[null,null,null,0]
[null,null,null,0]
[null,null,null,0]
[null,null,null,0]
[null,null,null,0]
[null,null,null,0]
[null,null,null,0]
[null,null,null,0]
[null,null,null,0]
[null,null,null,0]
[null,null,null,{"$f":"IFERROR((C1193/B1193),0)","v":0}]
[null,null,null,0]
[null,null,null,0]
[null,null,null,0]
[null,null,null,0]
[null,null,null,0]
[null,null,null,0]
[null,null,null,0]
[null,null,null,0]
[null,null,null,0]
[null,null,null,0]
[null,null,null,0]
[null,null,null,0]
[null,null,null,0]
[null,null,null,0]
[null,null,null,0]
[null,null,null,0]
[null,null,null,0]
[null,null,null,0]
[null,null,null,0]
[null,null,null,0]
[null,null,null,0]
[null,null,null,0]
[null,null,null,0]
[null,null,null,0]
[null,null,null,0]
[null,null,null,0]
[null,null,null,0]
[null,null,null,0]
[null,null,null,0]
[null,null,null,0]
[null,null,null,0]
[null,null,null,0]
[null,null,null,0]
[null,null,null,0]
[null,null,null,0]
[null,null,null,0]
[null,null,null,0]
[null,null,null,0]
[null,null,null,0]
[null,null,null,0]
[null,null,null,0]
[null,null,null,0]
[null,null,null,0]
[null,null,null,0]
[null,null,null,0]
[null,null,null,0]
[null,null,null,0]
[null,null,null,0]
[null,null,null,0]
[null,null,null,0]
[null,null,null,0]
[null,null,null,0]
[null,null,null,0]
[null,null,null,0]
[null,null,null,0]
[null,null,null,0]
[null,null,null,0]
[null,null,null,0]
[null,null,null,0]
[null,null,null,0]
[null,null,null,0]
[null,null,null,0]
[null,null,null,0]
[null,null,null,{"$f":"IFERROR((C1257/B1257),0)","v":0}]
[null,null,null,0]
[null,null,null,0]
[null,null,null,0]
[null,null,null,0]
[null,null,null,0]
[null,null,null,0]
[null,null,null,0]
[null,null,null,0]
[null,null,null,0]
[null,null,null,0]
[null,null,null,0]
[null,null,null,0]
[null,null,null,0]
[null,null,null,0]
[null,null,null,0]
[null,null,null,0]
[null,null,null,0]
[null,null,null,0]
[null,null,null,0]
[null,null,null,0]
[null,null,null,0]
[null,null,null,0]
[null,null,null,0]
[null,null,null,0]
[null,null,null,0]
[null,null,null,0]
[null,null,null,0]
[null,null,null,0]
[null,null,null,0]
[null,null,null,0]
[null,null,null,0]
[null,null,null,0]
[null,null,null,0]
[null,null,null,0]
[null,null,null,0]
[null,null,null,0]
[null,null,null,0]
[null,null,null,0]
[null,null,null,0]
[null,null,null,0]
[null,null,null,0]
[null,null,null,0]
[null,null,null,0]
[null,null,null,0]
[null,null,null,0]
[null,null,null,0]
[null,null,null,0]
[null,null,null,0]
[null,null,null,0]
[null,null,null,0]
[null,null,null,0]
[null,null,null,0]
[null,null,null,0]
[null,null,null,0]
[null,null,null,0]
[null,null,null,0]
[null,null,null,0]
[null,null,null,0]
[null,null,null,0]
[null,null,null,0]
[null,null,null,0]
[null,null,null,0]
[null,null,null,0]
[null,null,null,{"$f":"IFERROR((C1321/B1321),0)","v":0}]
[null,null,null,0]
[null,null,null,0]
[null,null,null,0]
[null,null,null,0]
[null,null,null,0]
[null,null,null,0]
[null,null,null,0]
[null,null,null,0]
[null,null,null,0]
[null,null,null,0]
[null,null,null,0]
[null,null,null,0]
[null,null,null,0]
[null,null,null,0]
[null,null,null,0]
[null,null,null,0]
[null,null,null,0]
[null,null,null,0]
[null,null,null,0]
[null,null,null,0]
[null,null,null,0]
[null,null,null,0]
[null,null,null,0]
[null,null,null,0]
[null,null,null,0]
[null,null,null,0]
[null,null,null,0]
[null,null,null,0]
[null,null,null,0]
[null,null,null,0]
[null,null,null,0]
[null,null,null,0]
[null,null,null,0]
[null,null,null,0]
[null,null,null,0]
[null,null,null,0]
[null,null,null,0]
[null,null,null,0]
[null,null,null,0]
[null,null,null,0]
[null,null,null,0]
[null,null,null,0]
[null,null,null,0]
[null,null,null,0]
[null,null,null,0]
[null,null,null,0]
[null,null,null,0]
[null,null,null,0]
[null,null,null,0]
[null,null,null,0]
[null,null,null,0]
[null,null,null,0]
[null,null,null,0]
[null,null,null,0]
[null,null,null,0]
[null,null,null,0]
[null,null,null,0]
[null,null,null,0]
[null,null,null,0]
[null,null,null,0]
[null,null,null,0]
[null,null,null,0]
[null,null,null,0]
[null,null,null,{"$f":"IFERROR((C1385/B1385),0)","v":0}]
[null,null,null,0]
[null,null,null,0]
[null,null,null,0]
[null,null,null,0]
[null,null,null,0]
[null,null,null,0]
[null,null,null,0]
[null,null,null,0]
[null,null,null,0]
[null,null,null,0]
[null,null,null,0]
[null,null,null,0]
[null,null,null,0]
[null,null,null,0]
[null,null,null,0]
[null,null,null,0]
[null,null,null,0]
[null,null,null,0]
[null,null,null,0]
[null,null,null,0]
[null,null,null,0]
[null,null,null,0]
[null,null,null,0]
[null,null,null,0]
[null,null,null,0]
[null,null,null,0]
[null,null,null,0]
[null,null,null,0]
[null,null,null,0]
[null,null,null,0]
[null,null,null,0]
[null,null,null,0]
[null,null,null,0]
[null,null,null,0]
[null,null,null,0]
[null,null,null,0]
[null,null,null,0]
[null,null,null,0]
[null,null,null,0]
[null,null,null,0]
[null,null,null,0]
[null,null,null,0]
[null,null,null,0]
[null,null,null,0]
[null,null,null,0]
[null,null,null,0]
[null,null,null,0]
[null,null,null,0]
[null,null,null,0]
[null,null,null,0]
[null,null,null,0]
[null,null,null,0]
[null,null,null,0]
[null,null,null,0]
[null,null,null,0]
[null,null,null,0]
[null,null,null,0]
[null,null,null,0]
[null,null,null,0]
[null,null,null,0]
[null,null,null,0]
[null,null,null,0]
[null,null,null,0]
[null,null,null,{"$f":"IFERROR((C1449/B1449),0)","v":0}]
[null,null,null,0]
[null,null,null,0]
[null,null,null,0]
[null,null,null,0]
[null,null,null,0]
[null,null,null,0]
[null,null,null,0]
[null,null,null,0]
[null,null,null,0]
[null,null,null,0]
[null,null,null,0]
[null,null,null,0]
[null,null,null,0]
[null,null,null,0]
[null,null,null,0]
[null,null,null,0]
[null,null,null,0]
[null,null,null,0]
[null,null,null,0]
[null,null,null,0]
[null,null,null,0]
[null,null,null,0]
[null,null,null,0]
[null,null,null,0]
[null,null,null,0]
[null,null,null,0]
[null,null,null,0]
[null,null,null,0]
[null,null,null,0]
[null,null,null,0]
[null,null,null,0]
[null,null,null,0]
[null,null,null,0]
[null,null,null,0]
[null,null,null,0]
[null,null,null,0]
[null,null,null,0]
[null,null,null,0]
[null,null,null,0]
[null,null,null,0]
[null,null,null,0]
[null,null,null,0]
[null,null,null,0]
[null,null,null,0]
[null,null,null,0]
[null,null,null,0]
[null,null,null,0]
[null,null,null,0]
[null,null,null,0]
[null,null,null,0]
[null,null,null,0]
[null,null,null,0]
[null,null,null,0]
[null,null,null,0]
[null,null,null,0]
[null,null,null,0]
[null,null,null,0]
[null,null,null,0]
[null,null,null,0]
[null,null,null,0]
[null,null,null,0]
[null,null,null,0]
[null,null,null,0]
[null,null,null,{"$f":"IFERROR((C1513/B1513),0)","v":0}]
[null,null,null,0]
[null,null,null,0]
[null,null,null,0]
[null,null,null,0]
[null,null,null,0]
[null,null,null,0]
[null,null,null,0]
[null,null,null,0]
[null,null,null,0]
[null,null,null,0]
[null,null,null,0]
[null,null,null,0]
[null,null,null,0]
[null,null,null,0]
[null,null,null,0]
[null,null,null,0]
[null,null,null,0]
[null,null,null,0]
[null,null,null,0]
[null,null,null,0]
[null,null,null,0]
[null,null,null,0]
[null,null,null,0]
[null,null,null,0]
[null,null,null,0]
[null,null,null,0]
[null,null,null,0]
[null,null,null,0]
[null,null,null,0]
[null,null,null,0]
[null,null,null,0]
[null,null,null,0]
[null,null,null,0]
[null,null,null,0]
[null,null,null,0]
[null,null,null,0]
[null,null,null,0]
[null,null,null,0]
[null,null,null,0]
[null,null,null,0]
[null,null,null,0]
[null,null,null,0]
[null,null,null,0]
[null,null,null,0]
[null,null,null,0]
[null,null,null,0]
[null,null,null,0]
[null,null,null,0]
[null,null,null,0]
[null,null,null,0]
[null,null,null,0]
[null,null,null,0]
[null,null,null,0]
[null,null,null,0]
[null,null,null,0]
[null,null,null,0]
[null,null,null,0]
[null,null,null,0]
[null,null,null,0]
[null,null,null,0]
[null,null,null,0]
[null,null,null,0]
[null,null,null,0]
[null,null,null,{"$f":"IFERROR((C1577/B1577),0)","v":0}]
[null,null,null,0]
[null,null,null,0]
[null,null,null,0]
[null,null,null,0]
[null,null,null,0]
[null,null,null,0]
[null,null,null,0]
[null,null,null,0]
[null,null,null,0]
[null,null,null,0]
[null,null,null,0]
[null,null,null,0]
[null,null,null,0]
[null,null,null,0]
[null,null,null,0]
[null,null,null,0]
[null,null,null,0]
[null,null,null,0]
[null,null,null,0]
[null,null,null,0]
[null,null,null,0]
[null,null,null,0]
[null,null,null,0]
[null,null,null,0]
[null,null,null,0]
[null,null,null,0]
[null,null,null,0]
[null,null,null,0]
[null,null,null,0]
[null,null,null,0]
[null,null,null,0]
[null,null,null,0]
[null,null,null,0]
[null,null,null,0]
[null,null,null,0]
[null,null,null,0]
[null,null,null,0]
[null,null,null,0]
[null,null,null,0]
[null,null,null,0]
[null,null,null,0]
[null,null,null,0]
[null,null,null,0]
[null,null,null,0]
[null,null,null,0]
[null,null,null,0]
[null,null,null,0]
[null,null,null,0]
[null,null,null,0]
[null,null,null,0]
[null,null,null,0]
[null,null,null,0]
[null,null,null,0]
[null,null,null,0]
[null,null,null,0]
[null,null,null,0]
[null,null,null,0]
[null,null,null,0]
[null,null,null,0]
[null,null,null,0]
[null,null,null,0]
[null,null,null,0]
[null,null,null,0]
[null,null,null,{"$f":"IFERROR((C1641/B1641),0)","v":0}]
[null,null,null,0]
[null,null,null,0]
[null,null,null,0]
[null,null,null,0]
[null,null,null,0]
[null,null,null,0]
[null,null,null,0]
[null,null,null,0]
[null,null,null,0]
[null,null,null,0]
[null,null,null,0]
[null,null,null,0]
[null,null,null,0]
[null,null,null,0]
[null,null,null,0]
[null,null,null,0]
[null,null,null,0]
[null,null,null,0]
[null,null,null,0]
[null,null,null,0]
[null,null,null,0]
[null,null,null,0]
[null,null,null,0]
[null,null,null,0]
[null,null,null,0]
[null,null,null,0]
[null,null,null,0]
[null,null,null,0]
[null,null,null,0]
[null,null,null,0]
[null,null,null,0]
[null,null,null,0]
[null,null,null,0]
[null,null,null,0]
[null,null,null,0]
[null,null,null,0]
[null,null,null,0]
[null,null,null,0]
[null,null,null,0]
[null,null,null,0]
[null,null,null,0]
[null,null,null,0]
[null,null,null,0]
[null,null,null,0]
[null,null,null,0]
[null,null,null,0]
[null,null,null,0]
[null,null,null,0]
[null,null,null,0]
[null,null,null,0]
[null,null,null,0]
[null,null,null,0]
[null,null,null,0]
[null,null,null,0]
[null,null,null,0]
[null,null,null,0]
[null,null,null,0]
[null,null,null,0]
[null,null,null,0]
[null,null,null,0]
[null,null,null,0]
[null,null,null,0]
[null,null,null,0]
[null,null,null,{"$f":"IFERROR((C1705/B1705),0)","v":0}]
[null,null,null,0]
[null,null,null,0]
[null,null,null,0]
[null,null,null,0]
[null,null,null,0]
[null,null,null,0]
[null,null,null,0]
[null,null,null,0]
[null,null,null,0]
[null,null,null,0]
[null,null,null,0]
[null,null,null,0]
[null,null,null,0]
[null,null,null,0]
[null,null,null,0]
[null,null,null,0]
[null,null,null,0]
[null,null,null,0]
[null,null,null,0]
[null,null,null,0]
[null,null,null,0]
[null,null,null,0]
[null,null,null,0]
[null,null,null,0]
[null,null,null,0]
[null,null,null,0]
[null,null,null,0]
[null,null,null,0]
[null,null,null,0]
[null,null,null,0]
[null,null,null,0]
[null,null,null,0]
[null,null,null,0]
[null,null,null,0]
[null,null,null,0]
[null,null,null,0]
[null,null,null,0]
[null,null,null,0]
[null,null,null,0]
[null,null,null,0]
[null,null,null,0]
[null,null,null,0]
[null,null,null,0]
[null,null,null,0]
[null,null,null,0]
[null,null,null,0]
[null,null,null,0]
[null,null,null,0]
[null,null,null,0]
[null,null,null,0]
[null,null,null,0]
[null,null,null,0]
[null,null,null,0]
[null,null,null,0]
[null,null,null,0]
[null,null,null,0]
[null,null,null,0]
[null,null,null,0]
[null,null,null,0]
[null,null,null,0]
[null,null,null,0]
[null,null,null,0]
[null,null,null,0]
[null,null,null,{"$f":"IFERROR((C1769/B1769),0)","v":0}]
[null,null,null,0]
[null,null,null,0]
[null,null,null,0]
[null,null,null,0]
[null,null,null,0]
[null,null,null,0]
[null,null,null,0]
[null,null,null,0]
[null,null,null,0]
[null,null,null,0]
[null,null,null,0]
[null,null,null,0]
[null,null,null,0]
[null,null,null,0]
[null,null,null,0]
[null,null,null,0]
[null,null,null,0]
[null,null,null,0]
[null,null,null,0]
[null,null,null,0]
[null,null,null,0]
[null,null,null,0]
[null,null,null,0]
[null,null,null,0]
[null,null,null,0]
[null,null,null,0]
[null,null,null,0]
[null,null,null,0]
[null,null,null,0]
[null,null,null,0]
[null,null,null,0]
[null,null,null,0]
[null,null,null,0]
[null,null,null,0]
[null,null,null,0]
[null,null,null,0]
[null,null,null,0]
[null,null,null,0]
[null,null,null,0]
[null,null,null,0]
[null,null,null,0]
[null,null,null,0]
[null,null,null,0]
[null,null,null,0]
[null,null,null,0]
[null,null,null,0]
[null,null,null,0]
[null,null,null,0]
[null,null,null,0]
[null,null,null,0]
[null,null,null,0]
[null,null,null,0]
[null,null,null,0]
[null,null,null,0]
[null,null,null,0]
[null,null,null,0]
[null,null,null,0]
[null,null,null,0]
[null,null,null,0]
[null,null,null,0]
[null,null,null,0]
[null,null,null,0]
[null,null,null,0]
[null,null,null,{"$f":"IFERROR((C1833/B1833),0)","v":0}]
[null,null,null,0]
[null,null,null,0]
[null,null,null,0]
[null,null,null,0]
[null,null,null,0]
[null,null,null,0]
[null,null,null,0]
[null,null,null,0]
[null,null,null,0]
[null,null,null,0]
[null,null,null,0]
[null,null,null,0]
[null,null,null,0]
[null,null,null,0]
[null,null,null,0]
[null,null,null,0]
[null,null,null,0]
[null,null,null,0]
[null,null,null,0]
[null,null,null,0]
[null,null,null,0]
[null,null,null,0]
[null,null,null,0]
[null,null,null,0]
[null,null,null,0]
[null,null,null,0]
[null,null,null,0]
[null,null,null,0]
[null,null,null,0]
[null,null,null,0]
[null,null,null,0]
[null,null,null,0]
[null,null,null,0]
[null,null,null,0]
[null,null,null,0]
[null,null,null,0]
[null,null,null,0]
[null,null,null,0]
[null,null,null,0]
[null,null,null,0]
[null,null,null,0]
[null,null,null,0]
[null,null,null,0]
[null,null,null,0]
[null,null,null,0]
[null,null,null,0]
[null,null,null,0]
[null,null,null,0]
[null,null,null,0]
[null,null,null,0]
[null,null,null,0]
[null,null,null,0]
[null,null,null,0]
[null,null,null,0]
[null,null,null,0]
[null,null,null,0]
[null,null,null,0]
[null,null,null,0]
[null,null,null,0]
[null,null,null,0]
[null,null,null,0]
[null,null,null,0]
[null,null,null,0]
[null,null,null,{"$f":"IFERROR((C1897/B1897),0)","v":0}]
[null,null,null,0]
[null,null,null,0]
[null,null,null,0]
[null,null,null,0]
[null,null,null,0]
[null,null,null,0]
[null,null,null,0]
[null,null,null,0]
[null,null,null,0]
[null,null,null,0]
[null,null,null,0]
[null,null,null,0]
[null,null,null,0]
[null,null,null,0]
[null,null,null,0]
[null,null,null,0]
[null,null,null,0]
[null,null,null,0]
[null,null,null,0]
[null,null,null,0]
[null,null,null,0]
[null,null,null,0]
[null,null,null,0]
[null,null,null,0]
[null,null,null,0]
[null,null,null,0]
[null,null,null,0]
[null,null,null,0]
[null,null,null,0]
[null,null,null,0]
[null,null,null,0]
[null,null,null,0]
[null,null,null,0]
[null,null,null,0]
[null,null,null,0]
[null,null,null,0]
[null,null,null,0]
[null,null,null,0]
[null,null,null,0]
[null,null,null,0]
[null,null,null,0]
[null,null,null,0]
[null,null,null,0]
[null,null,null,0]
[null,null,null,0]
[null,null,null,0]
[null,null,null,0]
[null,null,null,0]
[null,null,null,0]
[null,null,null,0]
[null,null,null,0]
[null,null,null,0]
[null,null,null,0]
[null,null,null,0]
[null,null,null,0]
[null,null,null,0]
[null,null,null,0]
[null,null,null,0]
[null,null,null,0]
[null,null,null,0]
[null,null,null,0]
[null,null,null,0]
[null,null,null,0]
[null,null,null,{"$f":"IFERROR((C1961/B1961),0)","v":0}]
[null,null,null,0]
[null,null,null,0]
[null,null,null,0]
[null,null,null,0]
[null,null,null,0]
[null,null,null,0]
[null,null,null,0]
[null,null,null,0]
[null,null,null,0]
[null,null,null,0]
[null,null,null,0]
[null,null,null,0]
[null,null,null,0]
[null,null,null,0]
[null,null,null,0]
[null,null,null,0]
[null,null,null,0]
[null,null,null,0]
[null,null,null,0]
[null,null,null,0]
[null,null,null,0]
[null,null,null,0]
[null,null,null,0]
[null,null,null,0]
[null,null,null,0]
[null,null,null,0]
[null,null,null,0]
[null,null,null,0]
[null,null,null,0]
[null,null,null,0]
[null,null,null,0]
[null,null,null,0]
[null,null,null,0]
[null,null,null,0]
[null,null,null,0]
[null,null,null,0]
[null,null,null,0]
[null,null,null,0]
[null,null,null,0]

{"sheet":"Lists","index":5,"n_rows":72,"n_cols":8,"rows_kept":72,"cut":false,"hidden":false,"merged":[]}
[]
[]
[]
["Site Names (25)","Program Name","Team Name (Please edit list if required)","Discipline Name","Type of Incident","Type","Level of Risk","Practice Category"]
[null,"Acute","Active Ageing","Audiology","Falls Related","AHA","ISR 1","Assessment"]
[null,"Acute Inpatient","Adult","Exercise Physiology","Food / Nutrition / Diet","AHP","ISR 2","Treatment"]
[null,"Acute Outpatient","Aged Care Assessment Service","Medical Radiation Practitioners","Pressure Ulcer Related",null,null,"Complex Cases"]
[null,"Aged Care","Allied Health","Music therapy","Other (name)",null,null,"Clinical Reporting"]
[null,"Aged Care And Assessment Services","Amputee","Neuropsychology",null,null,null,"Discharge Planning"]
[null,"Children’s Allied Health Service","Antenatal","Nutrition & Dietetics",null,null,null,"Supervision"]
[null,"Community","Burns","Occupational Therapy",null,null,null,"Research and Quality"]
[null,"Community Health","Cardiothoracics","Orthoptics",null,null,null,"Equipment and Environment"]
[null,"Community Health & Hacc","CDAMS","Pastoral Care (incl. chaplaincy)",null,null,null,"Administration"]
[null,"Community Palliative Care","Child ","Pharmacy",null,null,null,"Other Name"]
[null,"Emergency","Child, Youth and Family","Physiotherapy"]
[null,"HACC","Children’s Allied Health Service","Podiatry"]
[null,"Health Independence Programs","Chronic Disease ","Prosthetics/orthotics"]
[null,"Home And Community Services","Chronic Wound Service/Clinic","Psychology"]
[null,"Hydrotherapy","Community Based Rehab","Recreation Therapist"]
[null,"Inpatient Rehabilitation","Community Case Management","Social Work"]
[null,"Lymphoedema","Community Rehabilitation Centre - centre based","Speech Pathology"]
[null,"Mental Health","Community Rehabilitation Centre - home based","Discipline 1"]
[null,"Mental Health Inpatient","Community Service Consultants","Discipline 2"]
[null,"Mental Health Service","Community Therapy Service","Discipline 3"]
[null,"Outpatient Rehabilitaton","Continence"]
[null,"Outreach","Diabetes Foot Service "]
[null,"Paediatrics Inpatients","Diabetes Management"]
[null,"Paediatrics Outpatients","Domiciliary Therapy"]
[null,"Primary Care Services","Early Childhood"]
[null,"Residential Care Units","Endocrinology"]
[null,"Subacute Inpatient","Falls and Balance"]
[null,"Subacute Outpatients","Family"]
[null,"Transition Care Programs","General Medicine"]
[null,"Program Name 1","General Rehabilitation"]
[null,"Program Name 2","HACC Allied Health"]
[null,"Program Name 3","HARP"]
[null,null,"HARP Chronic Disease"]
[null,null,"HARP Complex Needs "]
[null,null,"Healthy Living"]
[null,null,"ICU"]
[null,null,"Immediate Response Service"]
[null,null,"Infectious Diseases"]
[null,null,"Living Well "]
[null,null,"Mental Health"]
[null,null,"Musculoskeletal"]
[null,null,"Neonatology"]
[null,null,"Neurology"]
[null,null,"Neuroscience"]
[null,null,"Oncology"]
[null,null,"Orthopaedics"]
[null,null,"Pain Management"]
[null,null,"Palliative Care"]
[null,null,"Perinatal"]
[null,null,"Planned Activity Group"]
[null,null,"Post Acute Care"]
[null,null,"Postnatal"]
[null,null,"Primary Care"]
[null,null,"Pulmonary Rehabilitation"]
[null,null,"Renal"]
[null,null,"Respiratory"]
[null,null,"Spinal"]
[null,null,"TCP"]
[null,null,"TCP – home based"]
[null,null,"Transition Clinic"]
[null,null,"Trauma"]
[null,null,"Victorian Paediatric Rehabilitation Service"]
[null,null,"Youth "]
[null,null,"Aged Care"]
[null,null,"Rehab A, B or C"]
[null,null,"medical specialty"]
[null,null,"plastics"]
[null,null,"PAN"]